Workbook

Sheet Index
A2: Table
A4: ='T1'!B2 -> Table 1 - 2017/18 Generation Tariffs
A5: ='T2'!B2 -> Table 2 - 2018/19 Generation Tariffs
A6: ='T3'!B2 -> Table 3 - 2019/20 Generation Tariffs
A7: ='T4'!B2 -> Table 4 - 2020/21 Generation Tariffs
A8: ='T5'!B2 -> Table 5 - 2021/22 Generation Tariffs
A9: ='T6'!A2 -> Table 6 – Onshore Local Circuit Tariffs
A10: ='T7'!B2 -> Table 7 – 2018/19 Onshore Local Substation Tariffs
A11: ='T8'!B2 -> Table 8 – 2018/19 Offshore Local Tariffs
A12: ='T9'!B2 -> Table 9 - Small Generator Discount
A13: ='T10'!B2 -> Table 10 – Half-Hour Demand Tariffs
A14: ='T11'!B2 -> Table 11 – Non Half-Hour Demand Tariffs
A15: ='T12'!B2 -> Table 12 - Contracted and Modelled TEC
A16: ='T13'!B2 -> Table 13 – Calculation of Generator and Demand Revenue Proportions
A17: ='T14'!_Ref386537083 -> Table 14 – Transmission Owner Revenues
A18: ='T15'!B2 -> Table 15 – Inflation Indices
A19: ='T16'!B2 -> Table 16 – Demand Forecasts
A20: ='T17'!B2 -> Table 17 – Expansion Constants
A21: ='T18'!B2 -> Table 18 – Interconnector Adjustments
A22: ='T19'!B2 -> Table 19 - Wider tariffs for a Conventional 80% load factor generator
A23: ='T20'!B2 -> Table 20 - Wider tariffs for an Intermittent 40% load factor generator
A24: ='T21'!B2 -> Table 21 - Changes in Half-Hour Metered Tariffs
A25: ='T22'!B2 -> Table 22 - Changes in Non-Half-hour Metered Tariffs
A26: ='T23'!B2 -> Table 23 - Calculation of Residuals
A27: ='T24'!B2 -> Table 24 - 2018/19 Generation Scenarios - Wider Generation Peak 80% Tariffs
A28: ='T25'!B2 -> Table 25 - 2018/19 Generation Scenarios - Wider Generation Intermittent 40% Tariffs
A29: ='T26'!B2 -> Table 26 - 2018/19 Generation Scenarios - HH Demand Tariffs
A30: ='T27'!B$2 -> Table 27 - 2018/19 Generation Scenarios - NHH Demand Tariffs
A31: ='T28'!B2 -> Table 28 - 2019/20 Generation Scenarios - Wider Generation Peak 80% Tariffs
A32: ='T29'!B2 -> Table 29 - 2019/20 Generation Scenarios - Wider Generation Intermittent 40% Tariffs
A33: ='T30'!B$2 -> Table 30 - 2019/20 Generation Scenarios - HH Demand Tariffs
A34: ='T31'!B$2 -> Table 31 - 2019/20 Generation Scenarios - NHH Demand Tariffs
A35: ='T32'!B2 -> Table 32 - 2020/21 Generation Scenarios - Wider Generation Peak 80% Tariffs
A36: ='T33'!B2 -> Table 33 - 2020/21 Generation Scenarios - Wider Generation Intermittent 40% Tariffs
A37: ='T34'!B$2 -> Table 34 - 2020/21 Generation Scenarios - HH Demand Tariffs
A38: ='T35'!B$2 -> Table 35 - 2020/21 Generation Scenarios - NHH Demand Tariffs
A39: ='T36'!B2 -> Table 36 - 2021/22 Generation Scenarios - Wider Generation Peak 80% Tariffs
A40: ='T37'!B2 -> Table 37 - 2021/22 Generation Scenarios - Wider Generation Intermittent 40% Tariffs
A41: ='T38'!B$2 -> Table 38 - 2021/22 Generation Scenarios - HH Demand Tariffs
A42: ='T39'!B$2 -> Table 39 - 2021/22 Generation Scenarios - NHH Demand Tariffs
A43: ='T40'!B2 -> Table 40 - National Grid Revenue Forecast
A44: ='T41'!B2 -> Table 41 - Scottish Power Transmission Revenue Forecast
A45: ='T42'!B2 -> Table 42 - SHE Transmission Revenue Forecast
A46: ='T43'!B2 -> Table 43 - Offshore Transmission Revenue Forecast
A47: ='T44'!B2 -> Table 44 - Contracted TEC at Peak
A48: ='T45'!B2 -> Table 45 - Contracted TEC at Peak by Zone
A49: ='T46'!B2 -> Table 46 - Zonal Summary of Modelled Demand
A50: ='T47'!B2 -> Table 47 - Zonal Summary of Chargeable System Demand
A51: ='T48'!B2 -> Table 48 - Zonal Summary of Chargeable HH Demand
A52: ='T49'!B2 -> Table 49 - Zonal Summary of Chargeable NHH Demand
A53: ='T50'!B2 -> Table 50 - Breakdown of HH Demand Tariffs, and CMP264/265 Calculator
A55: Table
A57: ='T19'!J2 -> Figure 1 – Wider tariffs for a conventional 80% generator
A58: ='T20'!J2 -> Figure 2 - Wider tariffs for an intermittent 40% load factor generator
A59: ='T10'!$J$2 -> Figure 3 - Half Hour Demand Tariffs
A60: ='T11'!$J$2 -> Figure 4 - Non-Half Hour Demand Tariffs

Sheet T1
B2: Table 1 - 2017/18 Generation Tariffs
B4: Generation Tariffs | D4: System Peak Tariff | E4: Shared Year Round Tariff | F4: Not Shared Year Round Tariff | G4: Residual Tariff | H4: Conventional 80% Load Factor | I4: Intermittent 40% Load Factor
B5: Zone | C5: Zone Name | D5: (£/kW) | E5: (£/kW) | F5: (£/kW) | G5: (£/kW) | H5: (£/kW) | I5: (£/kW)
B6: 1 | C6: North Scotland | D6: -0.001999820956 | E6: 11.94006013 | F6: 16.90997197 | G6: -1.853883063 | H6: 24.60613718 | I6: 19.83211295
B7: 2 | C7: East Aberdeenshire | D7: 0.7943376571 | E7: 5.576753147 | F7: 16.90997197 | G7: -1.853883063 | H7: 20.31182908 | I7: 17.28679016
B8: 3 | C8: Western Highlands | D8: -0.4083430382 | E8: 10.08831234 | F8: 16.67650625 | G8: -1.853883063 | H8: 22.48493002 | I8: 18.85794812
B9: 4 | C9: Skye and Lochalsh | D9: -6.224181141 | E9: 10.08831234 | F9: 16.41958815 | G9: -1.853883063 | H9: 16.41217382 | I9: 18.60103002
B10: 5 | C10: Eastern Grampian and Tayside | D10: 0.273013481 | E10: 8.95421031 | F10: 16.10717893 | G10: -1.853883063 | H10: 21.6896776 | I10: 17.83497999
B11: 6 | C11: Central Grampian | D11: 2.437358893 | E11: 10.0925992 | F11: 17.12799664 | G11: -1.853883063 | H11: 25.78555184 | I11: 19.31115326
B12: 7 | C12: Argyll | D12: 1.556747359 | E12: 8.028893092 | F12: 25.54420842 | G12: -1.853883063 | H12: 31.67018719 | I12: 26.9018826
B13: 8 | C13: The Trossachs | D13: 1.784393048 | E13: 8.028893092 | F13: 15.18382334 | G13: -1.853883063 | H13: 21.5374478 | I13: 16.54149751
B14: 9 | C14: Stirlingshire and Fife | D14: -0.1338341279 | E14: 3.913692622 | F14: 13.15345923 | G14: -1.853883063 | H14: 14.29669614 | I14: 12.86505322
B15: 10 | C15: South West Scotland | D15: 1.695579022 | E15: 6.348283658 | F15: 14.14846307 | G15: -1.853883063 | H15: 19.06878595 | I15: 14.83389347
B16: 11 | C16: Lothian and Borders | D16: 2.818958547 | E16: 6.348283658 | F16: 9.032481669 | G16: -1.853883063 | H16: 15.07618408 | I16: 9.71791207
B17: 12 | C17: Solway and Cheviot | D17: 0.5680314869 | E17: 3.496663719 | F17: 7.67000818 | G17: -1.853883063 | H17: 9.18148758 | I17: 7.214790605
B18: 13 | C18: North East England | D18: 3.14416782 | E18: 2.04251894 | F18: 4.198747555 | G18: -1.853883063 | H18: 7.123047464 | I18: 3.161872068
B19: 14 | C19: North Lancashire and The Lakes | D19: 1.202445954 | E19: 2.04251894 | F19: 3.009858381 | G19: -1.853883063 | H19: 3.992436424 | I19: 1.972982895
B20: 15 | C20: South Lancashire, Yorkshire and Humber | D20: 3.997791725 | E20: 0.5682254949 | F20: 0.1643860421 | G20: -1.853883063 | H20: 2.762875101 | I20: -1.462206822
B21: 16 | C21: North Midlands and North Wales | D21: 3.745536093 | E21: -0.9510275911 | F21: 0 | G21: -1.853883063 | H21: 1.130830957 | I21: -2.234294099
B22: 17 | C22: South Lincolnshire and North Norfolk | D22: 2.193746385 | E22: -0.3352017843 | F22: 0 | G22: -1.853883063 | H22: 0.0717018946 | I22: -1.987963776
B23: 18 | C23: Mid Wales and The Midlands | D23: 1.229614022 | E23: -0.1986327574 | F23: 0 | G23: -1.853883063 | H23: -0.783175246 | I23: -1.933336166
B24: 19 | C24: Anglesey and Snowdon | D24: 4.415404929 | E24: -1.704057957 | F24: 0 | G24: -1.853883063 | H24: 1.198275501 | I24: -2.535506245
B25: 20 | C25: Pembrokeshire | D25: 9.048899729 | E25: -3.884439192 | F25: 0 | G25: -1.853883063 | H25: 4.087465312 | I25: -3.407658739
B26: 21 | C26: South Wales & Gloucester | D26: 6.153081707 | E26: -3.944204277 | F26: 0 | G26: -1.853883063 | H26: 1.143835223 | I26: -3.431564773
B27: 22 | C27: Cotswold | D27: 3.146673879 | E27: 2.06517729 | F27: -6.0561863 | G27: -1.853883063 | H27: -3.111253651 | I27: -7.083998446
B28: 23 | C28: Central London | D28: -4.26955287 | E28: 2.06517729 | F28: -5.486684752 | G28: -1.853883063 | H28: -9.957978852 | I28: -6.514496899
B29: 24 | C29: Essex and Kent | D29: -3.66824719 | E29: 2.06517729 | F29: 0 | G29: -1.853883063 | H29: -3.86998842 | I29: -1.027812146
B30: 25 | C30: Oxfordshire, Surrey and Sussex | D30: -1.153479588 | E30: -2.668628573 | F30: 0 | G30: -1.853883063 | H30: -5.142265509 | I30: -2.921334492
B31: 26 | C31: Somerset and Wessex | D31: -1.243260869 | E31: -3.921645739 | F31: 0 | G31: -1.853883063 | H31: -6.234460522 | I31: -3.422541358
B32: 27 | C32: West Devon and Cornwall | D32: 0.1956654719 | E32: -5.301775549 | F32: 0 | G32: -1.853883063 | H32: -5.89963803 | I32: -3.974593282

Sheet T2
B2: Table 2 - 2018/19 Generation Tariffs
B4: Generation Tariffs | D4: System Peak Tariff | E4: Shared Year Round Tariff | F4: Not Shared Year Round Tariff | G4: Residual Tariff | H4: Conventional 80% Load Factor | I4: Intermittent 40% Load Factor
B5: Zone | C5: Zone Name | D5: (£/kW) | E5: (£/kW) | F5: (£/kW) | G5: (£/kW) | H5: (£/kW) | I5: (£/kW)
B6: 1 | C6: North Scotland | D6: 2.170216413 | E6: 12.08474667 | F6: 20.51353237 | G6: -3.203600603 | H6: 29.14794551 | I6: 22.14383043
B7: 2 | C7: East Aberdeenshire | D7: 3.241000336 | E7: 4.763859505 | F7: 20.51353237 | G7: -3.203600603 | H7: 24.3620197 | I7: 19.21547556
B8: 3 | C8: Western Highlands | D8: 1.589642355 | E8: 11.35497546 | F8: 20.13513557 | G8: -3.203600603 | H8: 27.6051577 | I8: 21.47352515
B9: 4 | C9: Skye and Lochalsh | D9: 1.597357978 | E9: 11.35497546 | F9: 25.69639032 | G9: -3.203600603 | H9: 33.17412806 | I9: 27.0347799
B10: 5 | C10: Eastern Grampian and Tayside | D10: 3.303910724 | E10: 9.849757261 | F10: 18.78879315 | G10: -3.203600603 | H10: 26.76890908 | I10: 19.52509545
B11: 6 | C11: Central Grampian | D11: 3.450425996 | E11: 9.857791572 | F11: 18.7991507 | G11: -3.203600603 | H11: 26.93220935 | I11: 19.53866672
B12: 7 | C12: Argyll | D12: 2.793271392 | E12: 8.339152763 | F12: 27.14903195 | G12: -3.203600603 | H12: 33.41002495 | I12: 27.28109245
B13: 8 | C13: The Trossachs | D13: 3.088533488 | E13: 8.339152763 | F13: 16.77249466 | G13: -3.203600603 | H13: 23.32874976 | I13: 16.90455517
B14: 9 | C14: Stirlingshire and Fife | D14: 1.692877294 | E14: 5.001013997 | F14: 14.32111489 | G14: -3.203600603 | H14: 16.81120278 | I14: 13.11791989
B15: 10 | C15: South West Scotland | D15: 2.61613903 | E15: 6.468013009 | F15: 15.24050995 | G15: -3.203600603 | H15: 19.82745879 | I15: 14.62411455
B16: 11 | C16: Lothian and Borders | D16: 3.253679072 | E16: 6.468013009 | F16: 9.703550409 | G16: -3.203600603 | H16: 14.92803929 | I16: 9.087155009
B17: 12 | C17: Solway and Cheviot | D17: 1.787371604 | E17: 3.739899295 | F17: 8.547632649 | G17: -3.203600603 | H17: 10.12332309 | I17: 6.839991764
B18: 13 | C18: North East England | D18: 3.5470242 | E18: 2.180826581 | F18: 4.543003131 | G18: -3.203600603 | H18: 6.631087993 | I18: 2.21173316
B19: 14 | C19: North Lancashire and The Lakes | D19: 1.352120104 | E19: 2.180826581 | F19: 3.210354144 | G19: -3.203600603 | H19: 3.10353491 | I19: 0.8790841734
B20: 15 | C20: South Lancashire, Yorkshire and Humber | D20: 4.218037623 | E20: 0.6438421388 | F20: 0.1513783787 | G20: -3.203600603 | H20: 1.680889109 | I20: -2.794685369
B21: 16 | C21: North Midlands and North Wales | D21: 3.171105801 | E21: -0.6735000558 | F21: 0 | G21: -3.203600603 | H21: -0.5712948471 | I21: -3.473000626
B22: 17 | C22: South Lincolnshire and North Norfolk | D22: 1.460356776 | E22: 0.1151510283 | F22: 0 | G22: -3.203600603 | H22: -1.651123005 | I22: -3.157540192
B23: 18 | C23: Mid Wales and The Midlands | D23: 0.7463309935 | E23: 0.3219117255 | F23: 0 | G23: -3.203600603 | H23: -2.199740229 | I23: -3.074835913
B24: 19 | C24: Anglesey and Snowdon | D24: 4.678902373 | E24: -1.378197649 | F24: 0 | G24: -3.203600603 | H24: 0.3727436511 | I24: -3.754879663
B25: 20 | C25: Pembrokeshire | D25: 9.09961959 | E25: -3.868850906 | F25: 0 | G25: -3.203600603 | H25: 2.800938262 | I25: -4.751140966
B26: 21 | C26: South Wales & Gloucester | D26: 6.107251414 | E26: -3.916774183 | F26: 0 | G26: -3.203600603 | H26: -0.2297685359 | I26: -4.770310276
B27: 22 | C27: Cotswold | D27: 3.002960074 | E27: 2.725826309 | F27: -6.680045474 | G27: -3.203600603 | H27: -4.700024956 | I27: -8.793315554
B28: 23 | C28: Central London | D28: -5.9582051 | E28: 2.725826309 | F28: -6.491596103 | G28: -3.203600603 | H28: -13.47274076 | I28: -8.604866183
B29: 24 | C29: Essex and Kent | D29: -4.114864361 | E29: 2.725826309 | F29: 0 | G29: -3.203600603 | H29: -5.137803918 | I29: -2.11327008
B30: 25 | C30: Oxfordshire, Surrey and Sussex | D30: -1.510485068 | E30: -2.344308674 | F30: 0 | G30: -3.203600603 | H30: -6.58953261 | I30: -4.141324073
B31: 26 | C31: Somerset and Wessex | D31: -1.166418415 | E31: -3.470621828 | F31: 0 | G31: -3.203600603 | H31: -7.14651648 | I31: -4.591849334
B32: 27 | C32: West Devon and Cornwall | D32: 0.2018821256 | E32: -4.982632424 | F32: 0 | G32: -3.203600603 | H32: -6.987824417 | I32: -5.196653573

Sheet T3
B2: Table 3 - 2019/20 Generation Tariffs
B4: Generation Tariffs | D4: System Peak Tariff | E4: Shared Year Round Tariff | F4: Not Shared Year Round Tariff | G4: Residual Tariff | H4: Conventional 80% Load Factor | I4: Intermittent 40% Load Factor
B5: Zone | C5: Zone Name | D5: (£/kW) | E5: (£/kW) | F5: (£/kW) | G5: (£/kW) | H5: (£/kW) | I5: (£/kW)
B6: 1 | C6: North Scotland | D6: 2.498113885 | E6: 11.19376368 | F6: 21.14236609 | G6: -4.754307731 | H6: 27.84118319 | I6: 20.86556383
B7: 2 | C7: East Aberdeenshire | D7: 3.734933163 | E7: 4.370245133 | F7: 21.14236609 | G7: -4.754307731 | H7: 23.61918763 | I7: 18.13615641
B8: 3 | C8: Western Highlands | D8: 2.545588262 | E8: 10.81441483 | F8: 20.8659969 | G8: -4.754307731 | H8: 27.3088093 | I8: 20.43745511
B9: 4 | C9: Skye and Lochalsh | D9: 2.547301306 | E9: 10.81441483 | F9: 26.59530893 | G9: -4.754307731 | H9: 33.03983437 | I9: 26.16676713
B10: 5 | C10: Eastern Grampian and Tayside | D10: 4.090108814 | E10: 9.450311649 | F10: 19.35938391 | G10: -4.754307731 | H10: 26.25543431 | I10: 18.38520084
B11: 6 | C11: Central Grampian | D11: 4.349706708 | E11: 9.455419802 | F11: 19.36704198 | G11: -4.754307731 | H11: 26.5267768 | I11: 18.39490217
B12: 7 | C12: Argyll | D12: 3.809592472 | E12: 7.997732571 | F12: 27.71126732 | G12: -4.754307731 | H12: 33.16473812 | I12: 26.15605262
B13: 8 | C13: The Trossachs | D13: 3.990269761 | E13: 7.997732571 | F13: 17.11558158 | G13: -4.754307731 | H13: 22.74972967 | I13: 15.56036688
B14: 9 | C14: Stirlingshire and Fife | D14: 2.290234272 | E14: 4.877808927 | F14: 14.42210224 | G14: -4.754307731 | H14: 15.86027592 | I14: 11.61891808
B15: 10 | C15: South West Scotland | D15: 3.637937083 | E15: 6.142545135 | F15: 15.36230312 | G15: -4.754307731 | H15: 19.15996858 | I15: 13.06501344
B16: 11 | C16: Lothian and Borders | D16: 3.741615804 | E16: 6.142545135 | F16: 10.11852921 | G16: -4.754307731 | H16: 14.01987339 | I16: 7.821239534
B17: 12 | C17: Solway and Cheviot | D17: 2.076821856 | E17: 3.550126182 | F17: 8.598053313 | G17: -4.754307731 | H17: 8.760668384 | I17: 5.263796055
B18: 13 | C18: North East England | D18: 3.995233078 | E18: 2.00119404 | F18: 4.377924118 | G18: -4.754307731 | H18: 5.219804697 | I18: 0.4240940033
B19: 14 | C19: North Lancashire and The Lakes | D19: 1.894200787 | E19: 2.00119404 | F19: 2.933024296 | G19: -4.754307731 | H19: 1.673872584 | I19: -1.020805818
B20: 15 | C20: South Lancashire, Yorkshire and Humber | D20: 4.520282077 | E20: 0.3554200175 | F20: 0.2112677992 | G20: -4.754307731 | H20: 0.2615781593 | I20: -4.400871925
B21: 16 | C21: North Midlands and North Wales | D21: 3.133331196 | E21: -1.041546013 | F21: 0 | G21: -4.754307731 | H21: -2.454213346 | I21: -5.170926136
B22: 17 | C22: South Lincolnshire and North Norfolk | D22: 1.280349451 | E22: 0.5748994429 | F22: 0 | G22: -4.754307731 | H22: -3.014038726 | I22: -4.524347954
B23: 18 | C23: Mid Wales and The Midlands | D23: 0.6228791799 | E23: 0.6907765919 | F23: 0 | G23: -4.754307731 | H23: -3.578807277 | I23: -4.477997094
B24: 19 | C24: Anglesey and Snowdon | D24: 5.583190028 | E24: -2.272823044 | F24: 0 | G24: -4.754307731 | H24: -0.9893761381 | I24: -5.663436948
B25: 20 | C25: Pembrokeshire | D25: 9.13706476 | E25: -3.717031663 | F25: 0 | G25: -4.754307731 | H25: 1.409131699 | I25: -6.241120396
B26: 21 | C26: South Wales & Gloucester | D26: 5.942173579 | E26: -3.672168949 | F26: 0 | G26: -4.754307731 | H26: -1.749869311 | I26: -6.22317531
B27: 22 | C27: Cotswold | D27: 2.660812199 | E27: 3.355198942 | F27: -6.989367429 | G27: -4.754307731 | H27: -6.398703808 | I27: -10.40159558
B28: 23 | C28: Central London | D28: -6.117542343 | E28: 3.355198942 | F28: -6.788685884 | G28: -4.754307731 | H28: -14.9763768 | I28: -10.20091404
B29: 24 | C29: Essex and Kent | D29: -4.356927931 | E29: 3.355198942 | F29: 0 | G29: -4.754307731 | H29: -6.427076508 | I29: -3.412228154
B30: 25 | C30: Oxfordshire, Surrey and Sussex | D30: -1.608756859 | E30: -1.802278641 | F30: 0 | G30: -4.754307731 | H30: -7.804887503 | I30: -5.475219187
B31: 26 | C31: Somerset and Wessex | D31: -1.796203499 | E31: -1.586625498 | F31: 0 | G31: -4.754307731 | H31: -7.819811629 | I31: -5.38895793
B32: 27 | C32: West Devon and Cornwall | D32: -0.9959026406 | E32: -4.883356585 | F32: 0 | G32: -4.754307731 | H32: -9.65689564 | I32: -6.707650365

Sheet T4
B2: Table 4 - 2020/21 Generation Tariffs
B4: Generation Tariffs | D4: System Peak Tariff | E4: Shared Year Round Tariff | F4: Not Shared Year Round Tariff | G4: Residual Tariff | H4: Conventional 80% Load Factor | I4: Intermittent 40% Load Factor
B5: Zone | C5: Zone Name | D5: (£/kW) | E5: (£/kW) | F5: (£/kW) | G5: (£/kW) | H5: (£/kW) | I5: (£/kW)
B6: 1 | C6: North Scotland | D6: 1.687386446 | E6: 12.87371004 | F6: 20.55811525 | G6: -5.948545208 | H6: 26.59592452 | I6: 19.75905406
B7: 2 | C7: East Aberdeenshire | D7: 2.577452172 | E7: 6.288383173 | F7: 20.55811525 | G7: -5.948545208 | H7: 22.21772876 | I7: 17.12492332
B8: 3 | C8: Western Highlands | D8: 1.531813 | E8: 12.13596435 | F8: 19.94606562 | G8: -5.948545208 | H8: 25.2381049 | I8: 18.85190616
B9: 4 | C9: Skye and Lochalsh | D9: 1.526553749 | E9: 12.13596435 | F9: 25.86172399 | G9: -5.948545208 | H9: 31.14850401 | I9: 24.76756452
B10: 5 | C10: Eastern Grampian and Tayside | D10: 2.864381352 | E10: 10.9797418 | F10: 18.55217326 | G10: -5.948545208 | H10: 24.25180284 | I10: 16.99552477
B11: 6 | C11: Central Grampian | D11: 2.958982228 | E11: 11.14928609 | F11: 18.82349136 | G11: -5.948545208 | H11: 24.75335726 | I11: 17.33466059
B12: 7 | C12: Argyll | D12: 2.478488626 | E12: 9.666585236 | F12: 27.55898092 | G12: -5.948545208 | H12: 31.82219253 | I12: 25.47706981
B13: 8 | C13: The Trossachs | D13: 2.666802332 | E13: 9.666585236 | F13: 16.38350588 | G13: -5.948545208 | H13: 20.8350312 | I13: 14.30159477
B14: 9 | C14: Stirlingshire and Fife | D14: 1.089412501 | E14: 6.347901845 | F14: 13.31239918 | G14: -5.948545208 | H14: 13.53158795 | I14: 9.903014715
B15: 10 | C15: South West Scotland | D15: 2.080465777 | E15: 7.883297001 | F15: 14.54005119 | G15: -5.948545208 | H15: 16.97860936 | I15: 11.74482478
B16: 11 | C16: Lothian and Borders | D16: 3.765758237 | E16: 7.883297001 | F16: 9.242657311 | G16: -5.948545208 | H16: 13.36650794 | I16: 6.447430903
B17: 12 | C17: Solway and Cheviot | D17: 1.604464136 | E17: 5.229167915 | F17: 7.376843989 | G17: -5.948545208 | H17: 7.216097249 | I17: 3.519965947
B18: 13 | C18: North East England | D18: 3.937894407 | E18: 4.321098738 | F18: 4.821364518 | G18: -5.948545208 | H18: 6.267592707 | I18: 0.6012588052
B19: 14 | C19: North Lancashire and The Lakes | D19: 1.475999105 | E19: 4.321098738 | F19: 0.9551388049 | G19: -5.948545208 | H19: -0.06052830789 | I19: -3.264966908
B20: 15 | C20: South Lancashire, Yorkshire and Humber | D20: 4.138162441 | E20: 0.9676915024 | F20: 0.07242466203 | G20: -5.948545208 | H20: -0.9638049028 | I20: -5.489043945
B21: 16 | C21: North Midlands and North Wales | D21: 3.509238946 | E21: -0.948527253 | F21: 0 | G21: -5.948545208 | H21: -3.198128064 | I21: -6.327956109
B22: 17 | C22: South Lincolnshire and North Norfolk | D22: 1.839490787 | E22: 0.05497104881 | F22: 1.30493304e-16 | G22: -5.948545208 | H22: -4.065077582 | I22: -5.926556788
B23: 18 | C23: Mid Wales and The Midlands | D23: 1.613041257 | E23: -0.1334182685 | F23: 0 | G23: -5.948545208 | H23: -4.442238566 | I23: -6.001912515
B24: 19 | C24: Anglesey and Snowdon | D24: 5.270367401 | E24: -1.829425848 | F24: 0 | G24: -5.948545208 | H24: -2.141718485 | I24: -6.680315547
B25: 20 | C25: Pembrokeshire | D25: 9.075742709 | E25: -3.941571995 | F25: 0 | G25: -5.948545208 | H25: -0.02606009505 | I25: -7.525174006
B26: 21 | C26: South Wales & Gloucester | D26: 5.80467775 | E26: -3.946067511 | F26: 0 | G26: -5.948545208 | H26: -3.300721467 | I26: -7.526972212
B27: 22 | C27: Cotswold | D27: 2.44026453 | E27: 3.260991502 | F27: -7.209281914 | G27: -5.948545208 | H27: -8.10876939 | I27: -11.85343052
B28: 23 | C28: Central London | D28: -5.901849933 | E28: 3.260991502 | F28: -7.145967226 | G28: -5.948545208 | H28: -16.38756917 | I28: -11.79011583
B29: 24 | C29: Essex and Kent | D29: -4.415320846 | E29: 3.260991502 | F29: 0 | G29: -5.948545208 | H29: -7.755072852 | I29: -4.644148607
B30: 25 | C30: Oxfordshire, Surrey and Sussex | D30: -1.720120118 | E30: -2.215576185 | F30: 0 | G30: -5.948545208 | H30: -9.441126274 | I30: -6.834775682
B31: 26 | C31: Somerset and Wessex | D31: -0.837818908 | E31: -1.650499203 | F31: 0 | G31: -5.948545208 | H31: -8.106763478 | I31: -6.608744889
B32: 27 | C32: West Devon and Cornwall | D32: 0.08776668177 | E32: -4.116444083 | F32: 0 | G32: -5.948545208 | H32: -9.153933792 | I32: -7.595122841

Sheet T5
B2: Table 5 - 2021/22 Generation Tariffs
B4: Generation Tariffs | D4: System Peak Tariff | E4: Shared Year Round Tariff | F4: Not Shared Year Round Tariff | G4: Residual Tariff | H4: Conventional 80% Load Factor | I4: Intermittent 40% Load Factor
B5: Zone | C5: Zone Name | D5: (£/kW) | E5: (£/kW) | F5: (£/kW) | G5: (£/kW) | H5: (£/kW) | I5: (£/kW)
B6: 1 | C6: North Scotland | D6: 3.020723506 | E6: 10.91943682 | F6: 26.26128019 | G6: -7.60615712 | H6: 30.41139603 | I6: 23.0228978
B7: 2 | C7: East Aberdeenshire | D7: 1.299991611 | E7: 7.944565985 | F7: 24.03012706 | G7: -7.60615712 | H7: 24.07961434 | I7: 19.60179634
B8: 3 | C8: Western Highlands | D8: 2.715021317 | E8: 10.23416486 | F8: 24.80563038 | G8: -7.60615712 | H8: 28.10182647 | I8: 21.29313921
B9: 4 | C9: Skye and Lochalsh | D9: 2.692580141 | E9: 10.23416486 | F9: 32.83611926 | G9: -7.60615712 | H9: 36.10987416 | I9: 29.32362808
B10: 5 | C10: Eastern Grampian and Tayside | D10: 3.380883733 | E10: 9.329738187 | F10: 22.51731463 | G10: -7.60615712 | H10: 25.75583179 | I10: 18.64305278
B11: 6 | C11: Central Grampian | D11: 3.434671594 | E11: 9.453874691 | F11: 22.88449178 | G11: -7.60615712 | H11: 26.27610601 | I11: 19.05988454
B12: 7 | C12: Argyll | D12: 3.305923997 | E12: 8.411339992 | F12: 30.52505856 | G12: -7.60615712 | H12: 32.95389743 | I12: 26.28343744
B13: 8 | C13: The Trossachs | D13: 3.034465434 | E13: 8.411339992 | F13: 19.75354413 | G13: -7.60615712 | H13: 21.91092444 | I13: 15.51192301
B14: 9 | C14: Stirlingshire and Fife | D14: 1.634735216 | E14: 5.969374242 | F14: 15.45813709 | G14: -7.60615712 | H14: 14.26221458 | I14: 10.23972966
B15: 10 | C15: South West Scotland | D15: 1.92309008 | E15: 6.848976772 | F15: 16.82484744 | G15: -7.60615712 | H15: 16.62096182 | I15: 11.95828103
B16: 11 | C16: Lothian and Borders | D16: 3.419382049 | E16: 6.848976772 | F16: 11.57084181 | G16: -7.60615712 | H16: 12.86324815 | I16: 6.704275396
B17: 12 | C17: Solway and Cheviot | D17: 1.460252764 | E17: 4.811419907 | F17: 8.874657886 | G17: -7.60615712 | H17: 6.577889455 | I17: 3.193068729
B18: 13 | C18: North East England | D18: 4.021443047 | E18: 4.073051652 | F18: 5.908541687 | G18: -7.60615712 | H18: 5.582268935 | I18: -0.06839477226
B19: 14 | C19: North Lancashire and The Lakes | D19: 1.294597044 | E19: 4.073051652 | F19: 2.024052969 | G19: -7.60615712 | H19: -1.029065785 | I19: -3.95288349
B20: 15 | C20: South Lancashire, Yorkshire and Humber | D20: 4.550720233 | E20: 1.041512951 | F20: 0.2936350929 | G20: -7.60615712 | H20: -1.928591434 | I20: -6.895916847
B21: 16 | C21: North Midlands and North Wales | D21: 3.405572699 | E21: -0.3340912241 | F21: 0 | G21: -7.60615712 | H21: -4.467857401 | I21: -7.73979361
B22: 17 | C22: South Lincolnshire and North Norfolk | D22: 2.530559398 | E22: -0.3791130921 | F22: 0 | G22: -7.60615712 | H22: -5.378888196 | I22: -7.757802357
B23: 18 | C23: Mid Wales and The Midlands | D23: 1.456689154 | E23: 0.3826624196 | F23: 0 | G23: -7.60615712 | H23: -5.84333803 | I23: -7.453092152
B24: 19 | C24: Anglesey and Snowdon | D24: 4.247012438 | E24: -0.5035931524 | F24: 0 | G24: -7.60615712 | H24: -3.762019204 | I24: -7.807594381
B25: 20 | C25: Pembrokeshire | D25: 8.25647345 | E25: -5.813437557 | F25: 0 | G25: -7.60615712 | H25: -4.000433716 | I25: -9.931532143
B26: 21 | C26: South Wales & Gloucester | D26: 4.269784096 | E26: -6.389192704 | F26: 0 | G26: -7.60615712 | H26: -8.447727188 | I26: -10.1618342
B27: 22 | C27: Cotswold | D27: 2.75039929 | E27: 2.615912264 | F27: -7.333185209 | G27: -7.60615712 | H27: -10.09621323 | I27: -13.89297742
B28: 23 | C28: Central London | D28: -5.583745775 | E28: 2.615912264 | F28: -7.032113353 | G28: -7.60615712 | H28: -18.12928644 | I28: -13.59190557
B29: 24 | C29: Essex and Kent | D29: -3.729866036 | E29: 2.615912264 | F29: 0 | G29: -7.60615712 | H29: -9.243293344 | I29: -6.559792214
B30: 25 | C30: Oxfordshire, Surrey and Sussex | D30: -1.274122278 | E30: -2.713242093 | F30: 0 | G30: -7.60615712 | H30: -11.05087307 | I30: -8.691453957
B31: 26 | C31: Somerset and Wessex | D31: -0.8265642976 | E31: -2.430568585 | F31: 0 | G31: -7.60615712 | H31: -10.37717629 | I31: -8.578384554
B32: 27 | C32: West Devon and Cornwall | D32: -0.2628045408 | E32: -4.885556616 | F32: 0 | G32: -7.60615712 | H32: -11.77740695 | I32: -9.560379767

Sheet T6
A2: Table 6 – Onshore Local Circuit Tariffs
A4: Connection Point | B4: 2017/18 (£/kW) | C4: 2018/19 (£/kW) | D4: 2019/20 (£/kW) | E4: 2020/21 (£/kW) | F4: 2021/22 (£/kW)
A5: Aberdeen Bay | B5: - | C5: 2.471291421 | D5: 2.545430163 | E5: 2.621750067 | F5: 2.70044686
A6: Achruach | B6: 3.939872376 | C6: 4.059987118 | D6: 4.181704584 | E6: 4.307062094 | F6: -2.593006138
A7: Aigas | B7: 0.6015438978 | C7: 0.6199004848 | D7: 0.6384974993 | E7: 0.6576460275 | F7: 0.677381997
A8: An Suidhe | B8: 2.819600814 | C8: -0.8553013718 | D8: -0.8805556915 | E8: -0.9068334739 | F8: -0.9344654278
A9: Arecleoch | B9: 1.910276043 | C9: 1.968569625 | D9: 2.027626714 | E9: 2.088141865 | F9: 2.151109181
A10: Aultmore | B10: - | C10: - | D10: - | E10: 1.686505891 | F10: 1.737129559
A11: Baglan Bay | B11: 0.6995070853 | C11: 0.7206868374 | D11: 0.7423132313 | E11: 0.7643828831 | F11: 0.7875234217
A12: Beinneun Wind Farm | B12: 1.381893786 | C12: 1.423321196 | D12: 1.466020832 | E12: 1.510016472 | F12: 1.5553015
A13: Benbrack & Quantans Hill | B13: - | C13: - | D13: -4.45810677 | E13: -4.59154997 | F13: -4.728474578
A14: Bhlaraidh Wind Farm | B14: 0.5938405124 | C14: 0.6119620245 | D14: 0.6303208852 | E14: 0.6492604687 | F14: 0.6687074271
A15: Black Hill | B15: 0.7935393043 | C15: 0.8177547826 | D15: 0.8422874261 | E15: 0.8675841851 | F15: 0.8935827304
A16: Black Law | B16: 1.607155202 | C16: 1.656198812 | D16: 1.705884776 | E16: 1.757032501 | F16: 1.809773159
A17: BlackCraig Wind Farm | B17: 5.789906348 | C17: 5.966589911 | D17: 6.145587609 | E17: 6.329863643 | F17: 6.519853894
A18: BlackLaw Extension | B18: 3.408180638 | C18: 3.51218396 | D18: 3.617549479 | E18: 3.726078921 | F18: 3.837858242
A19: Bodelwyddan | B19: 0.1058263228 | C19: 0.1090556966 | D19: 0.1123273675 | E19: 0.1157000534 | F19: 0.1191681042
A20: Brochlock | B20: 1.31738248 | C20: 1.357583447 | D20: 1.39831095 | E20: 1.440306988 | F20: 1.483468087
A21: Carraig Gheal | B21: 4.04582756 | C21: 4.169731919 | D21: 4.294819625 | E21: 4.423588223 | F21: 4.556364927
A22: Carrington | B22: -0.03288197793 | C22: -0.03079654441 | D22: -0.03161590409 | E22: -0.0324265787 | F22: -0.1836729024
A23: Clyde (North) | B23: 0.1008666365 | C23: 0.1039446615 | D23: 0.1070630013 | E23: 0.1102303848 | F23: 0.1135831381
A24: Clyde (South) | B24: 0.1166473844 | C24: 0.1202069714 | D24: 0.1238131806 | E24: 0.1274761063 | F24: 0.1313534033
A25: Corriegarth | B25: 3.466565834 | C25: 3.572350827 | D25: 3.679521352 | E25: 3.789768297 | F25: 3.903604203
A26: Corriemoillie | B26: 1.530696097 | C26: 1.578312404 | D26: 1.625647295 | E26: 1.67445552 | F26: 1.724617831
A27: Coryton | B27: 0.04781505672 | C27: 0.04926921947 | D27: 0.05080552535 | E27: 0.05063190314 | F27: 0.35792408
A28: Crossburns | B28: - | C28: - | D28: - | E28: - | F28: 0.3107048424
A29: Cruachan | B29: 1.676790045 | C29: 1.7361587 | D29: 1.788246195 | E29: 1.841248163 | F29: 1.897119672
A30: Crystal Rig | B30: 0.3349285751 | C30: 0.03182546804 | D30: 0.04256674154 | E30: 0.3782334063 | F30: 0.05646761753
A31: Culligran | B31: 1.59410544 | C31: 1.642750826 | D31: 1.69203335 | E31: 1.742766781 | F31: 1.795078181
A32: Dalquhandy | B32: - | C32: - | D32: - | E32: - | F32: 1.096167853
A33: Deanie | B33: 2.618887508 | C33: 2.698804928 | D33: 2.779769076 | E33: 2.863116855 | F33: 2.949057012
A34: Dersalloch | B34: 2.215514328 | C34: 2.283122497 | D34: 2.351616172 | E34: 2.422177507 | F34: 2.494829597
A35: Didcot | B35: 0.4769375538 | C35: 0.4933642115 | D35: 0.7771010711 | E35: 0.8009607574 | F35: 0.5415743909
A36: Dinorwig | B36: 2.206750186 | C36: 2.27409091 | D36: 2.342313637 | E36: 2.412644972 | F36: 2.484960537
A37: Dorenell | B37: - | C37: 1.989133255 | D37: 2.048807253 | E37: 2.11033991 | F37: 2.173579614
A38: Dumnaglass | B38: 1.707608738 | C38: 1.759717767 | D38: 1.8125093 | E38: 1.866754445 | F38: 1.922891116
A39: Dunlaw Extension | B39: 1.379172564 | C39: 1.423814789 | D39: 1.465904863 | E39: 1.510085234 | F39: 1.556201355
A40: Earlshaugh Wind Farm | B40: 3.464521748 | C40: 3.574140083 | D40: 3.681583283 | E40: 3.792110576 | F40: 3.907123334
A41: Edinbane | B41: -6.29154343 | C41: 6.489254313 | D41: 6.683928834 | E41: 6.884330464 | F41: 7.090973364
A42: EnochHill | B42: - | C42: - | D42: - | E42: 1.675508972 | F42: 1.725739576
A43: Ewe Hill | B43: 1.263917307 | C43: 1.302486741 | D43: 1.341561344 | E43: 1.381871943 | F43: 1.423262429
A44: FAAR | B44: - | C44: 3.379373127 | D44: 3.480754321 | E44: 3.585120236 | F44: 3.692732259
A45: Fallago | B45: 0.9054825534 | C45: 0.1911909476 | D45: 0.2115553887 | E45: 1.008061605 | F45: 0.2495911526
A46: Ffestiniogg | B46: 0.2326964073 | C46: 0.2397973219 | D46: 0.2469912416 | E46: 0.2543055759 | F46: 0.2620330082
A47: Finlarig | B47: 0.29450488 | C47: 0.3034919289 | D47: 0.3125966867 | E47: 0.3219693065 | F47: 0.331633825
A48: Foyers | B48: 0.692563341 | C48: 0.7136974581 | D48: 0.7351083818 | E48: 0.7568560451 | F48: 0.7798764823
A49: Galawhistle | B49: 0.7784125636 | C49: 1.401843671 | D49: 1.443898982 | E49: 1.487191558 | F49: 1.53183243
A50: Gills Bay | B50: - | C50: 2.386959906 | D50: 2.458568703 | E50: 2.532407892 | F50: 2.608295537
A51: Glen Kyllachy | B51: - | C51: - | D51: 0.4465666953 | E51: 0.4599561521 | F51: 0.4737626071
A52: Glendoe | B52: 1.691812816 | C52: 1.74343982 | D52: 1.795743014 | E52: 1.849619435 | F52: 1.905103764
A53: Glenmorie | B53: - | C53: - | D53: - | E53: 1.993143326 | F53: 2.052971297
A54: GlenUllinish | B54: - | C54: - | D54: - | E54: - | F54: 2.368813035
A55: Gordonbush | B55: 0.3760367855 | C55: 1.111201888 | D55: 1.150161812 | E55: 0.235900939 | F55: 0.2256542312
A56: Griffin Wind | B56: -0.8456185949 | C56: -0.8685144221 | D56: 4.186597834 | E56: 4.34478978 | F56: 10.06925414
A57: Hadyard Hill | B57: 2.54578296 | C57: 2.623469537 | D57: 2.702173623 | E57: 2.783194038 | F57: 2.866735997
A58: Harestanes | B58: 2.304927775 | C58: 2.379160183 | D58: 2.450753987 | E58: 2.524297904 | F58: 2.601336533
A59: Hartlepool | B59: 0.5527823177 | C59: 0.5697484823 | D59: 0.5867845456 | E59: 0.6041012813 | F59: 0.1479901285
A60: Hedon | B60: 0.1664120396 | C60: 0.1715063235 | D60: 0.1766533053 | E60: 0.1818813817 | F60: 0.1874153757
A61: Hornsea 1 | B61: - | C61: 0.6892199538 | D61: 0.7102756044 | E61: 0.7720867579 | F61: 0.7955858723
A62: Invergarry | B62: 1.305183598 | C62: 1.345439839 | D62: 1.38589347 | E62: 1.427537995 | F62: 1.470372432
A63: Kergord | B63: - | C63: - | D63: - | E63: - | F63: 123.7132441
A64: Kilbraur | B64: 0.237471497 | C64: 0.7378084693 | D64: 0.765154376 | E64: 0.1042121611 | F64: 0.09119868979
A65: Kilgallioch | B65: 0.9679943338 | C65: 0.9975334451 | D65: 1.027459448 | E65: 1.057856112 | F65: 1.090031729
A66: Kilmorack | B66: 0.1816449022 | C66: 0.1871879398 | D66: 0.192803578 | E66: 0.1985856568 | F66: 0.2045453159
A67: Kings Lynn | B67: - | C67: - | D67: - | E67: 0.423973521 | F67: 0.4366812511
A68: Knottingley | B68: - | C68: - | D68: -0.1042878288 | E68: -0.1067684806 | F68: -0.1106812434
A69: Kype Muir | B69: - | C69: 1.405858705 | D69: 1.448034466 | E69: 1.49154432 | F69: 1.536219765
A70: Langage | B70: 0.6047919835 | C70: 0.6231962732 | D70: 0.6418963332 | E70: -0.3386961086 | F70: -0.3488049463
A71: Lochay | B71: 0.3365770057 | C71: 0.3468479187 | D71: 0.3572533563 | E71: 0.3679649217 | F71: 0.3790100857
A72: Luichart | B72: 0.5279377412 | C72: 0.5449540845 | D72: 0.5612882268 | E72: 0.5781301249 | F72: 0.5954392954
A73: Marchwood | B73: 0.3512787045 | C73: 0.361875667 | D73: 0.3727294886 | E73: 0.3841976415 | F73: 0.3957069767
A74: Margree | B74: 5.537473594 | C74: 5.706453972 | D74: 5.877647592 | E74: 6.053889952 | F74: 6.23559633
A75: Mark Hill | B75: 0.8053062105 | C75: 0.8298807652 | D75: 0.8547771882 | E75: 0.8800651687 | F75: 0.9068331189
A76: Middle Muir | B76: - | C76: 1.87875956 | D76: 1.935122346 | E76: 1.993143326 | F76: 2.052971297
A77: Millennium South | B77: - | C77: 0.8931337655 | D77: 0.9199532768 | E77: 0.9475953277 | F77: 0.9759778843
A78: Millennium Wind | B78: 1.680241819 | C78: 1.730773555 | D78: 1.782696761 | E78: 1.836190134 | F78: 1.891262994
A79: Moffat | B79: 0.155042151 | C79: 0.1636691026 | D79: 0.1687981734 | E79: 0.173921967 | F79: 0.1804096111
A80: Mossford | B80: 2.648705479 | C80: 2.730438724 | D80: 2.812337406 | E80: 2.896733409 | F80: 2.983577369
A81: Nant | B81: 2.308345892 | C81: 2.379229008 | D81: 2.450601627 | E81: 2.524074832 | F81: 2.599834052
A82: Necton | B82: 1.034410258 | C82: 1.065835087 | D82: 1.097802189 | E82: 1.130724223 | F82: 1.164632974
A83: New Deer | B83: - | C83: - | D83: 0.6133653542 | E83: 0.6317663148 | F83: 0.6507193042
A84: Rhigos | B84: 0.09334694661 | C84: 0.09611588426 | D84: 0.09901817061 | E84: 0.1019958359 | F84: 0.1050558532
A85: Rocksavage | B85: 0.01627143558 | C85: 0.01677221648 | D85: 0.01727518869 | E85: -0.01779325684 | F85: -0.01832686378
A86: Saltend | B86: 0.3135848687 | C86: 0.3231831189 | D86: 0.3328818382 | E86: 0.342733356 | F86: 0.3531613336
A87: South Humber Bank | B87: 0.8674916006 | C87: 0.8968720968 | D87: 0.9241568247 | E87: 0.9837004244 | F87: 0.3926815496
A88: Spalding | B88: 0.2554067592 | C88: 0.2644765251 | D88: 0.6683674174 | E88: 0.688457287 | F88: 0.2896652355
A89: Stornoway | B89: - | C89: - | D89: - | E89: - | F89: 96.12302664
A90: Strathy Wind | B90: 2.01835207 | C90: 1.948639224 | D90: 1.997084917 | E90: 1.861598599 | F90: 1.902568763
A91: Stronelairg | B91: 1.332406204 | C91: 1.364121307 | D91: 1.403758365 | E91: 1.446627139 | F91: 1.48838624
A92: Tom Na Clach | B92: - | C92: 1.87875956 | D92: 1.935122346 | E92: 1.993143326 | F92: 2.052971297
A93: Ulziside | B93: 8.931636754 | C93: 9.204192701 | D93: 9.480318482 | E93: 9.76494346 | F93: 10.05766988
A94: Wester Dodds | B94: 0.6478985749 | C94: 0.3543459945 | D94: 0.3747628838 | E94: 0.7204112209 | F94: 0.4088945048
A95: Whitelee | B95: 0.09761287399 | C95: 0.1005916079 | D95: 0.1036093561 | E95: 0.1066745659 | F95: 0.1099191659
A96: Whitelee Extension | B96: 0.2713637897 | C96: 0.27964467 | D96: 0.2880340101 | E96: 0.2965552932 | F96: 0.3055752813
A97: Willow | B97: - | C97: - | D97: - | E97: 1.533187174 | F97: 1.57920869

Sheet T7
B2: Table 7 – 2018/19 Onshore Local Substation Tariffs
B4: Substation Rating | C4: Connection Type | D4: Local Substation Tariff (£/kW)
D5: 132kV | E5: 275kV | F5: 400kV
B6: <1320 MW | C6: No redundancy | D6: 0.190298 | E6: 0.108863 | F6: 0.078438
B7: <1320 MW | C7: Redundancy | D7: 0.419211 | E7: 0.259368 | F7: 0.188634
B8: >=1320 MW | C8: No redundancy | D8: 0 | E8: 0.341333 | F8: 0.246853
B9: >=1320 MW | C9: Redundancy | D9: 0 | E9: 0.560381 | F9: 0.409031

Sheet T8
B2: Table 8 – 2018/19 Offshore Local Tariffs
B4: Offshore Generator | C4: Tariff Component (£/kW)
C5: Substation | D5: Circuit | E5: ETUoS
B6: Robin Rigg East | C6: -0.4385401163 | D6: 29.04956409 | E6: 9.003796793
B7: Robin Rigg West | C7: -0.4385401163 | D7: 29.04956409 | E7: 9.003796793
B8: Gunfleet Sands 1 & 2 | C8: 16.5961126 | D8: 15.23653148 | E8: 2.847795347
B9: Barrow | C9: 7.668417334 | D9: 40.12115058 | E9: 0.9962635057
B10: Ormonde | C10: 23.70662723 | D10: 44.16322613 | E10: 0.3519438135
B11: Walney 1 | C11: 20.45994293 | D11: 40.74592448 | E11: 0
B12: Walney 2 | C12: 20.31114366 | D12: 41.10489744 | E12: 0
B13: Thanet | C13: 17.44276947 | D13: 32.50211424 | E13: 0.7824406678
B14: Sheringham Shoal | C14: 22.90471064 | D14: 26.86186011 | E14: 0.5838978869
B15: Greater Gabbard | C15: 14.37738054 | D15: 33.03780477 | E15: 0
B16: London Array | C16: 9.755488197 | D16: 33.2266497 | E16: 0
B17: Lincs | C17: 14.33100059 | D17: 56.10914273 | E17: 0
B18: Humber Gateway | C18: 13.93343856 | D18: 31.43848124 | E18: 0
B19: West of Duddon Sands | C19: 7.89493341 | D19: 38.95660381 | E19: 0
B20: Westermost Rough | C20: 16.62407649 | D20: 28.12082349 | E20: 0
B21: Gwynt Y Mor | C21: 17.50934848 | D21: 17.24887118 | E21: 0

Sheet T9
B2: Table 9 - Small Generator Discount
C4: 2017/18 | D4: 2018/19 | E4: 2019/20 | F4: 2020/21 | G4: 2021/22
B5: Small Generator Discount (£/kW) | C5: -11.351718 | D5: -12.243778 | E5: Discontinued
B6: Included in HH Tariffs below (£/kW) | C6: 0.5522450291 | D6: 0.7021748276
B7: Included in NHH Tariffs below (p/kWh) | C7: 0.07517369566 | D7: 0.09534171288

Sheet T10
B2: Table 10 – Half-Hour Demand Tariffs | J2: Figure 3 - Half Hour Demand Tariffs
B4: Zone | C4: Zone Name | D4: 17/18 | E4: 18/19 | F4: 19/20 | G4: 20/21 | H4: 21/22
D5: (£/kW) | E5: (£/kW) | F5: (£/kW) | G5: (£/kW) | H5: (£/kW)
B6: 1 | C6: Northern Scotland | D6: 29.57767863 | E6: 47.198076 | F6: 53.95794732 | G6: 59.83242616 | H6: 64.77553989
B7: 2 | C7: Southern Scotland | D7: 30.48098129 | E7: 32.06734321 | F7: 37.19688877 | G7: 43.50365607 | H7: 47.00420625
B8: 3 | C8: Northern | D8: 39.22318935 | E8: 43.05894907 | F8: 48.69840662 | G8: 53.61332693 | H8: 58.59938982
B9: 4 | C9: North West | D9: 45.24566539 | E9: 49.96184995 | F9: 55.84268716 | G9: 61.63725448 | H9: 66.93520665
B10: 5 | C10: Yorkshire | D10: 44.96710698 | E10: 49.84491944 | F10: 55.7000584 | G10: 61.17433067 | H10: 66.42763722
B11: 6 | C11: N Wales & Mersey | D11: 46.79111935 | E11: 51.29255848 | F11: 57.17567402 | G11: 63.23714817 | H11: 69.08444745
B12: 7 | C12: East Midlands | D12: 47.88910283 | E12: 53.17835974 | F12: 59.20334138 | G12: 64.972758 | H12: 70.50267295
B13: 8 | C13: Midlands | D13: 49.45744366 | E13: 54.49182327 | F13: 60.48623745 | G13: 66.43464059 | H13: 72.40780754
B14: 9 | C14: Eastern | D14: 49.61707041 | E14: 54.9477073 | F14: 60.66280194 | G14: 66.49182562 | H14: 72.32559248
B15: 10 | C15: South Wales | D15: 45.55188711 | E15: 50.60967347 | F15: 56.36204102 | G15: 62.57542612 | H15: 71.96803643
B16: 11 | C16: South East | D16: 52.53757743 | E16: 57.30500567 | F16: 63.15143213 | G16: 69.1386307 | H16: 75.21021183
B17: 12 | C17: London | D17: 54.96964869 | E17: 60.15625945 | F17: 66.01821343 | G17: 72.08984338 | H17: 78.10738265
B18: 13 | C18: Southern | D18: 53.40507952 | E18: 58.44270875 | F18: 63.85297701 | G18: 69.99740609 | H18: 76.37858443
B19: 14 | C19: South Western | D19: 51.95558267 | E19: 56.88693753 | F19: 63.50648478 | G19: 67.44414935 | H19: 74.77771707

Sheet T11
B2: Table 11 – Non Half-Hour Demand Tariffs | J2: Figure 4 - Non-Half Hour Demand Tariffs
B4: Zone | C4: Zone Name | D4: 17/18 | E4: 18/19 | F4: 19/20 | G4: 20/21 | H4: 21/22
D5: (p/kWh) | E5: (p/kWh) | F5: (p/kWh) | G5: (p/kWh) | H5: (p/kWh)
B6: 1 | C6: Northern Scotland | D6: 6.215608049 | E6: 10.78196168 | F6: 13.48873671 | G6: 16.48353501 | H6: 19.51529179
B7: 2 | C7: Southern Scotland | D7: 4.262746577 | E7: 4.532970641 | F7: 5.325807182 | G7: 6.41039763 | H7: 7.128367373
B8: 3 | C8: Northern | D8: 5.943493235 | E8: 6.665390963 | F8: 7.732845288 | G8: 8.863655656 | H8: 10.07674602
B9: 4 | C9: North West | D9: 5.878185248 | E9: 6.43650186 | F9: 7.118423335 | G9: 7.905337123 | H9: 8.647830504
B10: 5 | C10: Yorkshire | D10: 5.9787826 | E10: 6.563083886 | F10: 7.2486085 | G10: 7.997448178 | H10: 8.730956537
B11: 6 | C11: N Wales & Mersey | D11: 6.607274125 | E11: 7.303181938 | F11: 8.220391049 | G11: 9.329890889 | H11: 10.46399482
B12: 7 | C12: East Midlands | D12: 6.248795531 | E12: 6.832842424 | F12: 7.466920256 | G12: 8.17429185 | H12: 8.853942094
B13: 8 | C13: Midlands | D13: 6.426316703 | E13: 6.962576702 | F13: 7.573578855 | G13: 8.283366795 | H13: 8.995354222
B14: 9 | C14: Eastern | D14: 7.095134424 | E14: 7.889447249 | F14: 8.754835583 | G14: 9.800269338 | H14: 10.89023315
B15: 10 | C15: South Wales | D15: 5.775369528 | E15: 6.318092633 | F15: 6.902293523 | G15: 7.642928584 | H15: 8.775951477
B16: 11 | C16: South East | D16: 7.475219959 | E16: 8.20146796 | F16: 9.102028734 | G16: 10.19773176 | H16: 11.35716533
B17: 12 | C17: London | D17: 5.487378021 | E17: 5.495768703 | F17: 5.366481876 | G17: 5.22763313 | H17: 4.972862005
B18: 13 | C18: Southern | D18: 7.047919709 | E18: 7.623327134 | F18: 8.213596951 | G18: 9.024008668 | H18: 9.875239938
B19: 14 | C19: South Western | D19: 7.464813412 | E19: 8.24040126 | F19: 9.289362253 | G19: 10.12236676 | H19: 11.51919631

Sheet T12
B2: Table 12 - Contracted and Modelled TEC
B4: Best View | C4: 2017/18 | D4: 2018/19 | E4: 2019/20 | F4: 2020/21 | G4: 2021/22
B5: Contracted TEC (GW) | C5: 72.2 | D5: 79.56906 | E5: 91.11576 | F5: 108.65706 | G5: 121.36126
B6: Modelled TEC (GW) | C6: 72.2 | D6: 72.61966 | E6: 73.82956 | F6: 82.90996 | G6: 90.93046
B7: Chargeable TEC (GW) | C7: 67.6 | D7: 66.83466 | E7: 66.94456 | F7: 73.22496 | G7: 77.84546
B10: All TEC | D10: 2018/19 | E10: 2019/20 | F10: 2020/21 | G10: 2021/22
B11: Contracted TEC (GW) | D11: 79.56906 | E11: 91.11576 | F11: 108.65706 | G11: 121.36126
B12: Modelled TEC (GW) | D12: 79.56906 | E12: 91.11576 | F12: 108.65706 | G12: 121.36126
B13: Chargeable TEC (GW) | D13: 73.78406 | E13: 84.23076 | F13: 98.97206 | G13: 108.27626
B16: Sustained Coal | D16: 2018/19 | E16: 2019/20 | F16: 2020/21 | G16: 2021/22
B17: Contracted TEC (GW) | D17: 79.56906 | E17: 91.11576 | F17: 108.65706 | G17: 121.36126
B18: Modelled TEC (GW) | D18: 76.42666 | E18: 79.63656 | F18: 89.24896 | G18: 98.72446
B19: Chargeable TEC (GW) | D19: 70.64166 | E19: 72.75156 | F19: 79.56396 | G19: 85.63946
B22: Accelerated Offshore | D22: 2018/19 | E22: 2019/20 | F22: 2020/21 | G22: 2021/22
B23: Contracted TEC (GW) | D23: 79.56906 | E23: 91.11576 | F23: 108.65706 | G23: 121.36126
B24: Modelled TEC (GW) | D24: 72.74866 | E24: 74.27956 | F24: 83.89996 | G24: 95.19546
B25: Chargeable TEC (GW) | D25: 66.96366 | E25: 67.39456 | F25: 74.21496 | G25: 82.11046

Sheet T13
B2: Table 13 – Calculation of Generator and Demand Revenue Proportions
D4: 2017/18 | E4: 2018/19 | F4: 2019/20 | G4: 2020/21 | H4: 2021/22
B5: CAPEC | C5: Limit on generation tariff (€/MWh) | D5: 2.5 | E5: 2.5 | F5: 2.5 | G5: 2.5 | H5: 2.5
B6: y | C6: Error Margin | D6: 0.21 | E6: 0.21 | F6: 0.21 | G6: 0.21 | H6: 0.21
B7: ER | C7: Exchange Rate (€/£) | D7: 1.27 | E7: 1.11 | F7: 1.1 | G7: 1.09 | H7: 1.09
B8: MAR | C8: Total Revenue (£m) | D8: 2631.483657 | E8: 2833.460889 | F8: 3062.570959 | G8: 3288.699353 | H8: 3475.919049
B9: GO | C9: Generation Output (TWh) | D9: 250.95 | E9: 239.9019902 | F9: 229.3009872 | G9: 216.785607 | H9: 204.3542038
B10: G | C10: % of revenue from generation | D10: =D5*(1-D6)*D9/D7/D8 -> 0.1483029882 | E10: =E5*(1-E6)*E9/E7/E8 -> 0.150647091 | F10: =F5*(1-F6)*F9/F7/F8 -> 0.1344293749 | G10: =G5*(1-G6)*G9/G7/G8 -> 0.1194391968 | H10: =H5*(1-H6)*H9/H7/H8 -> 0.1065257313
B11: D | C11: % of revenue from demand | D11: =1-D10 -> 0.8516970118 | E11: =1-E10 -> 0.849352909 | F11: =1-F10 -> 0.8655706251 | G11: =1-G10 -> 0.8805608032 | H11: =1-H10 -> 0.8934742687
B12: G.MAR | C12: Revenue recovered from generation (£m) | D12: =D8*D10 -> 390.2568898 | E12: =E8*E10 -> 426.8526403 | F12: =F8*F10 -> 411.6994997 | G12: =G8*G10 -> 392.799609 | H12: =H8*H10 -> 370.2748187
B13: D.MAR | C13: Revenue recovered from demand (£m) | D13: =D8*D11 -> 2241.226767 | E13: =E8*E11 -> 2406.608248 | F13: =F8*F11 -> 2650.871459 | G13: =G8*G11 -> 2895.899743 | H13: =H8*H11 -> 3105.64423

Sheet T14
B2: Table 14 – Transmission Owner Revenues
B4: £m Nominal | C4: 2017/18 | D4: 2018/19 | E4: 2019/20 | F4: 2020/21 | G4: 2021/22
B5: National Grid
B6: Price controlled revenue | C6: 1748.757098 | D6: 1727.770785 | E6: 1794.519173 | F6: 1942.02661 | G6: 2008.800812
B7: Less income from connections | C7: 41.8826124 | D7: 41.8826124 | E7: 41.8826124 | F7: 41.8826124 | G7: 41.8826124
B8: Income from TNUoS | C8: 1706.874486 | D8: 1685.888173 | E8: 1752.63656 | F8: 1900.143997 | G8: 1966.918199
B10: Scottish Power Transmission
B11: Price controlled revenue | C11: 333.7 | D11: 390.5406563 | E11: 449.5847646 | F11: 430.5806896 | G11: 465.8094995
B12: Less income from connections | C12: 12.75 | D12: 26.77954198 | E12: 27.75533333 | F12: 28.95355859 | G12: 28.97807263
B13: Income from TNUoS | C13: 320.95 | D13: 363.7611143 | E13: 421.8294313 | F13: 401.627131 | G13: 436.8314268
B15: SHE Transmission
B16: Price controlled revenue | C16: 304.7 | D16: 366.4865595 | E16: 378.0410053 | F16: 375.1657531 | G16: 415.3442429
B17: Less income from connections | C17: 3.35 | D17: 3.244007514 | E17: 2.705529518 | F17: 2.774175277 | G17: 2.870753165
B18: Income from TNUoS | C18: 301.35 | D18: 363.242552 | E18: 375.3354758 | F18: 372.3915778 | G18: 412.4734897
B20: Offshore | C20: 270.2046075 | D20: 380.1660375 | E20: 472.4787188 | F20: 574.0366465 | G20: 619.1959331
B21: Network Innovation Competition | C21: 32.07110048 | D21: 40.5 | E21: 40.5 | F21: 40.5 | G21: 40.5
B22: Total to Collect from TNUoS | C22: 2631.450194 | D22: 2833.557877 | E22: 3062.780186 | F22: 3288.699353 | G22: 3475.919049

Sheet T15
B2: Table 15 – Inflation Indices
B4: 2009/10 | D4: 2017/18 | E4: 2018/19 | F4: 2019/20 | G4: 2020/21 | H4: 2021/22
B5: 1 | D5: 1.271 | E5: 1.309 | F5: 1.343 | G5: 1.384 | H5: 1.426

Sheet T16
B2: Table 16 – Demand Forecasts
C4: 2017/18 | D4: 2018/19 | E4: 2019/20 | F4: 2020/21 | G4: 2021/22
B5: Average System Demand at Triad (GW) | C5: 47.68435089 | D5: 46.43 | E5: 45.43 | F5: 45.15 | G5: 44.97
B6: Average HH Metered Demand at Triad (GW) | C6: 13.22705491 | D6: 14.25 | E6: 15.31 | F6: 16.52 | G6: 17.73
B7: NHH Annual Energy between 4pm and 7pm (TWh) | C7: 25.31320332 | D7: 23.7 | E7: 22.25 | F7: 20.87 | G7: 19.58
B11: `

Sheet T17
B2: Table 17 – Expansion Constants
B4: £/MWkm | C4: 17/18 | D4: 18/19 | E4: 19/20 | F4: 20/21 | G4: 21/22
B5: Expansion Constant | C5: 13.57449607 | D5: 13.98873253 | E5: 14.40839451 | F5: 14.84064634 | G5: 15.28586573

Sheet T18
B2: Table 18 – Interconnector Adjustments
B4: Interconnector | C4: Zone | D4: Adjustment (MW)
B5: Aquind Interconnector | C5: 26 | D5: 2000 from 2021/22
B6: Auchencrosh (interconnector CCT) | C6: 10 | D6: 80
B7: Belgium Interconnector (Nemo) | C7: 24 | D7: 1000 from 2018/19
B8: Britned | C8: 24 | D8: 1200
B9: East West Interconnector | C9: 16 | D9: 505
B10: ElecLink | C10: 24 | D10: 1000
B11: FAB Link Interconnector | C11: 26 | D11: 1400 from 2020/21
B12: IFA Interconnector | C12: 24 | D12: 2000
B13: IFA2 Interconnector | C13: 26 | D13: 1100 from 2019/20
B14: Norway Interconnector | C14: 2 | D14: 1400 from 2021/22
B15: NS Link | C15: 13 | D15: 1400 from 2020/21

Sheet T19
B2: Table 19 - Wider tariffs for a Conventional 80% load factor generator | J2: Figure 1 – Wider tariffs for a conventional 80% generator
B4: Wider Tariffs for a Conventional 80% Generator | D4: 2017/18 | E4: 2018/19 | F4: 2019/20 | G4: 2020/21 | H4: 2021/22
B5: Zone | C5: Zone Name | D5: (£/kW) | E5: (£/kW) | F5: (£/kW) | G5: (£/kW) | H5: (£/kW)
B6: 1 | C6: North Scotland | D6: ='T1'!H6 -> 24.60613718 | E6: ='T2'!H6 -> 29.14794551 | F6: ='T3'!H6 -> 27.84118319 | G6: ='T4'!H6 -> 26.59592452 | H6: ='T5'!H6 -> 30.41139603
B7: 2 | C7: East Aberdeenshire | D7: ='T1'!H7 -> 20.31182908 | E7: ='T2'!H7 -> 24.3620197 | F7: ='T3'!H7 -> 23.61918763 | G7: ='T4'!H7 -> 22.21772876 | H7: ='T5'!H7 -> 24.07961434
B8: 3 | C8: Western Highlands | D8: ='T1'!H8 -> 22.48493002 | E8: ='T2'!H8 -> 27.6051577 | F8: ='T3'!H8 -> 27.3088093 | G8: ='T4'!H8 -> 25.2381049 | H8: ='T5'!H8 -> 28.10182647
B9: 4 | C9: Skye and Lochalsh | D9: ='T1'!H9 -> 16.41217382 | E9: ='T2'!H9 -> 33.17412806 | F9: ='T3'!H9 -> 33.03983437 | G9: ='T4'!H9 -> 31.14850401 | H9: ='T5'!H9 -> 36.10987416
B10: 5 | C10: Eastern Grampian and Tayside | D10: ='T1'!H10 -> 21.6896776 | E10: ='T2'!H10 -> 26.76890908 | F10: ='T3'!H10 -> 26.25543431 | G10: ='T4'!H10 -> 24.25180284 | H10: ='T5'!H10 -> 25.75583179
B11: 6 | C11: Central Grampian | D11: ='T1'!H11 -> 25.78555184 | E11: ='T2'!H11 -> 26.93220935 | F11: ='T3'!H11 -> 26.5267768 | G11: ='T4'!H11 -> 24.75335726 | H11: ='T5'!H11 -> 26.27610601
B12: 7 | C12: Argyll | D12: ='T1'!H12 -> 31.67018719 | E12: ='T2'!H12 -> 33.41002495 | F12: ='T3'!H12 -> 33.16473812 | G12: ='T4'!H12 -> 31.82219253 | H12: ='T5'!H12 -> 32.95389743
B13: 8 | C13: The Trossachs | D13: ='T1'!H13 -> 21.5374478 | E13: ='T2'!H13 -> 23.32874976 | F13: ='T3'!H13 -> 22.74972967 | G13: ='T4'!H13 -> 20.8350312 | H13: ='T5'!H13 -> 21.91092444
B14: 9 | C14: Stirlingshire and Fife | D14: ='T1'!H14 -> 14.29669614 | E14: ='T2'!H14 -> 16.81120278 | F14: ='T3'!H14 -> 15.86027592 | G14: ='T4'!H14 -> 13.53158795 | H14: ='T5'!H14 -> 14.26221458
B15: 10 | C15: South West Scotland | D15: ='T1'!H15 -> 19.06878595 | E15: ='T2'!H15 -> 19.82745879 | F15: ='T3'!H15 -> 19.15996858 | G15: ='T4'!H15 -> 16.97860936 | H15: ='T5'!H15 -> 16.62096182
B16: 11 | C16: Lothian and Borders | D16: ='T1'!H16 -> 15.07618408 | E16: ='T2'!H16 -> 14.92803929 | F16: ='T3'!H16 -> 14.01987339 | G16: ='T4'!H16 -> 13.36650794 | H16: ='T5'!H16 -> 12.86324815
B17: 12 | C17: Solway and Cheviot | D17: ='T1'!H17 -> 9.18148758 | E17: ='T2'!H17 -> 10.12332309 | F17: ='T3'!H17 -> 8.760668384 | G17: ='T4'!H17 -> 7.216097249 | H17: ='T5'!H17 -> 6.577889455
B18: 13 | C18: North East England | D18: ='T1'!H18 -> 7.123047464 | E18: ='T2'!H18 -> 6.631087993 | F18: ='T3'!H18 -> 5.219804697 | G18: ='T4'!H18 -> 6.267592707 | H18: ='T5'!H18 -> 5.582268935
B19: 14 | C19: North Lancashire and The Lakes | D19: ='T1'!H19 -> 3.992436424 | E19: ='T2'!H19 -> 3.10353491 | F19: ='T3'!H19 -> 1.673872584 | G19: ='T4'!H19 -> -0.06052830789 | H19: ='T5'!H19 -> -1.029065785
B20: 15 | C20: South Lancashire, Yorkshire and Humber | D20: ='T1'!H20 -> 2.762875101 | E20: ='T2'!H20 -> 1.680889109 | F20: ='T3'!H20 -> 0.2615781593 | G20: ='T4'!H20 -> -0.9638049028 | H20: ='T5'!H20 -> -1.928591434
B21: 16 | C21: North Midlands and North Wales | D21: ='T1'!H21 -> 1.130830957 | E21: ='T2'!H21 -> -0.5712948471 | F21: ='T3'!H21 -> -2.454213346 | G21: ='T4'!H21 -> -3.198128064 | H21: ='T5'!H21 -> -4.467857401
B22: 17 | C22: South Lincolnshire and North Norfolk | D22: ='T1'!H22 -> 0.0717018946 | E22: ='T2'!H22 -> -1.651123005 | F22: ='T3'!H22 -> -3.014038726 | G22: ='T4'!H22 -> -4.065077582 | H22: ='T5'!H22 -> -5.378888196
B23: 18 | C23: Mid Wales and The Midlands | D23: ='T1'!H23 -> -0.783175246 | E23: ='T2'!H23 -> -2.199740229 | F23: ='T3'!H23 -> -3.578807277 | G23: ='T4'!H23 -> -4.442238566 | H23: ='T5'!H23 -> -5.84333803
B24: 19 | C24: Anglesey and Snowdon | D24: ='T1'!H24 -> 1.198275501 | E24: ='T2'!H24 -> 0.3727436511 | F24: ='T3'!H24 -> -0.9893761381 | G24: ='T4'!H24 -> -2.141718485 | H24: ='T5'!H24 -> -3.762019204
B25: 20 | C25: Pembrokeshire | D25: ='T1'!H25 -> 4.087465312 | E25: ='T2'!H25 -> 2.800938262 | F25: ='T3'!H25 -> 1.409131699 | G25: ='T4'!H25 -> -0.02606009505 | H25: ='T5'!H25 -> -4.000433716
B26: 21 | C26: South Wales & Gloucester | D26: ='T1'!H26 -> 1.143835223 | E26: ='T2'!H26 -> -0.2297685359 | F26: ='T3'!H26 -> -1.749869311 | G26: ='T4'!H26 -> -3.300721467 | H26: ='T5'!H26 -> -8.447727188
B27: 22 | C27: Cotswold | D27: ='T1'!H27 -> -3.111253651 | E27: ='T2'!H27 -> -4.700024956 | F27: ='T3'!H27 -> -6.398703808 | G27: ='T4'!H27 -> -8.10876939 | H27: ='T5'!H27 -> -10.09621323
B28: 23 | C28: Central London | D28: ='T1'!H28 -> -9.957978852 | E28: ='T2'!H28 -> -13.47274076 | F28: ='T3'!H28 -> -14.9763768 | G28: ='T4'!H28 -> -16.38756917 | H28: ='T5'!H28 -> -18.12928644
B29: 24 | C29: Essex and Kent | D29: ='T1'!H29 -> -3.86998842 | E29: ='T2'!H29 -> -5.137803918 | F29: ='T3'!H29 -> -6.427076508 | G29: ='T4'!H29 -> -7.755072852 | H29: ='T5'!H29 -> -9.243293344
B30: 25 | C30: Oxfordshire, Surrey and Sussex | D30: ='T1'!H30 -> -5.142265509 | E30: ='T2'!H30 -> -6.58953261 | F30: ='T3'!H30 -> -7.804887503 | G30: ='T4'!H30 -> -9.441126274 | H30: ='T5'!H30 -> -11.05087307
B31: 26 | C31: Somerset and Wessex | D31: ='T1'!H31 -> -6.234460522 | E31: ='T2'!H31 -> -7.14651648 | F31: ='T3'!H31 -> -7.819811629 | G31: ='T4'!H31 -> -8.106763478 | H31: ='T5'!H31 -> -10.37717629
B32: 27 | C32: West Devon and Cornwall | D32: ='T1'!H32 -> -5.89963803 | E32: ='T2'!H32 -> -6.987824417 | F32: ='T3'!H32 -> -9.65689564 | G32: ='T4'!H32 -> -9.153933792 | H32: ='T5'!H32 -> -11.77740695

Sheet T20
B2: Table 20 - Wider tariffs for an Intermittent 40% load factor generator | J2: Figure 2 - Wider tariffs for an intermittent 40% load factor generator
B4: Wider Tariffs for an Intermittent 40% Generator | D4: 2017/18 | E4: 2018/19 | F4: 2019/20 | G4: 2020/21 | H4: 2021/22
B5: Zone | C5: Zone Name | D5: (£/kW) | E5: (£/kW) | F5: (£/kW) | G5: (£/kW) | H5: (£/kW)
B6: 1 | C6: North Scotland | D6: ='T1'!I6 -> 19.83211295 | E6: ='T2'!I6 -> 22.14383043 | F6: ='T3'!I6 -> 20.86556383 | G6: ='T4'!I6 -> 19.75905406 | H6: ='T5'!I6 -> 23.0228978
B7: 2 | C7: East Aberdeenshire | D7: ='T1'!I7 -> 17.28679016 | E7: ='T2'!I7 -> 19.21547556 | F7: ='T3'!I7 -> 18.13615641 | G7: ='T4'!I7 -> 17.12492332 | H7: ='T5'!I7 -> 19.60179634
B8: 3 | C8: Western Highlands | D8: ='T1'!I8 -> 18.85794812 | E8: ='T2'!I8 -> 21.47352515 | F8: ='T3'!I8 -> 20.43745511 | G8: ='T4'!I8 -> 18.85190616 | H8: ='T5'!I8 -> 21.29313921
B9: 4 | C9: Skye and Lochalsh | D9: ='T1'!I9 -> 18.60103002 | E9: ='T2'!I9 -> 27.0347799 | F9: ='T3'!I9 -> 26.16676713 | G9: ='T4'!I9 -> 24.76756452 | H9: ='T5'!I9 -> 29.32362808
B10: 5 | C10: Eastern Grampian and Tayside | D10: ='T1'!I10 -> 17.83497999 | E10: ='T2'!I10 -> 19.52509545 | F10: ='T3'!I10 -> 18.38520084 | G10: ='T4'!I10 -> 16.99552477 | H10: ='T5'!I10 -> 18.64305278
B11: 6 | C11: Central Grampian | D11: ='T1'!I11 -> 19.31115326 | E11: ='T2'!I11 -> 19.53866672 | F11: ='T3'!I11 -> 18.39490217 | G11: ='T4'!I11 -> 17.33466059 | H11: ='T5'!I11 -> 19.05988454
B12: 7 | C12: Argyll | D12: ='T1'!I12 -> 26.9018826 | E12: ='T2'!I12 -> 27.28109245 | F12: ='T3'!I12 -> 26.15605262 | G12: ='T4'!I12 -> 25.47706981 | H12: ='T5'!I12 -> 26.28343744
B13: 8 | C13: The Trossachs | D13: ='T1'!I13 -> 16.54149751 | E13: ='T2'!I13 -> 16.90455517 | F13: ='T3'!I13 -> 15.56036688 | G13: ='T4'!I13 -> 14.30159477 | H13: ='T5'!I13 -> 15.51192301
B14: 9 | C14: Stirlingshire and Fife | D14: ='T1'!I14 -> 12.86505322 | E14: ='T2'!I14 -> 13.11791989 | F14: ='T3'!I14 -> 11.61891808 | G14: ='T4'!I14 -> 9.903014715 | H14: ='T5'!I14 -> 10.23972966
B15: 10 | C15: South West Scotland | D15: ='T1'!I15 -> 14.83389347 | E15: ='T2'!I15 -> 14.62411455 | F15: ='T3'!I15 -> 13.06501344 | G15: ='T4'!I15 -> 11.74482478 | H15: ='T5'!I15 -> 11.95828103
B16: 11 | C16: Lothian and Borders | D16: ='T1'!I16 -> 9.71791207 | E16: ='T2'!I16 -> 9.087155009 | F16: ='T3'!I16 -> 7.821239534 | G16: ='T4'!I16 -> 6.447430903 | H16: ='T5'!I16 -> 6.704275396
B17: 12 | C17: Solway and Cheviot | D17: ='T1'!I17 -> 7.214790605 | E17: ='T2'!I17 -> 6.839991764 | F17: ='T3'!I17 -> 5.263796055 | G17: ='T4'!I17 -> 3.519965947 | H17: ='T5'!I17 -> 3.193068729
B18: 13 | C18: North East England | D18: ='T1'!I18 -> 3.161872068 | E18: ='T2'!I18 -> 2.21173316 | F18: ='T3'!I18 -> 0.4240940033 | G18: ='T4'!I18 -> 0.6012588052 | H18: ='T5'!I18 -> -0.06839477226
B19: 14 | C19: North Lancashire and The Lakes | D19: ='T1'!I19 -> 1.972982895 | E19: ='T2'!I19 -> 0.8790841734 | F19: ='T3'!I19 -> -1.020805818 | G19: ='T4'!I19 -> -3.264966908 | H19: ='T5'!I19 -> -3.95288349
B20: 15 | C20: South Lancashire, Yorkshire and Humber | D20: ='T1'!I20 -> -1.462206822 | E20: ='T2'!I20 -> -2.794685369 | F20: ='T3'!I20 -> -4.400871925 | G20: ='T4'!I20 -> -5.489043945 | H20: ='T5'!I20 -> -6.895916847
B21: 16 | C21: North Midlands and North Wales | D21: ='T1'!I21 -> -2.234294099 | E21: ='T2'!I21 -> -3.473000626 | F21: ='T3'!I21 -> -5.170926136 | G21: ='T4'!I21 -> -6.327956109 | H21: ='T5'!I21 -> -7.73979361
B22: 17 | C22: South Lincolnshire and North Norfolk | D22: ='T1'!I22 -> -1.987963776 | E22: ='T2'!I22 -> -3.157540192 | F22: ='T3'!I22 -> -4.524347954 | G22: ='T4'!I22 -> -5.926556788 | H22: ='T5'!I22 -> -7.757802357
B23: 18 | C23: Mid Wales and The Midlands | D23: ='T1'!I23 -> -1.933336166 | E23: ='T2'!I23 -> -3.074835913 | F23: ='T3'!I23 -> -4.477997094 | G23: ='T4'!I23 -> -6.001912515 | H23: ='T5'!I23 -> -7.453092152
B24: 19 | C24: Anglesey and Snowdon | D24: ='T1'!I24 -> -2.535506245 | E24: ='T2'!I24 -> -3.754879663 | F24: ='T3'!I24 -> -5.663436948 | G24: ='T4'!I24 -> -6.680315547 | H24: ='T5'!I24 -> -7.807594381
B25: 20 | C25: Pembrokeshire | D25: ='T1'!I25 -> -3.407658739 | E25: ='T2'!I25 -> -4.751140966 | F25: ='T3'!I25 -> -6.241120396 | G25: ='T4'!I25 -> -7.525174006 | H25: ='T5'!I25 -> -9.931532143
B26: 21 | C26: South Wales & Gloucester | D26: ='T1'!I26 -> -3.431564773 | E26: ='T2'!I26 -> -4.770310276 | F26: ='T3'!I26 -> -6.22317531 | G26: ='T4'!I26 -> -7.526972212 | H26: ='T5'!I26 -> -10.1618342
B27: 22 | C27: Cotswold | D27: ='T1'!I27 -> -7.083998446 | E27: ='T2'!I27 -> -8.793315554 | F27: ='T3'!I27 -> -10.40159558 | G27: ='T4'!I27 -> -11.85343052 | H27: ='T5'!I27 -> -13.89297742
B28: 23 | C28: Central London | D28: ='T1'!I28 -> -6.514496899 | E28: ='T2'!I28 -> -8.604866183 | F28: ='T3'!I28 -> -10.20091404 | G28: ='T4'!I28 -> -11.79011583 | H28: ='T5'!I28 -> -13.59190557
B29: 24 | C29: Essex and Kent | D29: ='T1'!I29 -> -1.027812146 | E29: ='T2'!I29 -> -2.11327008 | F29: ='T3'!I29 -> -3.412228154 | G29: ='T4'!I29 -> -4.644148607 | H29: ='T5'!I29 -> -6.559792214
B30: 25 | C30: Oxfordshire, Surrey and Sussex | D30: ='T1'!I30 -> -2.921334492 | E30: ='T2'!I30 -> -4.141324073 | F30: ='T3'!I30 -> -5.475219187 | G30: ='T4'!I30 -> -6.834775682 | H30: ='T5'!I30 -> -8.691453957
B31: 26 | C31: Somerset and Wessex | D31: ='T1'!I31 -> -3.422541358 | E31: ='T2'!I31 -> -4.591849334 | F31: ='T3'!I31 -> -5.38895793 | G31: ='T4'!I31 -> -6.608744889 | H31: ='T5'!I31 -> -8.578384554
B32: 27 | C32: West Devon and Cornwall | D32: ='T1'!I32 -> -3.974593282 | E32: ='T2'!I32 -> -5.196653573 | F32: ='T3'!I32 -> -6.707650365 | G32: ='T4'!I32 -> -7.595122841 | H32: ='T5'!I32 -> -9.560379767

Sheet T21
B2: Table 21 - Changes in Half-Hour Metered Tariffs
B4: Zone | C4: Zone Name | D4: Difference 17/18 to 18/19 (£/kW) | E4: Difference 18/19 to 19/20 (£/kW) | F4: Difference 19/20 to 20/21 (£/kW) | G4: Difference 20/21 to 21/22 (£/kW)
B5: 1 | C5: Northern Scotland | D5: ='T10'!E6-'T10'!D6 -> 17.62039737 | E5: ='T10'!F6-'T10'!E6 -> 6.759871326 | F5: ='T10'!G6-'T10'!F6 -> 5.874478833 | G5: ='T10'!H6-'T10'!G6 -> 4.943113734
B6: 2 | C6: Southern Scotland | D6: ='T10'!E7-'T10'!D7 -> 1.586361919 | E6: ='T10'!F7-'T10'!E7 -> 5.129545557 | F6: ='T10'!G7-'T10'!F7 -> 6.3067673 | G6: ='T10'!H7-'T10'!G7 -> 3.500550184
B7: 3 | C7: Northern | D7: ='T10'!E8-'T10'!D8 -> 3.835759725 | E7: ='T10'!F8-'T10'!E8 -> 5.639457548 | F7: ='T10'!G8-'T10'!F8 -> 4.914920307 | G7: ='T10'!H8-'T10'!G8 -> 4.986062893
B8: 4 | C8: North West | D8: ='T10'!E9-'T10'!D9 -> 4.716184566 | E8: ='T10'!F9-'T10'!E9 -> 5.88083721 | F8: ='T10'!G9-'T10'!F9 -> 5.79456732 | G8: ='T10'!H9-'T10'!G9 -> 5.297952166
B9: 5 | C9: Yorkshire | D9: ='T10'!E10-'T10'!D10 -> 4.877812459 | E9: ='T10'!F10-'T10'!E10 -> 5.855138963 | F9: ='T10'!G10-'T10'!F10 -> 5.474272269 | G9: ='T10'!H10-'T10'!G10 -> 5.25330655
B10: 6 | C10: N Wales & Mersey | D10: ='T10'!E11-'T10'!D11 -> 4.501439131 | E10: ='T10'!F11-'T10'!E11 -> 5.883115535 | F10: ='T10'!G11-'T10'!F11 -> 6.061474156 | G10: ='T10'!H11-'T10'!G11 -> 5.847299275
B11: 7 | C11: East Midlands | D11: ='T10'!E12-'T10'!D12 -> 5.289256907 | E11: ='T10'!F12-'T10'!E12 -> 6.024981643 | F11: ='T10'!G12-'T10'!F12 -> 5.769416622 | G11: ='T10'!H12-'T10'!G12 -> 5.529914949
B12: 8 | C12: Midlands | D12: ='T10'!E13-'T10'!D13 -> 5.034379609 | E12: ='T10'!F13-'T10'!E13 -> 5.994414179 | F12: ='T10'!G13-'T10'!F13 -> 5.948403138 | G12: ='T10'!H13-'T10'!G13 -> 5.973166958
B13: 9 | C13: Eastern | D13: ='T10'!E14-'T10'!D14 -> 5.330636888 | E13: ='T10'!F14-'T10'!E14 -> 5.715094643 | F13: ='T10'!G14-'T10'!F14 -> 5.829023677 | G13: ='T10'!H14-'T10'!G14 -> 5.833766862
B14: 10 | C14: South Wales | D14: ='T10'!E15-'T10'!D15 -> 5.057786364 | E14: ='T10'!F15-'T10'!E15 -> 5.752367549 | F14: ='T10'!G15-'T10'!F15 -> 6.213385096 | G14: ='T10'!H15-'T10'!G15 -> 9.39261031
B15: 11 | C15: South East | D15: ='T10'!E16-'T10'!D16 -> 4.767428246 | E15: ='T10'!F16-'T10'!E16 -> 5.846426453 | F15: ='T10'!G16-'T10'!F16 -> 5.98719857 | G15: ='T10'!H16-'T10'!G16 -> 6.071581138
B16: 12 | C16: London | D16: ='T10'!E17-'T10'!D17 -> 5.186610756 | E16: ='T10'!F17-'T10'!E17 -> 5.861953982 | F16: ='T10'!G17-'T10'!F17 -> 6.071629949 | G16: ='T10'!H17-'T10'!G17 -> 6.017539275
B17: 13 | C17: Southern | D17: ='T10'!E18-'T10'!D18 -> 5.037629231 | E17: ='T10'!F18-'T10'!E18 -> 5.410268261 | F17: ='T10'!G18-'T10'!F18 -> 6.144429079 | G17: ='T10'!H18-'T10'!G18 -> 6.38117834
B18: 14 | C18: South Western | D18: ='T10'!E19-'T10'!D19 -> 4.931354859 | E18: ='T10'!F19-'T10'!E19 -> 6.619547251 | F18: ='T10'!G19-'T10'!F19 -> 3.937664578 | G18: ='T10'!H19-'T10'!G19 -> 7.333567713

Sheet T22
B2: Table 22 - Changes in Non-Half-hour Metered Tariffs
B4: Zone | C4: Zone Name | D4: Difference 17/18 to 18/19 | E4: Difference 18/19 to 19/20 | F4: Difference 19/20 to 20/21 | G4: Difference 20/21 to 21/22
D5: (p/kWh) | E5: (p/kWh) | F5: (p/kWh) | G5: (p/kWh)
B6: 1 | C6: Northern Scotland | D6: ='T11'!E6-'T11'!D6 -> 4.566353629 | E6: ='T11'!F6-'T11'!E6 -> 2.706775034 | F6: ='T11'!G6-'T11'!F6 -> 2.9947983 | G6: ='T11'!H6-'T11'!G6 -> 3.031756775
B7: 2 | C7: Southern Scotland | D7: ='T11'!E7-'T11'!D7 -> 0.2702240645 | E7: ='T11'!F7-'T11'!E7 -> 0.7928365406 | F7: ='T11'!G7-'T11'!F7 -> 1.084590448 | G7: ='T11'!H7-'T11'!G7 -> 0.7179697435
B8: 3 | C8: Northern | D8: ='T11'!E8-'T11'!D8 -> 0.7218977277 | E8: ='T11'!F8-'T11'!E8 -> 1.067454325 | F8: ='T11'!G8-'T11'!F8 -> 1.130810367 | G8: ='T11'!H8-'T11'!G8 -> 1.213090368
B9: 4 | C9: North West | D9: ='T11'!E9-'T11'!D9 -> 0.5583166122 | E9: ='T11'!F9-'T11'!E9 -> 0.6819214749 | F9: ='T11'!G9-'T11'!F9 -> 0.7869137879 | G9: ='T11'!H9-'T11'!G9 -> 0.7424933815
B10: 5 | C10: Yorkshire | D10: ='T11'!E10-'T11'!D10 -> 0.584301286 | E10: ='T11'!F10-'T11'!E10 -> 0.6855246143 | F10: ='T11'!G10-'T11'!F10 -> 0.7488396775 | G10: ='T11'!H10-'T11'!G10 -> 0.733508359
B11: 6 | C11: N Wales & Mersey | D11: ='T11'!E11-'T11'!D11 -> 0.6959078123 | E11: ='T11'!F11-'T11'!E11 -> 0.9172091115 | F11: ='T11'!G11-'T11'!F11 -> 1.10949984 | G11: ='T11'!H11-'T11'!G11 -> 1.134103931
B12: 7 | C12: East Midlands | D12: ='T11'!E12-'T11'!D12 -> 0.5840468928 | E12: ='T11'!F12-'T11'!E12 -> 0.6340778328 | F12: ='T11'!G12-'T11'!F12 -> 0.707371593 | G12: ='T11'!H12-'T11'!G12 -> 0.6796502446
B13: 8 | C13: Midlands | D13: ='T11'!E13-'T11'!D13 -> 0.5362599987 | E13: ='T11'!F13-'T11'!E13 -> 0.6110021534 | F13: ='T11'!G13-'T11'!F13 -> 0.7097879396 | G13: ='T11'!H13-'T11'!G13 -> 0.7119874274
B14: 9 | C14: Eastern | D14: ='T11'!E14-'T11'!D14 -> 0.7943128247 | E14: ='T11'!F14-'T11'!E14 -> 0.865388334 | F14: ='T11'!G14-'T11'!F14 -> 1.045433755 | G14: ='T11'!H14-'T11'!G14 -> 1.089963813
B15: 10 | C15: South Wales | D15: ='T11'!E15-'T11'!D15 -> 0.5427231052 | E15: ='T11'!F15-'T11'!E15 -> 0.5842008897 | F15: ='T11'!G15-'T11'!F15 -> 0.7406350611 | G15: ='T11'!H15-'T11'!G15 -> 1.133022893
B16: 11 | C16: South East | D16: ='T11'!E16-'T11'!D16 -> 0.7262480012 | E16: ='T11'!F16-'T11'!E16 -> 0.9005607736 | F16: ='T11'!G16-'T11'!F16 -> 1.095703029 | G16: ='T11'!H16-'T11'!G16 -> 1.159433565
B17: 12 | C17: London | D17: ='T11'!E17-'T11'!D17 -> 0.008390681908 | E17: ='T11'!F17-'T11'!E17 -> -0.1292868278 | F17: ='T11'!G17-'T11'!F17 -> -0.1388487451 | G17: ='T11'!H17-'T11'!G17 -> -0.254771125
B18: 13 | C18: Southern | D18: ='T11'!E18-'T11'!D18 -> 0.5754074244 | E18: ='T11'!F18-'T11'!E18 -> 0.5902698168 | F18: ='T11'!G18-'T11'!F18 -> 0.8104117175 | G18: ='T11'!H18-'T11'!G18 -> 0.85123127
B19: 14 | C19: South Western | D19: ='T11'!E19-'T11'!D19 -> 0.7755878477 | E19: ='T11'!F19-'T11'!E19 -> 1.048960993 | F19: ='T11'!G19-'T11'!F19 -> 0.8330045114 | G19: ='T11'!H19-'T11'!G19 -> 1.396829544

Sheet T23
B2: Table 23 - Calculation of Residuals
C4: 2017/18 | D4: 2018/19 | E4: 2019/20 | F4: 2020/21 | G4: 2021/22
B5: RG (£/kW) | C5: =((C9*C7)-C10-C12-C13-C14)/C15 -> -1.853327995 | D5: =((D9*D7)-D10-D12-D13-D14)/D15 -> -3.203600603 | E5: =((E9*E7)-E10-E12-E13-E14)/E15 -> -4.535872715 | F5: =((F9*F7)-F10-F12-F13-F14)/F15 -> -5.948545208 | G5: =((G9*G7)-G10-G12-G13-G14)/G15 -> -7.60615712
B6: RD (£/kW) | C6: =((C9*C8)-C11)/C16 -> 47.30186157 | D6: =((D9*D8)-D11)/D16 -> 52.24268712 | E6: =((E9*E8)-E11)/E16 -> 58.23515539 | F6: =((F9*F8)-F11)/F16 -> 64.6042189 | G6: =((G9*G8)-G11)/G16 -> 69.59179055
B7: G | C7: ='T13'!D10 -> 0.1483029882 | D7: ='T13'!E10 -> 0.150647091 | E7: ='T13'!F10 -> 0.1344293749 | F7: ='T13'!G10 -> 0.1194391968 | G7: ='T13'!H10 -> 0.1065257313
B8: D | C8: ='T13'!D11 -> 0.8516970118 | D8: ='T13'!E11 -> 0.849352909 | E8: ='T13'!F11 -> 0.8655706251 | F8: ='T13'!G11 -> 0.8805608032 | G8: ='T13'!H11 -> 0.8934742687
B9: R (£m) | C9: ='T13'!D8 -> 2631.483657 | D9: ='T13'!E8 -> 2833.460889 | E9: ='T13'!F8 -> 3062.570959 | F9: ='T13'!G8 -> 3288.699353 | G9: ='T13'!H8 -> 3475.919049
B10: ZG (£m) | C10: 274.9672887 | D10: 313.2079284 | E10: 317.6733735 | F10: 343.224493 | G10: 444.987665
B11: ZD (£m) | C11: -14.33179766 | D11: -19.0197144 | E11: 5.248349884 | F11: -20.98074001 | G11: -23.89859084
B12: O (£m) | C12: 208.4681631 | D12: 293.901043 | E12: 365.8194956 | F12: 444.9532622 | G12: 480.3531437
B13: LC (£m) | C13: 14.60596019 | D13: 16.87745251 | E13: 15.97859783 | F13: 21.23699963 | G13: 17.0706702
B14: LS (£m) | C14: 17.50045021 | D14: 16.97777347 | E14: 15.8800359 | F14: 18.96683911 | G14: 19.96813969
B15: BG (£m) | C15: ='T12'!C7 -> 67.6 | D15: ='T12'!D7 -> 66.83466 | E15: ='T12'!E7 -> 66.94456 | F15: ='T12'!F7 -> 73.22496 | G15: ='T12'!G7 -> 77.84546
B16: BD (£m) | C16: ='T16'!C5 -> 47.68435089 | D16: ='T16'!D5 -> 46.43 | E16: ='T16'!E5 -> 45.43 | F16: ='T16'!F5 -> 45.15 | G16: ='T16'!G5 -> 44.97

Sheet T24
B2: Table 24 - 2018/19 Generation Scenarios - Wider Generation Peak 80% Tariffs
B5: Wider Tariffs for a Conventional 80% Generator | D5: Base Case | E5: All TEC | F5: Sustained Coal | G5: Accelerated Wind
B6: Zone | C6: Zone Name | D6: (£/kW) | E6: (£/kW) | F6: (£/kW) | G6: (£/kW)
B7: 1 | C7: North Scotland | D7: 29.14794551 | E7: 29.93143988 | F7: 28.26735761 | G7: 29.14104917
B8: 2 | C8: East Aberdeenshire | D8: 24.3620197 | E8: 25.10860283 | F8: 23.50083882 | G8: 24.35639358
B9: 3 | C9: Western Highlands | D9: 27.6051577 | E9: 28.28184326 | F9: 26.74944372 | G9: 27.59882057
B10: 4 | C10: Skye and Lochalsh | D10: 33.17412806 | E10: 33.87318244 | F10: 32.32133593 | G10: 33.16788871
B11: 5 | C11: Eastern Grampian and Tayside | D11: 26.76890908 | E11: 27.4941265 | F11: 25.94290021 | G11: 26.76295347
B12: 6 | C12: Central Grampian | D12: 26.93220935 | E12: 27.68151232 | F12: 26.18952918 | G12: 26.92536677
B13: 7 | C13: Argyll | D13: 33.41002495 | E13: 34.22886383 | F13: 32.79938948 | G13: 33.40323332
B14: 8 | C14: The Trossachs | D14: 23.32874976 | E14: 24.0245358 | F14: 22.58433131 | G14: 23.32026137
B15: 9 | C15: Stirlingshire and Fife | D15: 16.81120278 | E15: 17.31631343 | F15: 15.79900542 | G15: 16.80340131
B16: 10 | C16: South West Scotland | D16: 19.82745879 | E16: 20.61635604 | F16: 19.36472472 | G16: 19.81948764
B17: 11 | C17: Lothian and Borders | D17: 14.92803929 | E17: 15.51760988 | F17: 14.87625583 | G17: 14.92556044
B18: 12 | C18: Solway and Cheviot | D18: 10.12332309 | E18: 10.79150897 | F18: 9.783602878 | G18: 10.12303801
B19: 13 | C19: North East England | D19: 6.631087993 | E19: 6.652260501 | F19: 6.93643388 | G19: 6.633379241
B20: 14 | C20: North Lancashire and The Lakes | D20: 3.10353491 | E20: 4.021376861 | F20: 3.007209216 | G20: 3.108985581
B21: 15 | C21: South Lancashire, Yorkshire and Humber | D21: 1.680889109 | E21: 1.681183354 | F21: 1.858458764 | G21: 1.687390448
B22: 16 | C22: North Midlands and North Wales | D22: -0.5712948471 | E22: -0.3423028834 | F22: -0.1038397015 | G22: -0.5636398532
B23: 17 | C23: South Lincolnshire and North Norfolk | D23: -1.651123005 | E23: -1.614747243 | F23: -1.290303569 | G23: -1.644276756
B24: 18 | C24: Mid Wales and The Midlands | D24: -2.199740229 | E24: -2.089332537 | F24: -1.878285121 | G24: -2.179075075
B25: 19 | C25: Anglesey and Snowdon | D25: 0.3727436511 | E25: 1.039097487 | F25: 0.2295079874 | G25: 0.3827948518
B26: 20 | C26: Pembrokeshire | D26: 2.800938262 | E26: 1.368682215 | F26: 2.452158921 | G26: 2.808350033
B27: 21 | C27: South Wales & Gloucester | D27: -0.2297685359 | E27: -1.71641572 | F27: -0.7008793605 | G27: -0.2223754186
B28: 22 | C28: Cotswold | D28: -4.700024956 | E28: -6.295908329 | F28: -5.308145362 | G28: -4.692780766
B29: 23 | C29: Central London | D29: -13.47274076 | E29: -13.51669478 | F29: -13.09333197 | G29: -13.46587901
B30: 24 | C30: Essex and Kent | D30: -5.137803918 | E30: -5.409591125 | F30: -5.001772575 | G30: -5.129933992
B31: 25 | C31: Oxfordshire, Surrey and Sussex | D31: -6.58953261 | E31: -6.732083038 | F31: -6.238299017 | G31: -6.581279561
B32: 26 | C32: Somerset and Wessex | D32: -7.14651648 | E32: -9.081245904 | F32: -8.362989984 | G32: -7.140089236
B33: 27 | C33: West Devon and Cornwall | D33: -6.987824417 | E33: -10.30411873 | F33: -9.538835867 | G33: -6.980541164

Sheet T25
B2: Table 25 - 2018/19 Generation Scenarios - Wider Generation Intermittent 40% Tariffs
B5: Wider Tariffs for an Intermittent 40% Generator | D5: Base Case | E5: All TEC | F5: Sustained Coal | G5: Accelerated Wind
B6: Zone | C6: Zone Name | D6: (£/kW) | E6: (£/kW) | F6: (£/kW) | G6: (£/kW)
B7: 1 | C7: North Scotland | D7: 22.14383043 | E7: 22.77879635 | F7: 21.67450086 | G7: 22.13843259
B8: 2 | C8: East Aberdeenshire | D8: 19.21547556 | E8: 19.83316166 | F8: 18.75854994 | G8: 19.21071283
B9: 3 | C9: Western Highlands | D9: 21.47352515 | E9: 22.03015791 | F9: 21.01921188 | G9: 21.46851688
B10: 4 | C10: Skye and Lochalsh | D10: 27.0347799 | E10: 27.6136177 | F10: 26.58310194 | G10: 27.0298694
B11: 5 | C11: Eastern Grampian and Tayside | D11: 19.52509545 | E11: 20.10302594 | F11: 19.08478818 | G11: 19.52037863
B12: 6 | C12: Central Grampian | D12: 19.53866672 | E12: 20.11695828 | F12: 19.13614044 | G12: 19.53323276
B13: 7 | C13: Argyll | D13: 27.28109245 | E13: 27.91180579 | F13: 26.98224264 | G13: 27.27601785
B14: 8 | C14: The Trossachs | D14: 16.90455517 | E14: 17.42304899 | F14: 16.48849569 | G14: 16.8977838
B15: 9 | C15: Stirlingshire and Fife | D15: 13.11791989 | E15: 13.5270177 | F15: 12.60305324 | G15: 13.11165637
B16: 10 | C16: South West Scotland | D16: 14.62411455 | E16: 15.1726047 | F16: 14.31497312 | G16: 14.61772893
B17: 11 | C17: Lothian and Borders | D17: 9.087155009 | E17: 9.58594584 | F17: 8.902152113 | G17: 9.086261683
B18: 12 | C18: Solway and Cheviot | D18: 6.839991764 | E18: 7.118289113 | F18: 6.561656878 | G18: 6.840347191
B19: 13 | C19: North East England | D19: 2.21173316 | E19: 2.181616532 | F19: 2.129466805 | G19: 2.214358988
B20: 14 | C20: North Lancashire and The Lakes | D20: 0.8790841734 | E20: 1.091549599 | F20: 0.693898563 | G20: 0.8848694247
B21: 15 | C21: South Lancashire, Yorkshire and Humber | D21: -2.794685369 | E21: -2.737045127 | F21: -2.900381825 | G21: -2.788309909
B22: 16 | C22: North Midlands and North Wales | D22: -3.473000626 | E22: -3.506229775 | F22: -3.457306699 | G22: -3.465975889
B23: 17 | C23: South Lincolnshire and North Norfolk | D23: -3.157540192 | E23: -3.360935752 | F23: -3.172715123 | G23: -3.150919828
B24: 18 | C24: Mid Wales and The Midlands | D24: -3.074835913 | E24: -3.198387536 | F24: -3.029707604 | G24: -3.061306097
B25: 19 | C25: Anglesey and Snowdon | D25: -3.754879663 | E25: -3.577641486 | F25: -3.553753279 | G25: -3.746656823
B26: 20 | C26: Pembrokeshire | D26: -4.751140966 | E26: -5.121141223 | F26: -4.796761842 | G26: -4.744237841
B27: 21 | C27: South Wales & Gloucester | D27: -4.770310276 | E27: -5.1209255 | F27: -4.847422877 | G27: -4.763416478
B28: 22 | C28: Cotswold | D28: -8.793315554 | E28: -9.342232855 | F28: -9.019600556 | G28: -8.786809088
B29: 23 | C29: Central London | D29: -8.604866183 | E29: -8.662411445 | F29: -8.479165937 | G29: -8.598742155
B30: 24 | C30: Essex and Kent | D30: -2.11327008 | E30: -2.305463613 | F30: -2.134035838 | G30: -2.106137877
B31: 25 | C31: Oxfordshire, Surrey and Sussex | D31: -4.141324073 | E31: -4.26378198 | F31: -4.095789271 | G31: -4.134000309
B32: 26 | C32: Somerset and Wessex | D32: -4.591849334 | E32: -5.048422009 | F32: -4.861110908 | G32: -4.585438473
B33: 27 | C33: West Devon and Cornwall | D33: -5.196653573 | E33: -5.94817486 | F33: -5.765901917 | G33: -5.189814707

Sheet T26
B2: Table 26 - 2018/19 Generation Scenarios - HH Demand Tariffs
D4: Base Case | E4: All TEC | F4: Sustained Coal | G4: Accelerated Wind
B5: Zone No. | C5: Zone Name | D5: HH Zonal Tariff (£/kW) | E5: HH Zonal Tariff (£/kW) | F5: HH Zonal Tariff (£/kW) | G5: HH Zonal Tariff (£/kW)
B6: 1 | C6: Northern Scotland | D6: 47.198076 | E6: 46.31388413 | F6: 48.15318637 | G6: 47.20833009
B7: 2 | C7: Southern Scotland | D7: 32.06734321 | E7: 31.19870294 | F7: 32.81175024 | G7: 32.07989515
B8: 3 | C8: Northern | D8: 43.05894907 | E8: 42.74122559 | F8: 42.94506719 | G8: 43.06228322
B9: 4 | C9: North West | D9: 49.96184995 | E9: 49.09525067 | F9: 49.84282024 | G9: 49.96130717
B10: 5 | C10: Yorkshire | D10: 49.84491944 | E10: 49.70248584 | F10: 49.52144485 | G10: 49.8444789
B11: 6 | C11: N Wales & Mersey | D11: 51.29255848 | E11: 50.35368083 | F11: 51.24572781 | G11: 51.28900877
B12: 7 | C12: East Midlands | D12: 53.17835974 | E12: 52.88542309 | F12: 52.85087271 | G12: 53.17714567
B13: 8 | C13: Midlands | D13: 54.49182327 | E13: 54.05148277 | F13: 54.4284464 | G13: 54.48974811
B14: 9 | C14: Eastern | D14: 54.9477073 | E14: 54.90265104 | F14: 54.50211909 | G14: 54.94675835
B15: 10 | C15: South Wales | D15: 50.60967347 | E15: 52.10802595 | F15: 50.98811159 | G15: 50.60818264
B16: 11 | C16: South East | D16: 57.30500567 | E16: 57.78346026 | F16: 57.27958657 | G16: 57.30388662
B17: 12 | C17: London | D17: 60.15625945 | E17: 60.19485702 | F17: 59.75502956 | G17: 60.15521742
B18: 13 | C18: Southern | D18: 58.44270875 | E18: 59.14754755 | F18: 58.59684325 | G18: 58.44145485
B19: 14 | C19: South Western | D19: 56.88693753 | E19: 59.15998609 | F19: 58.30026133 | G19: 56.8855539

Sheet T27
B2: Table 27 - 2018/19 Generation Scenarios - NHH Demand Tariffs
D4: Base Case | E4: All TEC | F4: Sustained Coal | G4: Accelerated Wind
B5: Zone No. | C5: Zone Name | D5: NHH Zonal Tariff (£/kW) | E5: NHH Zonal Tariff (£/kW) | F5: NHH Zonal Tariff (£/kW) | G5: NHH Zonal Tariff (£/kW)
B6: 1 | C6: Northern Scotland | D6: 10.78196168 | E6: 10.57884433 | F6: 11.00156167 | G6: 10.78431119
B7: 2 | C7: Southern Scotland | D7: 4.532970641 | E7: 4.410079451 | F7: 4.638296054 | G7: 4.534746082
B8: 3 | C8: Northern | D8: 6.665390963 | E8: 6.616129851 | F8: 6.647742405 | G8: 6.665906632
B9: 4 | C9: North West | D9: 6.43650186 | E9: 6.324937302 | F9: 6.421173455 | G9: 6.436432535
B10: 5 | C10: Yorkshire | D10: 6.563083886 | E10: 6.544333341 | F10: 6.520507535 | G10: 6.56302623
B11: 6 | C11: N Wales & Mersey | D11: 7.303181938 | E11: 7.169423301 | F11: 7.296515267 | G11: 7.302675676
B12: 7 | C12: East Midlands | D12: 6.832842424 | E12: 6.795223546 | F12: 6.790789765 | G12: 6.83268712
B13: 8 | C13: Midlands | D13: 6.962576702 | E13: 6.906350076 | F13: 6.954478809 | G13: 6.962312398
B14: 9 | C14: Eastern | D14: 7.889447249 | E14: 7.882982327 | F14: 7.825430752 | G14: 7.889310289
B15: 10 | C15: South Wales | D15: 6.318092633 | E15: 6.50490332 | F15: 6.365269324 | G15: 6.317907608
B16: 11 | C16: South East | D16: 8.20146796 | E16: 8.269996058 | F16: 8.197833787 | G16: 8.201307124
B17: 12 | C17: London | D17: 5.495768703 | E17: 5.499224315 | F17: 5.459286584 | G17: 5.495677537
B18: 13 | C18: Southern | D18: 7.623327134 | E18: 7.715215211 | F18: 7.643418142 | G18: 7.623164074
B19: 14 | C19: South Western | D19: 8.24040126 | E19: 8.569933561 | F19: 8.445297225 | G19: 8.240199963

Sheet T28
B2: Table 28 - 2019/20 Generation Scenarios - Wider Generation Peak 80% Tariffs
B5: Wider Tariffs for a Conventional 80% Generator | D5: Base Case | E5: All TEC | F5: Sustained Coal | G5: Accelerated Wind
B6: Zone | C6: Zone Name | D6: (£/kW) | E6: (£/kW) | F6: (£/kW) | G6: (£/kW)
B7: 1 | C7: North Scotland | D7: 28.54333127 | E7: 28.10967505 | F7: 27.72482181 | G7: 27.90052106
B8: 2 | C8: East Aberdeenshire | D8: 24.20919598 | E8: 23.18594659 | F8: 23.55736873 | G8: 23.68299837
B9: 3 | C9: Western Highlands | D9: 28.00674517 | E9: 26.91798774 | F9: 27.21997511 | G9: 27.37055481
B10: 4 | C10: Skye and Lochalsh | D10: 33.73509228 | E10: 32.67817568 | F10: 32.95451439 | G10: 33.10195991
B11: 5 | C11: Eastern Grampian and Tayside | D11: 26.90510338 | E11: 25.71807589 | F11: 26.13278485 | G11: 26.3189385
B12: 6 | C12: Central Grampian | D12: 27.17295565 | E12: 25.64975882 | F12: 26.34276347 | G12: 26.58953016
B13: 7 | C13: Argyll | D13: 33.79913989 | E13: 32.26031398 | F13: 33.11833123 | G13: 33.23094036
B14: 8 | C14: The Trossachs | D14: 23.41409911 | E14: 21.82806268 | F14: 22.53922955 | G14: 22.80702247
B15: 9 | C15: Stirlingshire and Fife | D15: 16.5169367 | E15: 14.98609606 | F15: 15.63020067 | G15: 15.91161168
B16: 10 | C16: South West Scotland | D16: 19.83224702 | E16: 18.07879576 | F16: 18.58899065 | G16: 19.22302613
B17: 11 | C17: Lothian and Borders | D17: 14.60903758 | E17: 13.84945742 | F17: 13.96231895 | G17: 14.08371912
B18: 12 | C18: Solway and Cheviot | D18: 9.332594825 | E18: 8.967150965 | F18: 8.762682941 | G18: 8.826172177
B19: 13 | C19: North East England | D19: 5.766732346 | E19: 5.460037138 | F19: 5.573490988 | G19: 5.286266543
B20: 14 | C20: North Lancashire and The Lakes | D20: 2.196523292 | E20: 2.290216176 | F20: 1.770337335 | G20: 1.742539633
B21: 15 | C21: South Lancashire, Yorkshire and Humber | D21: 0.7846748718 | E21: 0.8733161778 | F21: 0.5284591046 | G21: 0.3322010839
B22: 16 | C22: North Midlands and North Wales | D22: -2.001358981 | E22: -1.134228631 | F22: -1.466754382 | G22: -2.327810775
B23: 17 | C23: South Lincolnshire and North Norfolk | D23: -2.650169769 | E23: -2.28213669 | F23: -2.603818548 | G23: -2.945224788
B24: 18 | C24: Mid Wales and The Midlands | D24: -3.176255629 | E24: -2.272249853 | F24: -3.104174508 | G24: -3.478046883
B25: 19 | C25: Anglesey and Snowdon | D25: -0.3873440851 | E25: -0.1913979789 | F25: -1.116498482 | G25: -0.9094051608
B26: 20 | C26: Pembrokeshire | D26: -1.300087978 | E26: -0.7624977188 | F26: 0.773691485 | G26: 1.488399185
B27: 21 | C27: South Wales & Gloucester | D27: -5.443782607 | E27: -3.575764717 | F27: -2.518245483 | G27: -1.67062534
B28: 22 | C28: Cotswold | D28: -7.066355343 | E28: -7.965294214 | F28: -7.310740789 | G28: -6.320710486
B29: 23 | C29: Central London | D29: -14.87384617 | E29: -14.10366054 | F29: -14.59746793 | G29: -14.89860713
B30: 24 | C30: Essex and Kent | D30: -6.388216448 | E30: -5.581406402 | F30: -6.125066947 | G30: -6.345896783
B31: 25 | C31: Oxfordshire, Surrey and Sussex | D31: -8.237980429 | E31: -7.324445089 | F31: -7.728016413 | G31: -7.721107943
B32: 26 | C32: Somerset and Wessex | D32: -8.830031966 | E32: -8.524006962 | F32: -8.358125905 | G32: -7.743010393
B33: 27 | C33: West Devon and Cornwall | D33: -10.8823997 | E33: -12.72542793 | F33: -11.93506074 | G33: -9.577711805

Sheet T29
B2: Table 29 - 2019/20 Generation Scenarios - Wider Generation Intermittent 40% Tariffs
B5: Wider Tariffs for an Intermittent 40% Generator | D5: Base Case | E5: All TEC | F5: Sustained Coal | G5: Accelerated Wind
B6: Zone | C6: Zone Name | D6: (£/kW) | E6: (£/kW) | F6: (£/kW) | G6: (£/kW)
B7: 1 | C7: North Scotland | D7: 20.77804665 | E7: 22.92978997 | F7: 21.14627244 | G7: 20.92977368
B8: 2 | C8: East Aberdeenshire | D8: 18.02699924 | E8: 20.2906905 | F8: 18.4352551 | G8: 18.20263778
B9: 3 | C9: Western Highlands | D9: 20.35622165 | E9: 21.97763831 | F9: 20.7460111 | G9: 20.5034136
B10: 4 | C10: Skye and Lochalsh | D10: 26.08387254 | E10: 27.73760896 | F10: 26.4794498 | G10: 26.23310249
B11: 5 | C11: Eastern Grampian and Tayside | D11: 18.286304 | E11: 19.87884287 | F11: 18.72405736 | G11: 18.45242778
B12: 6 | C12: Central Grampian | D12: 18.28675639 | E12: 19.93686546 | F12: 18.85657677 | G12: 18.46110042
B13: 7 | C13: Argyll | D13: 26.02686577 | E13: 27.75637769 | F13: 26.73282162 | G13: 26.22622467
B14: 8 | C14: The Trossachs | D14: 15.46531687 | E14: 16.90726547 | F14: 15.95101812 | G14: 15.62187524
B15: 9 | C15: Stirlingshire and Fife | D15: 11.53818119 | E15: 12.43860418 | F15: 11.73915713 | G15: 11.67698332
B16: 10 | C16: South West Scotland | D16: 12.95357482 | E16: 14.4687275 | F16: 13.45591241 | G16: 13.12932434
B17: 11 | C17: Lothian and Borders | D17: 7.721499743 | E17: 8.660804654 | F17: 7.724054437 | G17: 7.892285005
B18: 12 | C18: Solway and Cheviot | D18: 5.129687559 | E18: 6.040645697 | F18: 5.279047552 | G18: 5.332283955
B19: 13 | C19: North East England | D19: 0.3916104884 | E19: 1.087672082 | F19: 0.502556168 | G19: 0.5053961048
B20: 14 | C20: North Lancashire and The Lakes | D20: -1.363673915 | E20: -0.2480466189 | F20: -0.7688420481 | G20: -0.958647006
B21: 15 | C21: South Lancashire, Yorkshire and Humber | D21: -4.435528585 | E21: -3.872259611 | F21: -4.431868882 | G21: -4.315069265
B22: 16 | C22: North Midlands and North Wales | D22: -5.314329203 | E22: -4.510071739 | F22: -4.993341702 | G22: -5.071269632
B23: 17 | C23: South Lincolnshire and North Norfolk | D23: -4.471900239 | E23: -4.316637568 | F23: -4.638693754 | G23: -4.437125716
B24: 18 | C24: Mid Wales and The Midlands | D24: -4.441339971 | E24: -3.63666958 | F24: -4.452269626 | G24: -4.392704344
B25: 19 | C25: Anglesey and Snowdon | D25: -5.987545122 | E25: -4.419200276 | F25: -5.101543161 | G25: -5.589119895
B26: 20 | C26: Pembrokeshire | D26: -6.575836378 | E26: -6.42279657 | F26: -6.256542062 | G26: -6.169295617
B27: 21 | C27: South Wales & Gloucester | D27: -6.67188528 | E27: -6.342619699 | F27: -6.281973564 | G27: -6.151377269
B28: 22 | C28: Cotswold | D28: -10.2368549 | E28: -10.84847618 | F28: -10.6105053 | G28: -10.33358276
B29: 23 | C29: Central London | D29: -10.08113996 | E29: -9.960472362 | F29: -10.17073835 | G29: -10.13241203
B30: 24 | C30: Essex and Kent | D30: -3.357536693 | E30: -3.198560765 | F30: -3.430193185 | G30: -3.337917847
B31: 25 | C31: Oxfordshire, Surrey and Sussex | D31: -5.449336951 | E31: -5.190122798 | F31: -5.458576711 | G31: -5.4014699
B32: 26 | C32: Somerset and Wessex | D32: -5.428821405 | E32: -5.374699205 | F32: -5.479065681 | G32: -5.318317564
B33: 27 | C33: West Devon and Cornwall | D33: -6.784705316 | E33: -7.19772892 | F33: -7.173182532 | G33: -6.635846654

Sheet T30
B2: Table 30 - 2019/20 Generation Scenarios - HH Demand Tariffs
D4: Base Case | E4: All TEC | F4: Sustained Coal | G4: Accelerated Wind
B5: Zone No. | C5: Zone Name | D5: HH Zonal Tariff (£/kW) | E5: HH Zonal Tariff (£/kW) | F5: HH Zonal Tariff (£/kW) | G5: HH Zonal Tariff (£/kW)
B6: 1 | C6: Northern Scotland | D6: 54.74066363 | E6: 55.52358904 | F6: 54.8193239 | G6: 54.74526601
B7: 2 | C7: Southern Scotland | D7: 37.97960508 | E7: 38.73935995 | F7: 38.13884244 | G7: 37.98803832
B8: 3 | C8: Northern | D8: 49.48112293 | E8: 49.63513689 | F8: 49.47048663 | G8: 49.48408371
B9: 4 | C9: North West | D9: 56.62540347 | E9: 56.13100517 | F9: 56.46500492 | G9: 56.62607422
B10: 5 | C10: Yorkshire | D10: 56.48277471 | E10: 55.89786614 | F10: 56.13366134 | G10: 56.48351029
B11: 6 | C11: N Wales & Mersey | D11: 57.95839033 | E11: 57.24659961 | F11: 57.88331142 | G11: 57.95728738
B12: 7 | C12: East Midlands | D12: 59.98605769 | E12: 59.36586343 | F12: 59.59472116 | G12: 59.98633049
B13: 8 | C13: Midlands | D13: 61.26895376 | E13: 60.98278432 | F13: 61.28236764 | G13: 61.26871984
B14: 9 | C14: Eastern | D14: 61.44551825 | E14: 60.77532044 | F14: 61.10982158 | G14: 61.44594866
B15: 10 | C15: South Wales | D15: 57.14475733 | E15: 59.96969572 | F15: 57.98383382 | G15: 57.14486868
B16: 11 | C16: South East | D16: 63.93414844 | E16: 63.70998024 | F16: 63.88389289 | G16: 63.93448083
B17: 12 | C17: London | D17: 66.80092974 | E17: 66.33489382 | F17: 66.55082639 | G17: 66.80130674
B18: 13 | C18: Southern | D18: 64.63569332 | E18: 64.95096837 | F18: 64.9236963 | G18: 64.63594469
B19: 14 | C19: South Western | D19: 64.28920109 | E19: 67.0907721 | F19: 65.74406556 | G19: 64.28937585

Sheet T31
B2: Table 31 - 2019/20 Generation Scenarios - NHH Demand Tariffs
D4: Base Case | E4: All TEC | F4: Sustained Coal | G4: Accelerated Wind
B5: Zone No. | C5: Zone Name | D5: NHH Zonal Tariff (£/kW) | E5: NHH Zonal Tariff (£/kW) | F5: NHH Zonal Tariff (£/kW) | G5: NHH Zonal Tariff (£/kW)
B6: 1 | C6: Northern Scotland | D6: 13.59469363 | E6: 13.78986352 | F6: 13.61426785 | G6: 13.59573043
B7: 2 | C7: Southern Scotland | D7: 5.431764104 | E7: 5.540507413 | F7: 5.454557409 | G7: 5.432963818
B8: 3 | C8: Northern | D8: 7.838802211 | E8: 7.863145665 | F8: 7.837094926 | G8: 7.839249116
B9: 4 | C9: North West | D9: 7.224380257 | E9: 7.161395865 | F9: 7.203939991 | G9: 7.224473596
B10: 5 | C10: Yorkshire | D10: 7.354565423 | E10: 7.278472636 | F10: 7.309137144 | G10: 7.354666343
B11: 6 | C11: N Wales & Mersey | D11: 8.326347972 | E11: 8.22397041 | F11: 8.315546976 | G11: 8.326181058
B12: 7 | C12: East Midlands | D12: 7.572877179 | E12: 7.494700661 | F12: 7.523527771 | G12: 7.572920761
B13: 8 | C13: Midlands | D13: 7.679535778 | E13: 7.643752846 | F13: 7.681223308 | G13: 7.679516569
B14: 9 | C14: Eastern | D14: 8.860792505 | E14: 8.764026789 | F14: 8.812337865 | G14: 8.860845742
B15: 10 | C15: South Wales | D15: 7.008250445 | E15: 7.354264327 | F15: 7.111016808 | G15: 7.008276889
B16: 11 | C16: South East | D16: 9.207985656 | E16: 9.17563417 | F16: 9.200735454 | G16: 9.208024873
B17: 12 | C17: London | D17: 5.472438798 | E17: 5.434815519 | F17: 5.452150777 | G17: 5.472523109
B18: 13 | C18: Southern | D18: 8.319553873 | E18: 8.360141 | F18: 8.356605823 | G18: 8.319592893
B19: 14 | C19: South Western | D19: 9.395319175 | E19: 9.805064445 | F19: 9.608119819 | G19: 9.395333919

Sheet T32
B2: Table 32 - 2020/21 Generation Scenarios - Wider Generation Peak 80% Tariffs
B5: Wider Tariffs for a Conventional 80% Generator | D5: Base Case | E5: All TEC | F5: Sustained Coal | G5: Accelerated Wind
B6: Zone | C6: Zone Name | D6: (£/kW) | E6: (£/kW) | F6: (£/kW) | G6: (£/kW)
B7: 1 | C7: North Scotland | D7: 26.59592452 | E7: 30.55258811 | F7: 26.49467718 | G7: 26.66848347
B8: 2 | C8: East Aberdeenshire | D8: 22.21772876 | E8: 25.98873392 | F8: 22.53542209 | G8: 22.29824384
B9: 3 | C9: Western Highlands | D9: 25.2381049 | E9: 27.29688446 | F9: 25.57521703 | G9: 25.3130181
B10: 4 | C10: Skye and Lochalsh | D10: 31.14850401 | E10: 33.26195709 | F10: 31.49334146 | G10: 31.22412094
B11: 5 | C11: Eastern Grampian and Tayside | D11: 24.25180284 | E11: 26.28131572 | F11: 24.77710481 | G11: 24.32871121
B12: 6 | C12: Central Grampian | D12: 24.75335726 | E12: 26.78945913 | F12: 25.18292554 | G12: 24.83047004
B13: 7 | C13: Argyll | D13: 31.82219253 | E13: 36.50542636 | F13: 32.19171843 | G13: 31.90857491
B14: 8 | C14: The Trossachs | D14: 20.8350312 | E14: 22.72165478 | F14: 21.2089577 | G14: 20.90141438
B15: 9 | C15: Stirlingshire and Fife | D15: 13.53158795 | E15: 15.11805725 | F15: 13.8122974 | G15: 13.57269856
B16: 10 | C16: South West Scotland | D16: 16.97860936 | E16: 18.16128703 | F16: 17.34084963 | G16: 17.05218545
B17: 11 | C17: Lothian and Borders | D17: 13.36650794 | E17: 14.25985377 | F17: 13.87296431 | G17: 13.44669533
B18: 12 | C18: Solway and Cheviot | D18: 7.216097249 | E18: 8.782410432 | F18: 7.696658245 | G18: 7.299776169
B19: 13 | C19: North East England | D19: 6.267592707 | E19: 6.708478821 | F19: 6.839709462 | G19: 6.355434189
B20: 14 | C20: North Lancashire and The Lakes | D20: -0.06052830789 | E20: 1.209392796 | F20: 0.4226848466 | G20: 0.02982747772
B21: 15 | C21: South Lancashire, Yorkshire and Humber | D21: -0.9638049028 | E21: -0.4391495842 | F21: -0.4102456385 | G21: -0.8645475219
B22: 16 | C22: North Midlands and North Wales | D22: -3.198128064 | E22: -2.206525413 | F22: -2.050263674 | G22: -3.037297243
B23: 17 | C23: South Lincolnshire and North Norfolk | D23: -4.065077582 | E23: -3.601276217 | F23: -3.696776893 | G23: -4.028008481
B24: 18 | C24: Mid Wales and The Midlands | D24: -4.442238566 | E24: -3.73364135 | F24: -4.049989013 | G24: -4.200001647
B25: 19 | C25: Anglesey and Snowdon | D25: -2.141718485 | E25: -1.875927025 | F25: -2.037250641 | G25: -2.052511635
B26: 20 | C26: Pembrokeshire | D26: -0.02606009505 | E26: -2.952183841 | F26: -2.189607451 | G26: 0.06090212005
B27: 21 | C27: South Wales & Gloucester | D27: -3.300721467 | E27: -5.861686772 | F27: -4.76307254 | G27: -3.213425789
B28: 22 | C28: Cotswold | D28: -8.10876939 | E28: -10.12308222 | F28: -9.54055409 | G28: -8.005886806
B29: 23 | C29: Central London | D29: -16.38756917 | E29: -16.24203764 | F29: -16.26846019 | G29: -16.27716631
B30: 24 | C30: Essex and Kent | D30: -7.755072852 | E30: -7.556715909 | F30: -7.764318714 | G30: -7.630036841
B31: 25 | C31: Oxfordshire, Surrey and Sussex | D31: -9.441126274 | E31: -9.18183069 | F31: -9.320897204 | G31: -9.349528922
B32: 26 | C32: Somerset and Wessex | D32: -8.106763478 | E32: -10.72222226 | F32: -8.927615579 | G32: -8.017343078
B33: 27 | C33: West Devon and Cornwall | D33: -9.153933792 | E33: -12.79514416 | F33: -10.22687152 | G33: -9.063606699

Sheet T33
B2: Table 33 - 2020/21 Generation Scenarios - Wider Generation Intermittent 40% Tariffs
B5: Wider Tariffs for an Intermittent 40% Generator | D5: Base Case | E5: All TEC | F5: Sustained Coal | G5: Accelerated Wind
B6: Zone | C6: Zone Name | D6: (£/kW) | E6: (£/kW) | F6: (£/kW) | G6: (£/kW)
B7: 1 | C7: North Scotland | D7: 19.75905406 | E7: 21.60043616 | F7: 19.88917407 | G7: 19.76047014
B8: 2 | C8: East Aberdeenshire | D8: 17.12492332 | E8: 18.78660253 | F8: 17.22326241 | G8: 17.13026178
B9: 3 | C9: Western Highlands | D9: 18.85190616 | E9: 19.65481863 | F9: 19.12747644 | G9: 18.85514601
B10: 4 | C10: Skye and Lochalsh | D10: 24.76756452 | E10: 25.60273949 | F10: 25.04430869 | G10: 24.77151309
B11: 5 | C11: Eastern Grampian and Tayside | D11: 16.99552477 | E11: 17.81549658 | F11: 17.20661778 | G11: 17.00056133
B12: 6 | C12: Central Grampian | D12: 17.33466059 | E12: 18.39332668 | F12: 17.5132867 | G12: 17.34055085
B13: 7 | C13: Argyll | D13: 25.47706981 | E13: 29.34991843 | F13: 25.6621613 | G13: 25.49466788
B14: 8 | C14: The Trossachs | D14: 14.30159477 | E14: 15.58417206 | F14: 14.44023166 | G14: 14.29877674
B15: 9 | C15: Stirlingshire and Fife | D15: 9.903014715 | E15: 10.3838202 | F15: 9.881171169 | G15: 9.879105088
B16: 10 | C16: South West Scotland | D16: 11.74482478 | E16: 12.56432569 | F16: 11.88520851 | G16: 11.7492579
B17: 11 | C17: Lothian and Borders | D17: 6.447430903 | E17: 7.082887924 | F17: 6.518224061 | G17: 6.450342454
B18: 12 | C18: Solway and Cheviot | D18: 3.519965947 | E18: 4.358169375 | F18: 3.56461049 | G18: 3.522767431
B19: 13 | C19: North East England | D19: 0.6012588052 | E19: 0.9748932933 | F19: 0.6899533016 | G19: 0.6066872086
B20: 14 | C20: North Lancashire and The Lakes | D20: -3.264966908 | E20: -2.614528593 | F20: -3.10489927 | G20: -3.264910549
B21: 15 | C21: South Lancashire, Yorkshire and Humber | D21: -5.489043945 | E21: -5.21400893 | F21: -5.525710954 | G21: -5.547109879
B22: 16 | C22: North Midlands and North Wales | D22: -6.327956109 | E22: -5.799537872 | F22: -6.168666337 | G22: -6.189100882
B23: 17 | C23: South Lincolnshire and North Norfolk | D23: -5.926556788 | E23: -5.692951075 | F23: -5.943560607 | G23: -5.641980206
B24: 18 | C24: Mid Wales and The Midlands | D24: -6.001912515 | E24: -5.161487402 | F24: -5.859639253 | G24: -5.67269147
B25: 19 | C25: Anglesey and Snowdon | D25: -6.680315547 | E25: -4.811003037 | F25: -6.073946327 | G25: -6.659415767
B26: 20 | C26: Pembrokeshire | D26: -7.525174006 | E26: -7.975651938 | F26: -7.674403942 | G26: -7.407286948
B27: 21 | C27: South Wales & Gloucester | D27: -7.526972212 | E27: -7.942317729 | F27: -7.504668914 | G27: -7.408621357
B28: 22 | C28: Cotswold | D28: -11.85343052 | E28: -12.42243101 | F28: -11.79598114 | G28: -11.68889791
B29: 23 | C29: Central London | D29: -11.79011583 | E29: -11.61332052 | F29: -11.69319862 | G29: -11.62860881
B30: 24 | C30: Essex and Kent | D30: -4.644148607 | E30: -4.722072929 | F30: -4.61378755 | G30: -4.555950276
B31: 25 | C31: Oxfordshire, Surrey and Sussex | D31: -6.834775682 | E31: -6.670726627 | F31: -6.628228507 | G31: -6.705719303
B32: 26 | C32: Somerset and Wessex | D32: -6.608744889 | E32: -7.05095376 | F32: -6.406811802 | G32: -6.492934236
B33: 27 | C33: West Devon and Cornwall | D33: -7.595122841 | E33: -8.12067814 | F33: -7.359229305 | G33: -7.477562497

Sheet T34
B2: Table 34 - 2020/21 Generation Scenarios - HH Demand Tariffs
D4: Base Case | E4: All TEC | F4: Sustained Coal | G4: Accelerated Wind
B5: Zone No. | C5: Zone Name | D5: HH Zonal Tariff (£/kW) | E5: HH Zonal Tariff (£/kW) | F5: HH Zonal Tariff (£/kW) | G5: HH Zonal Tariff (£/kW)
B6: 1 | C6: Northern Scotland | D6: 59.83242616 | E6: 56.78401313 | F6: 60.56895112 | G6: 60.36116748
B7: 2 | C7: Southern Scotland | D7: 44.27196509 | E7: 41.97318714 | F7: 43.68850517 | G7: 44.03973521
B8: 3 | C8: Northern | D8: 54.38163595 | E8: 53.77822557 | F8: 53.63744461 | G8: 54.14440494
B9: 4 | C9: North West | D9: 62.4055635 | E9: 61.63793238 | F9: 61.69607306 | G9: 62.16343717
B10: 5 | C10: Yorkshire | D10: 61.94263969 | E10: 61.53574994 | F10: 61.12897235 | G10: 61.76433379
B11: 6 | C11: N Wales & Mersey | D11: 64.00545719 | E11: 62.97644086 | F11: 63.43192394 | G11: 63.74176907
B12: 7 | C12: East Midlands | D12: 65.74106702 | E12: 65.37398845 | F12: 64.99281902 | G12: 65.42234648
B13: 8 | C13: Midlands | D13: 67.20294961 | E13: 66.74221098 | F13: 66.70993822 | G13: 66.9040395
B14: 9 | C14: Eastern | D14: 67.26013464 | E14: 67.32870179 | F14: 66.82951638 | G14: 66.93478435
B15: 10 | C15: South Wales | D15: 63.34373514 | E15: 67.15457717 | F15: 65.21562942 | G15: 63.02916447
B16: 11 | C16: South East | D16: 69.90693972 | E16: 70.58999393 | F16: 69.82885244 | G16: 69.58491583
B17: 12 | C17: London | D17: 72.8581524 | E17: 73.18501916 | F17: 72.62598605 | G17: 72.53472367
B18: 13 | C18: Southern | D18: 70.76571511 | E18: 71.82222961 | F18: 70.8529317 | G18: 70.4463269
B19: 14 | C19: South Western | D19: 68.21245838 | E19: 72.42574231 | F19: 69.19299174 | G19: 67.89572338

Sheet T35
B2: Table 35 - 2020/21 Generation Scenarios - NHH Demand Tariffs
D4: Base Case | E4: All TEC | F4: Sustained Coal | G4: Accelerated Wind
B5: Zone No. | C5: Zone Name | D5: NHH Zonal Tariff (£/kW) | E5: NHH Zonal Tariff (£/kW) | F5: NHH Zonal Tariff (£/kW) | G5: NHH Zonal Tariff (£/kW)
B6: 1 | C6: Northern Scotland | D6: 16.48353501 | E6: 15.52592432 | F6: 16.56960466 | G6: 16.51240519
B7: 2 | C7: Southern Scotland | D7: 6.515796227 | E7: 6.176217018 | F7: 6.429044177 | G7: 6.480802233
B8: 3 | C8: Northern | D8: 8.969054253 | E8: 8.866950757 | F8: 8.843869118 | G8: 8.927691571
B9: 4 | C9: North West | D9: 8.01073572 | E9: 7.91302615 | F9: 7.920421795 | G9: 7.980361133
B10: 5 | C10: Yorkshire | D10: 8.102846775 | E10: 8.05019055 | F10: 7.996967416 | G10: 8.080027498
B11: 6 | C11: N Wales & Mersey | D11: 9.435289486 | E11: 9.282607718 | F11: 9.349879881 | G11: 9.395597139
B12: 7 | C12: East Midlands | D12: 8.279690447 | E12: 8.234455145 | F12: 8.186421806 | G12: 8.240457505
B13: 8 | C13: Midlands | D13: 8.388765392 | E13: 8.332359539 | F13: 8.328249892 | G13: 8.352447339
B14: 9 | C14: Eastern | D14: 9.905667935 | E14: 9.914923761 | F14: 9.841418555 | G14: 9.856937302
B15: 10 | C15: South Wales | D15: 7.748327181 | E15: 8.215034446 | F15: 7.978109227 | G15: 7.711050811
B16: 11 | C16: South East | D16: 10.30313036 | E16: 10.40301954 | F16: 10.29082431 | G16: 10.25484769
B17: 12 | C17: London | D17: 5.333031728 | E17: 5.362121396 | F17: 5.321139207 | G17: 5.314500749
B18: 13 | C18: Southern | D18: 9.129407266 | E18: 9.266300593 | F18: 9.141282809 | G18: 9.088861026
B19: 14 | C19: South Western | D19: 10.22776536 | E19: 10.85904202 | F19: 10.37394261 | G19: 10.17924595

Sheet T36
B2: Table 36 - 2021/22 Generation Scenarios - Wider Generation Peak 80% Tariffs
B5: Wider Tariffs for a Conventional 80% Generator | D5: Base Case | E5: All TEC | F5: Sustained Coal | G5: Accelerated Wind
B6: Zone | C6: Zone Name | D6: (£/kW) | E6: (£/kW) | F6: (£/kW) | G6: (£/kW)
B7: 1 | C7: North Scotland | D7: 29.42209282 | E7: 30.65208189 | F7: 30.78975318 | G7: 29.78860479
B8: 2 | C8: East Aberdeenshire | D8: 24.42017068 | E8: 26.3231218 | F8: 24.37443396 | G8: 24.39615234
B9: 3 | C9: Western Highlands | D9: 26.95160648 | E9: 27.2441993 | F9: 28.20659019 | G9: 27.02982038
B10: 4 | C10: Skye and Lochalsh | D10: 34.96854146 | E10: 35.33478029 | F10: 36.22037236 | G10: 35.04364319
B11: 5 | C11: Eastern Grampian and Tayside | D11: 25.13737966 | E11: 25.51537974 | F11: 26.13163945 | G11: 25.41580065
B12: 6 | C12: Central Grampian | D12: 25.97390884 | E12: 25.93215339 | F12: 26.98898392 | G12: 25.06395009
B13: 7 | C13: Argyll | D13: 32.68200595 | E13: 36.29616977 | F13: 33.90522911 | G13: 32.0864463
B14: 8 | C14: The Trossachs | D14: 21.64555691 | E14: 21.4408481 | F14: 22.59367661 | G14: 20.55256199
B15: 9 | C15: Stirlingshire and Fife | D15: 14.10802046 | E15: 20.3601002 | F15: 14.79776436 | G15: 19.43262296
B16: 10 | C16: South West Scotland | D16: 16.40997932 | E16: 17.40562571 | F16: 17.41606595 | G16: 16.02535024
B17: 11 | C17: Lothian and Borders | D17: 12.55104045 | E17: 11.7348168 | F17: 13.60642405 | G17: 12.3879695
B18: 12 | C18: Solway and Cheviot | D18: 6.284823124 | E18: 7.877474914 | F18: 7.354860557 | G18: 6.206161582
B19: 13 | C19: North East England | D19: 5.230904787 | E19: 4.471930399 | F19: 6.194122489 | G19: 4.681494464
B20: 14 | C20: North Lancashire and The Lakes | D20: -1.36996023 | E20: 0.2898414442 | F20: -0.1777013027 | G20: -1.40538046
B21: 15 | C21: South Lancashire, Yorkshire and Humber | D21: -2.285219797 | E21: -2.312000439 | F21: -1.715486653 | G21: -2.037448083
B22: 16 | C22: North Midlands and North Wales | D22: -4.833121888 | E22: -3.632798177 | F22: -3.448069955 | G22: -4.596034105
B23: 17 | C23: South Lincolnshire and North Norfolk | D23: -5.742962597 | E23: -4.540740892 | F23: -5.285925957 | G23: -5.467451842
B24: 18 | C24: Mid Wales and The Midlands | D24: -6.237098528 | E24: -2.520760672 | F24: -5.397554488 | G24: -5.650049598
B25: 19 | C25: Anglesey and Snowdon | D25: -4.146284534 | E25: -3.137666796 | F25: -3.151657172 | G25: -3.95712523
B26: 20 | C26: Pembrokeshire | D26: -4.366794959 | E26: -7.556533177 | F26: -3.398136307 | G26: -2.607949853
B27: 21 | C27: South Wales & Gloucester | D27: -8.623070167 | E27: -10.66075604 | F27: -6.310506997 | G27: -5.335664257
B28: 22 | C28: Cotswold | D28: -10.46025367 | E28: -13.25520424 | F28: -10.77767905 | G28: -10.41624018
B29: 23 | C29: Central London | D29: -18.49151844 | E29: -12.67605699 | F29: -18.04820963 | G29: -17.98012101
B30: 24 | C30: Essex and Kent | D30: -9.61496127 | E30: -6.024769942 | F30: -9.352582192 | G30: -9.044694914
B31: 25 | C31: Oxfordshire, Surrey and Sussex | D31: -11.42982026 | E31: -8.416532833 | F31: -10.89867377 | G31: -10.63823076
B32: 26 | C32: Somerset and Wessex | D32: -10.74043935 | E32: -10.5429882 | F32: -12.06258183 | G32: -9.987010562
B33: 27 | C33: West Devon and Cornwall | D33: -12.14295557 | E33: -14.4715951 | F33: -14.10832351 | G33: -11.19307878

Sheet T37
B2: Table 37 - 2021/22 Generation Scenarios - Wider Generation Intermittent 40% Tariffs
B5: Wider Tariffs for an Intermittent 40% Generator | D5: Base Case | E5: All TEC | F5: Sustained Coal | G5: Accelerated Wind
B6: Zone | C6: Zone Name | D6: (£/kW) | E6: (£/kW) | F6: (£/kW) | G6: (£/kW)
B7: 1 | C7: North Scotland | D7: 21.9632533 | E7: 23.69997178 | F7: 22.63822997 | G7: 22.57261196
B8: 2 | C8: East Aberdeenshire | D8: 19.57805121 | E8: 21.18794728 | F8: 19.7653697 | G8: 20.19729012
B9: 3 | C9: Western Highlands | D9: 20.10117944 | E9: 20.82146433 | F9: 20.73105876 | G9: 20.40624066
B10: 4 | C10: Skye and Lochalsh | D10: 28.14166892 | E10: 28.9005801 | F10: 28.77351543 | G10: 28.44660892
B11: 5 | C11: Eastern Grampian and Tayside | D11: 17.94469753 | E11: 18.08730377 | F11: 18.56036214 | G11: 17.32440285
B12: 6 | C12: Central Grampian | D12: 18.6411271 | E12: 18.95051885 | F12: 19.25217411 | G12: 17.85993542
B13: 7 | C13: Argyll | D13: 25.88849679 | E13: 29.32267626 | F13: 25.83605066 | G13: 25.11660458
B14: 8 | C14: The Trossachs | D14: 15.12565952 | E14: 15.90983872 | F14: 15.66263318 | G14: 14.88169372
B15: 9 | C15: Stirlingshire and Fife | D15: 9.958065381 | E15: 15.13409161 | F15: 10.21351039 | G15: 14.80843666
B16: 10 | C16: South West Scotland | D16: 11.6070763 | E16: 12.6591709 | F16: 12.11165454 | G16: 11.75415763
B17: 11 | C17: Lothian and Borders | D17: 6.335254328 | E17: 6.628289241 | F17: 6.837965956 | G17: 6.690328039
B18: 12 | C18: Solway and Cheviot | D18: 2.844601831 | E18: 4.154010387 | F18: 3.319926859 | G18: 3.118815744
B19: 13 | C19: North East England | D19: -0.4334820475 | E19: -0.1932372013 | F19: 0.08239477901 | G19: -0.2901943525
B20: 14 | C20: North Lancashire and The Lakes | D20: -4.299122565 | E20: -2.894806911 | F20: -3.850892757 | G20: -4.013001267
B21: 15 | C21: South Lancashire, Yorkshire and Humber | D21: -7.248598847 | E21: -6.444026768 | F21: -6.766703281 | G21: -6.765861599
B22: 16 | C22: North Midlands and North Wales | D22: -8.091449573 | E22: -6.867954962 | F22: -7.508827303 | G22: -7.668760509
B23: 17 | C23: South Lincolnshire and North Norfolk | D23: -8.111788831 | E23: -6.723611626 | F23: -7.297978064 | G23: -7.545972355
B24: 18 | C24: Mid Wales and The Midlands | D24: -7.820346202 | E24: -5.192459757 | F24: -7.050274647 | G24: -7.26021013
B25: 19 | C25: Anglesey and Snowdon | D25: -8.15844813 | E25: -5.742624019 | F25: -7.332511493 | G25: -7.845850806
B26: 20 | C26: Pembrokeshire | D26: -10.28417405 | E26: -9.691738548 | F26: -9.334748161 | G26: -9.650920652
B27: 21 | C27: South Wales & Gloucester | D27: -10.40426427 | E27: -9.663877621 | F27: -9.233004151 | G27: -9.543314953
B28: 22 | C28: Cotswold | D28: -14.23950245 | E28: -15.12859198 | F28: -13.53451404 | G28: -14.32039088
B29: 23 | C29: Central London | D29: -13.93900973 | E29: -11.44185257 | F29: -13.17869266 | G29: -13.56414815
B30: 24 | C30: Essex and Kent | D30: -6.916565949 | E30: -4.987762792 | F30: -6.207254247 | G30: -6.427781911
B31: 25 | C31: Oxfordshire, Surrey and Sussex | D31: -9.051260852 | E31: -6.817515384 | F31: -8.249933692 | G31: -8.547209143
B32: 26 | C32: Somerset and Wessex | D32: -8.930100429 | E32: -7.634282187 | F32: -8.48914412 | G32: -8.563198419
B33: 27 | C33: West Devon and Cornwall | D33: -9.91311965 | E33: -9.289889654 | F33: -9.586047441 | G33: -9.613868594

Sheet T38
B2: Table 38 - 2021/22 Generation Scenarios - HH Demand Tariffs
D4: Base Case | E4: All TEC | F4: Sustained Coal | G4: Accelerated Wind
B5: Zone No. | C5: Zone Name | D5: HH Zonal Tariff (£/kW) | E5: HH Zonal Tariff (£/kW) | F5: HH Zonal Tariff (£/kW) | G5: HH Zonal Tariff (£/kW)
B6: 1 | C6: Northern Scotland | D6: 63.87999718 | E6: 61.88283954 | F6: 63.29424373 | G6: 63.88513277
B7: 2 | C7: Southern Scotland | D7: 46.10866354 | E7: 47.15908617 | F7: 47.09739664 | G7: 48.13756684
B8: 3 | C8: Northern | D8: 57.7038471 | E8: 60.0585004 | F8: 58.83272631 | G8: 59.9835753
B9: 4 | C9: North West | D9: 66.03966393 | E9: 67.23631617 | F9: 67.12620361 | G9: 67.97971652
B10: 5 | C10: Yorkshire | D10: 65.5320945 | E10: 67.58205873 | F10: 66.77484133 | G10: 67.32693066
B11: 6 | C11: N Wales & Mersey | D11: 68.18890473 | E11: 68.65219265 | F11: 68.60942715 | G11: 69.93831016
B12: 7 | C12: East Midlands | D12: 69.60713024 | E12: 71.07105268 | F12: 70.9604869 | G12: 71.32490306
B13: 8 | C13: Midlands | D13: 71.51226483 | E13: 73.37246661 | F13: 72.61052794 | G13: 73.11142246
B14: 9 | C14: Eastern | D14: 71.43004977 | E14: 70.9573647 | F14: 73.01319964 | G14: 72.7485954
B15: 10 | C15: South Wales | D15: 71.07249371 | E15: 76.41234967 | F15: 71.30879942 | G15: 70.12187318
B16: 11 | C16: South East | D16: 74.31466912 | E16: 73.43255237 | F16: 76.18522925 | G16: 75.50503064
B17: 12 | C17: London | D17: 77.21183994 | E17: 75.49383652 | F17: 78.94413677 | G17: 78.47648518
B18: 13 | C18: Southern | D18: 75.48304172 | E18: 75.83048255 | F18: 77.32076833 | G18: 76.61130932
B19: 14 | C19: South Western | D19: 73.88217435 | E19: 78.80926581 | F19: 77.36823381 | G19: 74.52223306

Sheet T39
B2: Table 39 - 2021/22 Generation Scenarios - NHH Demand Tariffs
D4: Base Case | E4: All TEC | F4: Sustained Coal | G4: Accelerated Wind
B5: Zone No. | C5: Zone Name | D5: NHH Zonal Tariff (£/kW) | E5: NHH Zonal Tariff (£/kW) | F5: NHH Zonal Tariff (£/kW) | G5: NHH Zonal Tariff (£/kW)
B6: 1 | C6: Northern Scotland | D6: 19.39070249 | E6: 18.6352249 | F6: 19.06380397 | G6: 19.24383219
B7: 2 | C7: Southern Scotland | D7: 7.00377808 | E7: 7.151738515 | F7: 7.142379615 | G7: 7.300430213
B8: 3 | C8: Northern | D8: 9.952156731 | E8: 10.3279944 | F8: 10.11661588 | G8: 10.31523706
B9: 4 | C9: North West | D9: 8.523241211 | E9: 8.686814234 | F9: 8.672593729 | G9: 8.782709549
B10: 5 | C10: Yorkshire | D10: 8.606367244 | E10: 8.882661705 | F10: 8.77664233 | G10: 8.849117049
B11: 6 | C11: N Wales & Mersey | D11: 10.33940553 | E11: 10.39830108 | F11: 10.39182792 | G11: 10.59337548
B12: 7 | C12: East Midlands | D12: 8.729352801 | E12: 8.925387997 | F12: 8.91150965 | G12: 8.957155257
B13: 8 | C13: Midlands | D13: 8.870764929 | E13: 9.11519825 | F13: 9.020669639 | G13: 9.082742355
B14: 9 | C14: Eastern | D14: 10.76564386 | E14: 10.68387909 | F14: 10.99373659 | G14: 10.95390338
B15: 10 | C15: South Wales | D15: 8.651362184 | E15: 9.317150065 | F15: 8.695900144 | G15: 8.551350196
B16: 11 | C16: South East | D16: 11.23257603 | E16: 11.08832853 | F16: 11.50440334 | G16: 11.40164072
B17: 12 | C17: London | D17: 4.848272713 | E17: 4.809676865 | F17: 5.026258415 | G17: 4.996585243
B18: 13 | C18: Southern | D18: 9.750650645 | E18: 9.804558355 | F18: 9.997059558 | G18: 9.905373789
B19: 14 | C19: South Western | D19: 11.39460702 | E19: 12.14078604 | F19: 11.91855405 | G19: 11.47968567

Sheet T40
B2: Table 40 - National Grid Revenue Forecast
B4: National Grid Revenue Forecast | E4: 2017-02-01
M5: Notes
B6: Regulatory Year | E6: 2014/15 | F6: 2015/16 | G6: 2016/17 | H6: 2017/18 | I6: 2018/19 | J6: 2019/20 | K6: 2020/21 | L6: 2021/22
B7: Actual RPI | E7: 256.6666667 | M7: April to March average
B8: RPI Actual | D8: RPIAt | E8: 1.19 | M8: Office of National Statistics
B9: Assumed Interest Rate | D9: It | E9: 0.005 | F9: 0 | G9: 0.95 | H9: 0.002 | I9: 0.0025 | J9: 0.005 | K9: 0.008 | L9: 0.008 | M9: Bank of England Base Rate
B10: Opening Base Revenue Allowance (2009/10 prices) | C10: A1 | D10: PUt | E10: 1443.829 | F10: 1475.593 | G10: 1571.387 | H10: 1554.942 | I10: 1587.627 | J10: 1585.228 | K10: 1571.584 | L10: 1571.584 | M10: From Licence; assumed similar in 2021/22
B11: Price Control Financial Model Iteration Adjustment | C11: A2 | D11: MODt | E11: -5.5 | F11: -114.4 | G11: -185.4 | H11: -253.3 | I11: -290 | J11: -270 | K11: -190 | L11: -190 | M11: Determined by Ofgem; NGET forecast
B12: RPI True Up | C12: A3 | D12: TRUt | E12: -0.5272879137 | F12: 4.701911301 | G12: -19.92143138 | H12: -31.39722208 | I12: -6.084497024 | J12: -6.576666414 | K12: -6.479336937 | L12: -1.057793922 | M12: Licensee Actual/Forecast
B13: Prior Calendar Year RPI Forecast | D13: GRPIFc-1 | E13: 0.031 | F13: 0.025 | G13: 0.01 | H13: 0.018 | I13: 0.035 | J13: 0.031 | K13: 0.03 | L13: 0.031 | M13: HM Treasury Forecast
B14: Current Calendar Year RPI Forecast | D14: GRPIFc | E14: 0.031 | F14: 0.024 | G14: 0.021 | H14: 0.035 | I14: 0.031 | J14: 0.03 | K14: 0.031 | L14: 0.031 | M14: HM Treasury Forecast
B15: Next Calendar Year RPI forecast | D15: GRPIFc+1 | E15: 0.03 | F15: 0.032 | G15: 0.03 | H15: 0.031 | I15: 0.03 | J15: 0.031 | K15: 0.031 | L15: 0.031 | M15: HM Treasury Forecast
B16: RPI Forecast | C16: A4 | D16: RPIFt | E16: 1.2051 | F16: 1.226652821 | G16: 1.233 | H16: 1.271 | I16: 1.309 | J16: 1.343 | K16: 1.384 | L16: 1.426 | M16: Using HM Treasury Forecast
B17: Base Revenue [A=(A1+A2+A3)*A4] | C17: A | D17: BRt | E17: =SUM(E10:E12)*E16 -> 1732.694843 | F17: 1675.478846 | G17: 1684.358846 | H17: 1614.481113 | I17: 1690.629136 | J17: 1757.518741 | K17: 1903.144854 | L17: =SUM(L10:L12)*L16 -> 1968.63037
B18: Pass-Through Business Rates | C18: B1 | D18: RBt | F18: 1.23533081 | G18: 1.500117926 | H18: 2.689427883 | I18: 4.36891389 | J18: 4.063044124 | K18: 4.223976405 | L18: 4.378504044 | M18: Licensee Actual/Forecast
B19: Temporary Physical Disconnection | C19: B2 | D19: TPDt | E19: 0.1439533986 | F19: 0.0123376894 | G19: 0.09047836118 | H19: 0 | I19: 0 | J19: 0 | K19: 0 | L19: 0 | M19: Licensee Actual/Forecast
B20: Licence Fee | C20: B3 | D20: LFt | F20: 2.02070276 | G20: 2.69339614 | H20: 3.18769528 | I20: 3.45364498 | J20: 3.445858453 | K20: 3.551175455 | L20: 3.654192114 | M20: Licensee Actual/Forecast
B21: Inter TSO Compensation | C21: B4 | D21: ITCt | F21: 3.822243508 | G21: 2.674543756 | H21: 0.4986231556 | I21: 0.7496954924 | J21: 0.7173605869 | K21: 0.7430720574 | L21: 0.7679242289 | M21: Licensee Actual/Forecast
B22: Termination of Bilateral Connection Agreements | C22: B5 | D22: TERMt | E22: 0 | F22: 0 | G22: 0 | H22: 0 | I22: 0 | J22: 0 | K22: 0 | L22: 0 | M22: Does not affect TNUoS
B23: SP Transmission Pass-Through | C23: B6 | D23: TSPt | E23: 312.179148 | F23: 295.664557 | G23: 294.623363 | H23: 320.9652004 | I23: 363.7611143 | J23: 421.8294313 | K23: 401.627131 | L23: 436.8314268 | M23: 14/15 - 17/18 Charge setting. Later from TSP Calculation.
B24: SHE Transmission Pass-Through | C24: B7 | D24: TSHt | E24: 213.9595177 | F24: 338.2073022 | G24: 322.8363165 | H24: 301.3682629 | I24: 363.1455636 | J24: 375.2652023 | K24: 372.3068859 | L24: 412.3863715 | M24: 14/15 - 17/18 Charge setting. Later from TSH Calculation.
B25: Offshore Transmission Pass-Through | C25: B8 | D25: TOFTOt | E25: 218.3803735 | F25: 248.3569992 | G25: 260.7893126 | H25: 270.2046075 | I25: 380.166038 | J25: 472.339765 | K25: 574.0366465 | L25: 619.1959331 | M25: 14/15 - 17/18 Charge setting. Later from OFTO Calculation.
B26: Embedded Offshore Pass-Through | C26: B9 | D26: OFETt | E26: 0.4373360836 | F26: 0.6494191446 | G26: 0.6544976174 | H26: 0.5150651466 | I26: 0.5305374593 | J26: 0.5464169381 | K26: 0.5627035831 | L26: 0.5777687296 | M26: Licensee Actual/Forecast
B27: Pass-Through Items [B=B1+B2+B3+B4+B5+B6+B7+B8+B9] | C27: B | D27: PTt | E27: =SUM(E18:E26) -> 745.1003286 | F27: 889.9688923 | G27: 885.8620259 | H27: 899.4288823 | I27: 1116.175508 | J27: 1278.207079 | K27: =SUM(K18:K26) -> 1357.051591 | L27: =SUM(L18:L26) -> 1477.792121
B28: Reliability Incentive Adjustment | C28: C1 | D28: RIt | F28: 2.36156378 | G28: 3.92064433 | H28: 4.038087751 | I28: 4.150924656 | J28: 4.196478535 | K28: 4.311634103 | L28: 4.425304621 | M28: Licensee Actual/Forecast
B29: Stakeholder Satisfaction Adjustment | C29: C2 | D29: SSOt | F29: 8.693059732 | G29: 10.12348826 | H29: 8.604733768 | I29: 8.510326701 | J29: 8.150329206 | K29: 8.56029777 | L29: 8.94780762 | M29: Licensee Actual/Forecast
B30: Sulphur Hexafluoride (SF6) Gas Emissions Adjustment | C30: C3 | D30: SFIt | F30: 2.809201974 | G30: 2.661674685 | H30: 2.61332417 | I30: 2.726642 | J30: 2.808575905 | K30: 2.939083927 | L30: 3.016568979 | M30: Licensee Actual/Forecast
B31: Awarded Environmental Discretionary Rewards | C31: C4 | D31: EDRt | F31: 0 | G31: 2.0215575 | H31: 0 | I31: 0 | J31: 0 | K31: 0 | L31: 0 | M31: Only includes EDR awarded to licensee to date
B32: Outputs Incentive Revenue [C=C1+C2+C3+C4] | C32: C | D32: OIPt | E32: =SUM(E28:E31) -> 0 | F32: 13.86382549 | G32: 18.72736477 | H32: 15.25614569 | I32: 15.38789336 | J32: 15.15538365 | K32: 15.8110158 | L32: 16.38968122
B33: Network Innovation Allowance | C33: D | D33: NIAt | E33: 10.91597751 | F33: 10.55551673 | G33: 10.61146073 | H33: 10.17123101 | I33: 10.65096356 | J33: 11.07236807 | K33: 11.98981258 | L33: 12.40237133 | M33: Licensee Actual/Forecast
B34: Network Innovation Competition | C34: E | D34: NICFt | E34: 17.849214 | F34: 18.76065592 | G34: 44.85487989 | H34: 32.07110048 | I34: 40.5 | J34: 40.5 | K34: 40.5 | L34: 40.5 | M34: Sum of NICF awards determined by Ofgem/Forecast by National Grid
B35: Future Environmental Discretionary Rewards | C35: F | D35: EDRt | G35: 0 | H35: 0 | I35: 2 | J35: 2 | K35: 2 | L35: 2 | M35: Sum of future EDR awards forecast by National Grid
B36: Transmission Investment for Renewable Generation | C36: G | D36: TIRGt | E36: 15.99732651 | F36: 15.69901683 | G36: 0 | H36: 0 | I36: 0 | J36: 0 | K36: 0 | L36: 0 | M36: Licensee Actual/Forecast
B37: Scottish Site Specific Adjustment | C37: H | D37: DISt | E37: 1.984914151 | F37: 0.791 | G37: 2.864922714 | H37: 6.057927949 | I37: 0 | J37: 0 | K37: 0 | L37: 0 | M37: Licensee Actual/Forecast
B38: Scottish Terminations Adjustment | C38: I | D38: TSt | E38: -0.28187454 | F38: 0.101547 | G38: 0.07292861 | H38: -1.12155342 | I38: 0 | J38: 0 | K38: 0 | L38: 0 | M38: Licensee Actual/Forecast
B39: Correction Factor | C39: K | D39: -Kt | F39: 56.42377823 | G39: 103.977966 | H39: 97.02142261 | I39: 0 | J39: 0 | K39: 0 | L39: 0 | M39: Calculated by Licensee
B40: Maximum Revenue [M= A+B+C+D+E+F+G+H+I+K] | C40: M | D40: TOt | E40: =SUM(E17,E27,E32:E39) -> 2524.26073 | F40: 2681.643079 | G40: 2751.330395 | H40: 2673.366269 | I40: 2875.343501 | J40: 3104.453571 | K40: 3330.497273 | L40: 3517.714543
B41: Termination Charges | C41: B5 | E41: 0 | F41: 0 | G41: 0 | H41: 0 | I41: 0 | J41: 0 | K41: 0 | L41: 0
B42: Pre-vesting connection charges | C42: P | E42: 46.95416236 | F42: 44.95520412 | G42: 42.67704326 | H42: 41.8826124 | I42: 41.8826124 | J42: 41.8826124 | K42: 41.8826124 | L42: 41.8826124 | M42: Licensee Actual/Forecast
B43: TNUoS Collected Revenue [T=M-B5-P] | C43: T | E43: =E40-E41-E42 -> 2477.306567 | F43: 2636.687875 | G43: =G40-G41-G42 -> 2708.653351 | H43: 2631.483657 | I43: 2833.460889 | J43: 3062.570959 | K43: 3288.614661 | L43: 3475.831931
B44: Final Collected Revenue | C44: U | D44: TNRt | E44: 2376.228919 | F44: 2592.684239 | M44: Licensee Actual
B45: Forecast percentage change to Maximum Revenue M | F45: =F40/E40-1 -> 0.0623478976 | G45: 0.02598679751 | H45: -0.02833688223 | I45: 0.07555164964 | J45: 0.07968093908 | K45: 0.07281271774 | L45: 0.05621300803
B46: Forecast percentage change to TNUoS Collected Revenue T | F46: =F43/E43-1 -> 0.06433652978 | G46: 0.02729389293 | H46: -0.02849005926 | I46: 0.07675412736 | J46: 0.08085873755 | K46: 0.07380847812 | L46: 0.05692891667
B48: Notes:
B49: All monies are nominal 'money of the day' prices unless stated otherwise
B50: Licensee forecasts and budgets are subject to change especially where they are influenced by external stakeholders
B51: Greyed out cells are either calculated or not applicable in the year concerned due to the way the licence formula are constructed
B52: NIC payments to all Transmission Owners are inlcuded in National Grid Maximum Revenue and are included here
B53: 2014/15 and 2015/16 pass through to other networks is based on forecast at time of tariff setting

Sheet T41
B2: Table 41 - Scottish Power Transmission Revenue Forecast
B4: Scottish Power Transmission Revenue Forecast (adjusted for NGET RPI forecast) | E4: 2017-02-09
B5: Description | D5: Licence Term | J5: Notes
B6: Regulatory Year | E6: 2017/18 | F6: 2018/19 | G6: 2019/20 | H6: 2020/21 | I6: 2021/22
B7: Actual RPI
B8: RPI Actual | D8: RPIAt
B9: Assumed Interest Rate | D9: It | E9: 0.002 | F9: 0.003 | G9: 0.006 | H9: 0.01 | I9: 0.01 | J9: National Grid forecast
B10: Opening Base Revenue Allowance (2009/10 prices) | C10: A1 | D10: PUt | E10: 249.4386569 | F10: 253.0646096 | G10: 256.4451692 | H10: 254.2380846 | I10: 272.9699545
B11: Price Control Financial Model Iteration Adjustment | C11: A2 | D11: MODt | E11: -13.549 | F11: 12.5 | G11: 21.44993412 | H11: 5.3 | I11: 5.8
B12: RPI True Up | C12: A3 | D12: TRUt | E12: -5.809474273 | F12: -0.864852491 | G12: 0 | H12: 0 | I12: 0
B13: RPI Forecast | C13: A4 | D13: RPIFt | E13: 1.271 | F13: 1.309 | G13: 1.343 | H13: 1.384 | I13: 1.426
B14: Base Revenue [A=(A1+A2+A3)*A4] | C14: A | D14: BRt | E14: 292.4319121 | F14: 346.491982 | G14: 373.2131237 | H14: 359.200709 | I14: 397.5259551
B15: Pass-Through Business Rates | C15: B1 | D15: RBt | E15: -4.70151233 | F15: -3.686748562 | G15: 26.84001569 | H15: 27.63885044 | I15: 28.3746284
B16: Temporary Physical Disconnection | C16: B2 | D16: TPDt | E16: 0 | F16: 0 | G16: 0 | H16: 0 | I16: 0
B17: Pass-Through Items [B=B1+B2] | C17: B | D17: PTt | E17: -4.70151233 | F17: -3.686748562 | G17: 26.84001569 | H17: 27.63885044 | I17: 28.3746284
B18: Reliability Incentive Adjustment | C18: C1 | D18: RIt | E18: 2.930548994 | F18: 1.207890371 | G18: 1.249364788 | H18: 1.29243562 | I18: 0
B19: Stakeholder Satisfaction Adjustment | C19: C2 | D19: SSOt | E19: 0.9212482127 | F19: 0.6039451855 | G19: 0.6246823938 | H19: 0.6462178098 | I19: 0
B20: Sulphur Hexafluoride (SF6) Gas Emissions Adjustment | C20: C3 | D20: SFIt | E20: 0.1917779592 | F20: 0 | G20: 0 | H20: 0 | I20: 0
B21: Awarded Environmental Discretionary Rewards | C21: C4 | D21: EDRt | E21: 4.0401 | F21: 0.6902230691 | G21: 0.7139227358 | H21: 0.7385346397 | I21: 0
B22: Financial Incentive for Timely Connections Output | C22: C5 | D22: -CONADJt | E22: 0 | F22: 0 | G22: 0 | H22: 0 | I22: 0
B23: Outputs Incentive Revenue [C=C1+C2+C3+C4+C5] | C23: C | D23: OIPt | E23: 8.083675166 | F23: 2.502058626 | G23: 2.587969917 | H23: 2.677188069 | I23: 0
B24: Network Innovation Allowance | C24: D | D24: NIAt | E24: 1.0575 | F24: 0.9992366412 | G24: 0.9948148148 | H24: 0.9949676492 | I24: 0
B25: Transmission Investment for Renewable Generation | C25: G | D25: TIRGt | E25: 33.04058046 | F25: 32.91048006 | G25: 32.61832201 | H25: 25.94043379 | I25: 25.76841322
B26: Correction Factor | C26: K | D26: -Kt | E26: 3.824869078 | F26: -1.266734159 | G26: 0 | H26: 0 | I26: 0
B27: Maximum Revenue (M= A+B+C+D+G+J+K] | C27: M | D27: TOt | E27: 333.7370245 | F27: 377.9502746 | G27: 436.2542461 | H27: 416.452149 | I27: 451.6689967
B28: Excluded Services | C28: P | D28: EXCt | E28: 11.288 | F28: 12.59038168 | G28: 13.33051852 | H28: 14.12854062 | I28: 14.14050279 | J28: Post BETTA Connection Charges
B29: Site Specifc Charges | C29: S | D29: EXSt | E29: 22.7 | F29: 26.77954198 | G29: 27.75533333 | H29: 28.95355859 | I29: 28.97807263 | J29: Pre & Post BETTA Connection Charges
B30: TNUoS Collected Revenue (T=M+P-S) | C30: T | D30: TSPt | E30: 322.3250245 | F30: 363.7611143 | G30: 421.8294313 | H30: 401.627131 | I30: 436.8314268 | J30: General System Charge
B31: Final Collected Revenue | C31: U | D31: TNRt | E31: 322.3250245 | F31: 363.7611143 | G31: 421.8294313 | H31: 401.627131 | I31: 436.8314268
B32: Forecast percentage change to TNUoS Collected Revenue T | E32: 0.09843853205 | F32: 0.1285537476 | G32: 0.1596331073 | H32: -0.04789210709 | I32: 0.08765417747
B34: Notes:
B35: All monies are nominal 'money of the day' prices unless stated otherwise
B36: Licensee forecasts and budgets are subject to change especially where they are influenced by external stakeholders
B37: Greyed out cells are either calculated or not applicable in the year concerned due to the way the licence formula are constructed
B38: NIC payments are not included as they do not form part of SPT Maximum Revenue
B40: Commentary
B41: All reasonable care has been taken in the preparation of these illustrative tables and the data therein. SPT offers this data without prejudice and cannot be held responsible for any loss that might be attributed to the use of this data. SPT does not accept or assume responsibility for the use of this information by any person or any person to whom this information is shown or any person to whom this information otherwise becomes available.
B43: The base revenue forecasts for the RIIO-ET1 period (2014/15 to 2020/21, inclusive) reflect the figures authorised by Ofgem in the the RIIO-ET1 Final Proposals.
B44: Within the bounds of commercial confidentiality, this forecast provides as much information as possible.
B46: This forecast contains as much information as can be currently made available. Generally, allowances determined by Ofgem are shown; and we also include forecasts for anticipated future Ofgem determinations in respect of the Iteration adjustment reflecting our latest view of totex, changes to allowed totex and cost of debt.
B47: This respects commercial confidentiality and disclosure considerations.
B49: Note that actual revenues may vary from those currently forecast.
B51: All £ figures are in money of the day
B53: Information provided in £m to one decimal place
B55: Assumptions
B56: It is assumed that there will be one set of price changes per year effective on 1st April.

Sheet T42
B2: Table 42 - SHE Transmission Revenue Forecast
B4: SHE Transmission Revenue Forecast (adjusted for NGET RPI forecast) | E4: 2017-02-13
B5: Description | D5: Licence Term | J5: Notes
B6: Regulatory Year | E6: 2017/18 | F6: 2018/19 | G6: 2019/20 | H6: 2020/21 | I6: 2021/22
B7: Actual RPI
B8: RPI Actual | D8: RPIAt
B9: Assumed Interest Rate | D9: It | E9: 0.0179 | F9: 0.002 | G9: 0.003 | H9: 0.006 | I9: 0 | J9: National Grid forecast
B10: Opening Base Revenue Allowance (2009/10 prices) | C10: A1 | D10: PUt | E10: 119.597 | F10: 120 | G10: 122.097 | H10: 122.525 | I10: 217.925 | J10: As per licence
B11: Price Control Financial Model Iteration Adjustment | C11: A2 | D11: MODt | E11: 52.688 | F11: 63 | G11: 91.5 | H11: 80.4 | I11: 0 | J11: MOD value published on 30 November 2016.
B12: RPI True Up | C12: A3 | D12: TRUt | E12: -6.133728 | F12: -2.30102 | G12: -3.97 | H12: -2.722 | I12: 0 | J12: RPI true up reflective of RPIF being higher than RPI outturn
B13: RPI Forecast | C13: A4 | D13: RPIFt | E13: 1.27092 | F13: 1.309 | G13: 1.343 | H13: 1.384 | I13: 1.426 | J13: NGET RPI forecast
B14: Base Revenue [A=(A1+A2+A3)*A4] | C14: A | D14: BRt | E14: 211.1649746 | F14: 236.5349648 | G14: 281.529061 | H14: 277.080952 | I14: 310.76105
B15: Pass-Through Business Rates | C15: B1 | D15: RBt | E15: 19.216 | F15: 19.7218117 | G15: 20.15005648 | H15: 20.66822012 | I15: 0 | J15: Reflective of substantial increase in business rates expected due to the change in rateable assets since last valuation.
B16: Temporary Physical Disconnection | C16: B2 | D16: TPDt | E16: 0.103 | F16: 0 | G16: 0 | H16: 0 | I16: 0 | J16: Expected to remain at similar levels across remaining years of the price control.
B17: Pass-Through Items [B=B1+B2] | C17: B | D17: PTt | E17: 19.319 | F17: 19.7218117 | G17: 20.15005648 | H17: 20.66822012 | I17: 0
B18: Reliability Incentive Adjustment | C18: C1 | D18: RIt | E18: 1.657 | F18: 1.701107874 | G18: 1.716167922 | H18: 1.760551037 | I18: 1.770643016 | J18: Expected to remain at similar levels across remaining years of the price control.
B19: Stakeholder Satisfaction Adjustment | C19: C2 | D19: SSOt | E19: 0.85674 | F19: 0.7537062026 | G19: 0.7261099398 | H19: 0.7453945922 | I19: 0.7496674058 | J19: Expected to remain at similar levels across remaining years of the price control following Ofgem's determination
B20: Sulphur Hexafluoride (SF6) Gas Emissions Adjustment | C20: C3 | D20: SFIt | E20: -0.0522 | F20: -0.05419458713 | G20: -0.05663253012 | H20: -0.05882025354 | I20: -0.05915742794 | J20: Expected to remain at similar levels across remaining years of the price control.
B21: Awarded Environmental Discretionary Rewards | C21: C4 | D21: EDRt | E21: 0 | F21: 0 | G21: 0 | H21: 0 | I21: 0
B22: Financial Incentive for Timely Connections Output | C22: C5 | D22: -CONADJt | E22: 0 | F22: 0 | G22: 0 | H22: 0 | I22: 0 | J22: N/A
B23: Outputs Incentive Revenue [C=C1+C2+C3+C4+C5] | C23: C | D23: OIPt | E23: 2.46154 | F23: 2.400619489 | G23: 2.385645331 | H23: 2.447125376 | I23: 2.461152993
B24: Network Innovation Allowance | C24: D | D24: NIAt | E24: 1.296 | F24: 1.44518899 | G24: 1.45626506 | H24: 1.460364915 | I24: 1.468736142 | J24: Expected to remain at similar levels across remaining years of the price control.
B25: Transmission Investment for Renewable Generation | C25: G | D25: TIRGt | E25: 84.25619 | F25: 83.520884 | G25: 82.45190738 | H25: 81.60904521 | I25: 80.35618625 | J25: Based on forecast of TIRG related revenue.
B26: Compensatory Payments Adjustment | C26: J | D26: SHCPt | E26: 0 | F26: 0 | G26: 0 | H26: 0 | I26: 0 | J26: N/A
B27: Correction Factor | C27: K | D27: -Kt | E27: -13.775 | F27: 4.497147129 | G27: -28.94427937 | H27: -27.77431523 | I27: 0 | J27: Reflective of tariffs set.
B28: Maximum Revenue (M= A+B+C+D+G+J+K] | C28: M | D28: TOt | E28: 304.7227046 | F28: 348.1206161 | G28: 359.0286559 | H28: 355.4913924 | I28: 395.0471254
B29: Excluded Services | C29: P | D29: EXCt | E29: 17.5 | F29: 18.36594342 | G29: 19.0123494 | H29: 19.67436067 | I29: 20.29711752 | J29: Post BETTA Connection Charges - reflecting projects forecasted to complete and RPI uplift. 16/17 connection charges reflective of updated STCP 13-1 schedule. This reflects changes to project connection dates and mod apps to capital contributions for some projects.
B30: Site Specifc Charges | C30: S | D30: EXSt | E30: 3.355 | F30: 3.340995937 | G30: 2.775803012 | H30: 2.85886715 | I30: 2.957871397 | J30: Post-Vesting, Pre-BETTA Connection Charges - reflecting projects terminating and RPI uplift
B31: TNUoS Collected Revenue (T=M+P-S) | C31: T | D31: TSHt | E31: 318.8677046 | F31: 363.1455636 | G31: 375.2652023 | H31: 372.3068859 | I31: 412.3863715
B32: Final Collected Revenue | C32: U | D32: TNRt | E32: 0 | F32: 0 | G32: 0 | H32: 0 | I32: 0
B33: Forecast percentage change to TNUoS Collected Revenue T
B35: Notes:
B36: All monies are nominal 'money of the day' prices unless stated otherwise
B37: Licensee forecasts and budgets are subject to change especially where they are influenced by external stakeholders
B38: Greyed out cells are either calculated or not applicable in the year concerned due to the way the licence formula are constructed
B39: NIC payments are not included as they do not form part of SHET Maximum Revenue
B41: Commentary
B42: All reasonable care has been taken in the preparation of these illustrative tables and the data therein. SHET offers these data without prejudice and cannot be held responsible for any loss that might be attributed to the use of these data. SHET does not accept or assume responsibility for the use of this information by any person or any person to whom this information is shown or any person to whom this information otherwise becomes available.
B44: The base revenue forecasts for the RIIO-ET1 period (2014/15 to 2020/21, inclusive) reflect the figures authorised by Ofgem in the RIIO-ET1 Final Proposals.
B45: Within the bounds of commercial confidentiality, this forecast provides as much information as possible.
B47: This forecast contains as much information as can be currently made available. Generally, allowances determined by Ofgem are shown; whilst those for which Ofgem determinations are expected are not.
B48: This respects commercial confidentiality and disclosure considerations.
B50: Note that actual revenues may vary from those currently forecast.
B52: All £ figures are in money of the day
B54: Information provided in £m to one decimal place
B56: Assumptions
B57: It is assumed that there will be one set of price changes per year effective on 1st April.

Sheet T43
B2: Table 43 - Offshore Transmission Revenue Forecast
B4: Offshore Transmission Revenue Forecast | C4: 2017-02-20
K5: Notes
B6: Regulatory Year | C6: 2014/15 | D6: 2015/16 | E6: 2016/17 | F6: 2017/18 | G6: 2018/19 | H6: 2019/20 | I6: 2020/21 | J6: 2021/22
B7: Barrow | C7: 5.475948387 | D7: 5.605119166 | E7: 5.656283019 | F7: 5.872496367 | G7: 5.933584143 | H7: 6.111635955 | I7: 6.294985034 | J7: 6.493301976 | K7: Current revenues plus indexation
B8: Gunfleet | C8: 6.853152423 | D8: 7.014459018 | E8: 7.080594599 | F8: 7.432422281 | G8: 7.42499849 | H8: 7.647833446 | I8: 7.877268449 | J8: 7.868801195 | K8: Current revenues plus indexation
B9: Walney 1 | C9: 12.49105951 | D9: 12.78636456 | E9: 12.90184157 | F9: 13.13609825 | G9: 13.52820081 | H9: 13.93416063 | I9: 14.35218545 | J9: 14.0169767 | K9: Current revenues plus indexation
B10: Robin Rigg | C10: 7.709472064 | D10: 7.891440662 | E10: 7.993308366 | F10: 8.367306563 | G10: 8.356427879 | H10: 8.607174867 | I10: 8.865390113 | J10: 8.866546019 | K10: Current revenues plus indexation
B11: Walney 2 | C11: 12.92696073 | D11: 13.23221075 | E11: 12.51589741 | F11: 12.29931316 | G11: 14.00231552 | H11: 14.4225778 | I11: 14.85525513 | J11: 14.97940649 | K11: Current revenues plus indexation
B12: Sheringham Shoal | C12: 18.92412411 | D12: 19.49893387 | E12: 19.72766462 | F12: 20.02531234 | G12: 20.62068068 | H12: 21.23959055 | I12: 21.87677827 | J12: 21.88454166 | K12: Current revenues plus indexation
B13: Ormonde | C13: 11.57050189 | D13: 11.84309117 | E13: 11.95215008 | F13: 12.15604428 | G13: 12.52369456 | H13: 12.89955664 | I13: 13.28654334 | J13: 13.54118608 | K13: Current revenues plus indexation
B14: Greater Gabbard | C14: 25.9995199 | D14: 26.61925023 | E14: 26.87143257 | F14: 27.3092326 | G14: 28.16411926 | H14: 29.00929138 | I14: 29.87957012 | J14: 31.14608627 | K14: Current revenues plus indexation
B15: London Array | C15: 37.57295282 | D15: 39.2120985 | E15: 39.49870272 | F15: 39.51888334 | G15: 39.71643133 | H15: 40.90820215 | I15: 42.13544822 | J15: 42.11666532 | K15: Current revenues plus indexation
B16: Thanet | C16: 78.85668167 | D16: 17.51705273 | E16: 15.69984448 | F16: 19.5121928 | G16: 18.43570521 | H16: 18.98902627 | I16: 19.55869706 | J16: 20.60091534 | K16: Current revenues plus indexation
B17: Lincs | D17: 25.56339384 | E17: 26.68704214 | F17: 27.18814554 | G17: 26.62389829 | H17: 27.4229126 | I17: 28.24559998 | J17: 28.47630007 | K17: Current revenues plus indexation
B18: Gwynt y mor | D18: 26.28358513 | E18: 23.6461166 | F18: 29.34287447 | G18: 27.86974144 | H18: 28.70627905 | I18: 29.56746742 | J18: 29.41539307 | K18: Current revenues plus indexation
B19: West of Duddon Sands | D19: 35.2899996 | E19: 21.27389291 | F19: 22.04538798 | G19: 22.37760618 | H19: 23.04934162 | I19: 23.74082187 | J19: 23.00227141 | K19: Current revenues plus indexation
B20: Humber Gateway | E20: 29.28454151 | F20: 9.749899087 | G20: 11.58914209 | H20: 11.9372139 | I20: 12.29533031 | J20: 12.31184544 | K20: Current revenues plus indexation
B21: Westermost Rough | F21: 11.57669261 | G21: 12.86325424 | H21: 13.34065713 | I21: 13.74087684 | J21: 13.74087684 | K21: Current revenues plus indexation
B22: Forecast to commission in 2017/18 | F22: 4.672305859 | G22: 18.54335203 | H22: 19.10004635 | I22: 19.67304774 | J22: 20.26323917 | K22: National Grid Forecast
B23: Forecast to commission in 2018/19 | G23: 91.5928854 | H23: 132.7043814 | I23: 136.6855128 | J23: 140.7860782 | K23: National Grid Forecast
B24: Forecast to commission in 2019/20 | H24: 42.44883705 | I24: 60.80354266 | J24: 62.62764894 | K24: National Grid Forecast
B25: Forecast to commission in 2020/21 | I25: 70.30232571 | J25: 107.0578529 | K25: National Grid Forecast
B26: Forecast to commission in 2021/22 | J26: 0 | K26: National Grid Forecast
B27: Offshore Transmission Pass-Through (B7) | C27: =SUM(C7:C26) -> 218.3803735 | D27: =SUM(D7:D26) -> 248.3569992 | E27: 260.7893126 | F27: 270.2046075 | G27: 380.1660375 | H27: 472.4787188 | I27: =SUM(I7:I26) -> 574.0366465 | J27: 619.1959331
B29: Notes:
B30: All monies are nominal 'money of the day' prices unless stated otherwise
B31: Licensee forecasts and budgets are subject to change especially where they are influenced by external stakeholders
B32: Greyed out cells are either calculated or not applicable in the year concerned due to the way the licence formula are constructed
B33: NIC payments are not included as they do not form part of OFTO Maximum Revenue

Sheet T44
B2: Table 44 - Contracted TEC at Peak
B4: Generator | C4: Technology | D4: Nodes | E4: Zone | F4: 2017/18 (MW) | G4: 2018/19 (MW) | H4: 2019/20 (MW) | I4: 2020/21 (MW) | J4: 2021/22 (MW)
B5: Aquind Interconnector | C5: Interconnectors | D5: LOVE40 | E5: 26 | F5: 0 | G5: 0 | H5: 0 | I5: 0 | J5: 2000
B6: Auchencrosh (interconnector CCT) | C6: Interconnectors | D6: AUCH20 | E6: 10 | F6: 80 | G6: 80 | H6: 80 | I6: 80 | J6: 80
B7: Belgium Interconnector (Nemo) | C7: Interconnectors | D7: CANT40 | E7: 24 | F7: 0 | G7: 1000 | H7: 1000 | I7: 1000 | J7: 1000
B8: Britned | C8: Interconnectors | D8: GRAI40 | E8: 24 | F8: 1200 | G8: 1200 | H8: 1200 | I8: 1200 | J8: 1200
B9: East West Interconnector | C9: Interconnectors | D9: CONQ40 | E9: 16 | F9: 505 | G9: 505 | H9: 505 | I9: 505 | J9: 505
B10: ElecLink | C10: Interconnectors | D10: SELL40 | E10: 24 | F10: 1000 | G10: 1000 | H10: 1000 | I10: 1000 | J10: 1000
B11: FAB Link Interconnector | C11: Interconnectors | D11: EXET40 | E11: 26 | F11: 0 | G11: 0 | H11: 0 | I11: 1400 | J11: 1400
B12: IFA Interconnector | C12: Interconnectors | D12: SELL40 | E12: 24 | F12: 2000 | G12: 2000 | H12: 2000 | I12: 2000 | J12: 2000
B13: IFA2 Interconnector | C13: Interconnectors | D13: FAWL40 | E13: 26 | F13: 0 | G13: 0 | H13: 1100 | I13: 1100 | J13: 1100
B14: Norway Interconnector | C14: Interconnectors | D14: PEHE40 | E14: 2 | F14: 0 | G14: 0 | H14: 0 | I14: 0 | J14: 1400
B15: NS Link | C15: Interconnectors | D15: BLYT4A | E15: 13 | F15: 0 | G15: 0 | H15: 0 | I15: 1400 | J15: 1400
B16: Aberarder Wind Farm | C16: Wind Onshore | D16: ABED10 | E16: 1 | F16: 0 | G16: 0 | H16: 35.8 | I16: 35.8 | J16: 35.8
B17: Aberdeen Offshore Wind Farm | C17: Wind offshore | D17: ABBA10 | E17: 10 | F17: 0 | G17: 99 | H17: 99 | I17: 99 | J17: 99
B18: Aberthaw | C18: Coal | D18: ABTH20 | E18: 21 | F18: 1610 | G18: 1610 | H18: 1610 | I18: 1610 | J18: 1610
B19: A'Chruach Wind Farm | C19: Wind Onshore | D19: ACHR1R | E19: 7 | F19: 43 | G19: 43 | H19: 43 | I19: 43 | J19: 43
B20: Afton | C20: Wind Onshore | D20: BLAC10 | E20: 10 | F20: 50 | G20: 50 | H20: 50 | I20: 50 | J20: 50
B21: Aigas | C21: Hydro | D21: AIGA1Q | E21: 1 | F21: 20 | G21: 20 | H21: 20 | I21: 20 | J21: 20
B22: Aikengall II Windfarm | C22: Wind Onshore | D22: WDOD10 | E22: 11 | F22: 140 | G22: 140 | H22: 140 | I22: 140 | J22: 140
B23: An Suidhe Wind Farm, Argyll (SRO) | C23: Wind Onshore | D23: ANSU10 | E23: 7 | F23: 19.3 | G23: 19.3 | H23: 19.3 | I23: 19.3 | J23: 19.3
B24: Arecleoch | C24: Wind Onshore | D24: AREC10 | E24: 10 | F24: 114 | G24: 114 | H24: 114 | I24: 114 | J24: 114
B25: Aultmore Wind Farm | C25: Wind Onshore | D25: AULW10 | E25: 1 | F25: 0 | G25: 0 | H25: 0 | I25: 29.5 | J25: 29.5
B26: Bad a Cheo Wind Farm | C26: Wind Onshore | D26: MYBS11 | E26: 1 | F26: 0 | G26: 29.9 | H26: 29.9 | I26: 29.9 | J26: 29.9
B27: Baglan Bay | C27: CCGT | D27: BAGB20 | E27: 21 | F27: 552 | G27: 552 | H27: 552 | I27: 552 | J27: 552
B28: Barrow Offshore Wind Farm | C28: Wind Offshore | D28: HEYS40 | E28: 14 | F28: 90 | G28: 90 | H28: 90 | I28: 90 | J28: 90
B29: Barry Power Station | C29: CCGT | D29: ABTH20 | E29: 21 | F29: 142 | G29: 142 | H29: 142 | I29: 142 | J29: 142
B30: Beatrice Wind Farm | C30: Wind Offshore | D30: BLHI40 | E30: 1 | F30: 0 | G30: 294 | H30: 588 | I30: 588 | J30: 588
B31: Beaw Field Wind Farm | C31: Wind Onshore | D31: KERG20 | E31: 1 | F31: 0 | G31: 0 | H31: 0 | I31: 72 | J31: 72
B32: Beinn an Tuirc 3 | C32: Wind Onshore | D32: CAAD1Q | E32: 7 | F32: 0 | G32: 0 | H32: 0 | I32: 50 | J32: 50
B33: Beinneun Wind Farm | C33: Wind Onshore | D33: BEIN10 | E33: 3 | F33: 109 | G33: 109 | H33: 109 | I33: 109 | J33: 109
B34: Benbrack & Quantans Hill | C34: Wind Onshore | D34: KEON10 | E34: 1 | F34: 0 | G34: 0 | H34: 72 | I34: 72 | J34: 72
B35: Bhlaraidh Wind Farm | C35: Wind Onshore | D35: BHLA10 | E35: 3 | F35: 108 | G35: 108 | H35: 108 | I35: 108 | J35: 108
B36: Blackcraig Wind Farm | C36: Wind Onshore | D36: BLCW10 | E36: 10 | F36: 57.5 | G36: 57.5 | H36: 57.5 | I36: 57.5 | J36: 57.5
B37: Blacklaw | C37: Wind Onshore | D37: BLKL10 | E37: 11 | F37: 118 | G37: 118 | H37: 118 | I37: 118 | J37: 118
B38: Blacklaw Extension | C38: Wind Onshore | D38: BLKX10 | E38: 11 | F38: 60 | G38: 60 | H38: 60 | I38: 60 | J38: 60
B39: BP Grangemouth | C39: CHP | D39: GRMO20 | E39: 9 | F39: 120 | G39: 120 | H39: 120 | I39: 120 | J39: 120
B40: Bradwell B | C40: Nuclear | D40: GRAI40 | E40: 24 | F40: 0 | G40: 0 | H40: 0 | I40: 0 | J40: 1670
B41: Burbo Bank Extension Offshore Wind Farm | C41: Wind Offshore | D41: BODE40 | E41: 16 | F41: 254 | G41: 254 | H41: 254 | I41: 254 | J41: 254
B42: C.Gen Killingholme North Power Station | C42: CCGT | D42: KILL40 | E42: 15 | F42: 0 | G42: 0 | H42: 490 | I42: 490 | J42: 490
B43: Cantick Head | C43: Tidal | D43: BASK20 | E43: 1 | F43: 0 | G43: 0 | H43: 0 | I43: 0 | J43: 30
B44: Carnedd Wen Wind Farm | C44: Wind Onshore | D44: TRAW40 | E44: 18 | F44: 0 | G44: 0 | H44: 150 | I44: 150 | J44: 150
B45: Carraig Gheal Wind Farm | C45: Wind Onshore | D45: FERO10 | E45: 7 | F45: 46 | G45: 46 | H45: 46 | I45: 46 | J45: 46
B46: Carrington Power Station | C46: CCGT | D46: CARR40 | E46: 16 | F46: 910 | G46: 910 | H46: 910 | I46: 910 | J46: 910
B47: CDCL | C47: CCGT | D47: COTT40 | E47: 16 | F47: 395 | G47: 395 | H47: 395 | I47: 395 | J47: 395
B48: Clunie | C48: Hydro | D48: CLUN1S | E48: 5 | F48: 61.2 | G48: 61.2 | H48: 61.2 | I48: 61.2 | J48: 61.2
B49: Clyde North | C49: Wind Onshore | D49: CLYN2Q | E49: 11 | F49: 374.5 | G49: 374.5 | H49: 374.5 | I49: 374.5 | J49: 374.5
B50: Clyde South | C50: Wind Onshore | D50: CLYS2R | E50: 11 | F50: 128.8 | G50: 128.8 | H50: 128.8 | I50: 128.8 | J50: 128.8
B51: Codling Park Wind Farm | C51: Wind Offshore | D51: PENT40 | E51: 19 | F51: 0 | G51: 0 | H51: 0 | I51: 0 | J51: 1000
B52: Connahs Quay | C52: CCGT | D52: CONQ40 | E52: 16 | F52: 1380 | G52: 1380 | H52: 1380 | I52: 1380 | J52: 1380
B53: Corby | C53: CCGT | D53: GREN40_EME | E53: 18 | F53: 401 | G53: 401 | H53: 401 | I53: 401 | J53: 401
B54: Corriegarth | C54: Wind Onshore | D54: COGA10 | E54: 1 | F54: 69 | G54: 69 | H54: 69 | I54: 69 | J54: 69
B55: Corriemoillie Wind Farm | C55: Wind Onshore | D55: CORI10 | E55: 1 | F55: 47.5 | G55: 47.5 | H55: 47.5 | I55: 47.5 | J55: 47.5
B56: Coryton | C56: CCGT | D56: COSO40 | E56: 24 | F56: 800 | G56: 704 | H56: 704 | I56: 704 | J56: 704
B57: Cottam | C57: Coal | D57: COTT40 | E57: 16 | F57: 2000 | G57: 2000 | H57: 2000 | I57: 2000 | J57: 2000
B58: Cour Wind Farm | C58: Wind Onshore | D58: CRSS10 | E58: 7 | F58: 20.5 | G58: 20.5 | H58: 20.5 | I58: 20.5 | J58: 20.5
B59: Creag Riabhach Wind Farm | C59: Wind Onshore | D59: CASS1Q | E59: 1 | F59: 0 | G59: 0 | H59: 0 | I59: 72.6 | J59: 72.6
B60: Crookedstane Windfarm | C60: Wind Onshore | D60: CLYS2R | E60: 11 | F60: 18.4 | G60: 18.4 | H60: 18.4 | I60: 18.4 | J60: 18.4
B61: Crossburns Wind Farm | C61: Wind Onshore | D61: CROB20 | E61: 5 | F61: 0 | G61: 0 | H61: 0 | I61: 0 | J61: 99
B62: Crossdykes | C62: Wind Onshore | D62: EWEH1Q | E62: 12 | F62: 0 | G62: 46 | H62: 46 | I62: 46 | J62: 46
B63: Cruachan | C63: Pump Storage | D63: CRUA20 | E63: 8 | F63: 440 | G63: 440 | H63: 440 | I63: 440 | J63: 440
B64: Crystal Rig 2 Wind Farm | C64: Wind Onshore | D64: CRYR40 | E64: 11 | F64: 138 | G64: 138 | H64: 138 | I64: 138 | J64: 138
B65: Crystal Rig 3 Wind Farm | C65: Wind Onshore | D65: CRYR40 | E65: 11 | F65: 62 | G65: 13.8 | H65: 13.8 | I65: 62 | J65: 62
B66: Culligran | C66: Hydro | D66: CULL1Q | E66: 1 | F66: 19.1 | G66: 19.1 | H66: 19.1 | I66: 19.1 | J66: 19.1
B67: Cumberhead | C67: Wind Onshore | D67: GAWH10 | E67: 11 | F67: 0 | G67: 0 | H67: 50 | I67: 50 | J67: 50
B68: Dalquhandy Wind Farm | C68: Wind Onshore | D68: DALQ10 | E68: 0 | F68: 0 | G68: 0 | H68: 0 | I68: 0 | J68: 45
B69: Damhead Creek | C69: CCGT | D69: KINO40 | E69: 24 | F69: 805 | G69: 805 | H69: 805 | I69: 805 | J69: 805
B70: Damhead Creek II | C70: CCGT | D70: KINO40 | E70: 24 | F70: 0 | G70: 0 | H70: 1800 | I70: 1800 | J70: 1800
B71: Deanie | C71: Hydro | D71: DEAN1Q | E71: 1 | F71: 38 | G71: 38 | H71: 38 | I71: 38 | J71: 38
B72: Deeside | C72: CCGT | D72: CONQ40 | E72: 16 | F72: 1 | G72: 1 | H72: 1 | I72: 1 | J72: 1
B73: Dersalloch Wind Farm | C73: Wind Onshore | D73: DERS1Q | E73: 10 | F73: 69 | G73: 69 | H73: 69 | I73: 69 | J73: 69
B74: Didcot B | C74: CCGT | D74: DIDC40 | E74: 25 | F74: 1550 | G74: 1550 | H74: 1550 | I74: 1550 | J74: 1550
B75: Dinorwig | C75: Pump Storage | D75: DINO40 | E75: 19 | F75: 1644 | G75: 1644 | H75: 1644 | I75: 1644 | J75: 1644
B76: Dogger Bank Platform 1 | C76: Wind Offshore | D76: CREB40 | E76: 15 | F76: 0 | G76: 0 | H76: 0 | I76: 0 | J76: 500
B77: Dogger Bank Platform 3 | C77: Wind Offshore | D77: LACK40 | E77: 15 | F77: 0 | G77: 0 | H77: 0 | I77: 500 | J77: 1000
B78: Dogger Bank Platform 4 | C78: Wind Offshore | D78: CREB40 | E78: 15 | F78: 0 | G78: 0 | H78: 0 | I78: 0 | J78: 500
B79: Dorenell Wind Farm | C79: Wind Onshore | D79: DORE11 | E79: 1 | F79: 0 | G79: 220 | H79: 220 | I79: 220 | J79: 220
B80: Douglas West | C80: Wind Onshore | D80: COAL10 | E80: 11 | F80: 0 | G80: 0 | H80: 0 | I80: 0 | J80: 45
B81: Drax (Biomass) | C81: Biomass | D81: DRAX40 | E81: 15 | F81: 1905 | G81: 1905 | H81: 1905 | I81: 1905 | J81: 1905
B82: Drax (Coal) | C82: Coal | D82: DRAX40 | E82: 15 | F82: 2001 | G82: 2001 | H82: 2001 | I82: 2001 | J82: 2001
B83: Druim Leathann | C83: Wind Onshore | D83: COUA1Q | E83: 5 | F83: 0 | G83: 0 | H83: 0 | I83: 46.2 | J83: 46.2
B84: Dudgeon Offshore Wind Farm | C84: Wind Offshore | D84: NECT40 | E84: 17 | F84: 400 | G84: 400 | H84: 400 | I84: 400 | J84: 400
B85: Dungeness B | C85: Nuclear | D85: DUNG40 | E85: 24 | F85: 1091 | G85: 1091 | H85: 1091 | I85: 1091 | J85: 1091
B86: Dunlaw Extension | C86: Wind Onshore | D86: DUNE10 | E86: 11 | F86: 29.75 | G86: 29.75 | H86: 29.75 | I86: 29.75 | J86: 29.75
B87: Dunmaglass Wind Farm | C87: Wind Onshore | D87: DUNM10 | E87: 1 | F87: 94 | G87: 94 | H87: 94 | I87: 94 | J87: 94
B88: East Anglia 3 | C88: Wind Offshore | D88: BRFO40 | E88: 18 | F88: 0 | G88: 0 | H88: 0 | I88: 0 | J88: 1200
B89: East Anglia One | C89: Wind Offshore | D89: BRFO40 | E89: 18 | F89: 0 | G89: 129 | H89: 680 | I89: 680 | J89: 680
B90: East Anglia One North | C90: Wind Offshore | D90: BRFO40 | E90: 18 | F90: 0 | G90: 0 | H90: 0 | I90: 520 | J90: 520
B91: Edinbane Wind, Skye | C91: Wind Onshore | D91: EDIN10 | E91: 4 | F91: 41.4 | G91: 41.4 | H91: 41.4 | I91: 41.4 | J91: 41.4
B92: Enfield | C92: CCGT | D92: BRIM2A_LPN | E92: 24 | F92: 408 | G92: 408 | H92: 408 | I92: 408 | J92: 408
B93: Enoch Hill | C93: Wind Onshore | D93: ENHI10 | E93: 0 | F93: 0 | G93: 0 | H93: 0 | I93: 69 | J93: 69
B94: Errochty | C94: Hydro | D94: ERRO10 | E94: 5 | F94: 75 | G94: 75 | H94: 75 | I94: 75 | J94: 75
B95: Ewe Hill | C95: Wind Onshore | D95: EWEH1Q | E95: 12 | F95: 39 | G95: 39 | H95: 39 | I95: 39 | J95: 39
B96: Fallago Rig Wind Farm | C96: Wind Onshore | D96: FALL40 | E96: 11 | F96: 144 | G96: 144 | H96: 144 | I96: 144 | J96: 144
B97: Farr Wind Farm, Tomatin | C97: Wind Onshore | D97: FAAR1Q | E97: 1 | F97: 92 | G97: 92 | H97: 92 | I97: 92 | J97: 92
B98: Fasnakyle G1 & G2 | C98: Hydro | D98: FASN20 | E98: 3 | F98: 46 | G98: 46 | H98: 46 | I98: 46 | J98: 46
B99: Fawley CHP | C99: CHP | D99: FAWL40 | E99: 26 | F99: 158 | G99: 158 | H99: 158 | I99: 158 | J99: 158
B100: Ffestiniog | C100: Pump Storage | D100: FFES20 | E100: 16 | F100: 360 | G100: 360 | H100: 360 | I100: 360 | J100: 360
B101: Fiddlers Ferry | C101: Coal | D101: FIDF20_ENW | E101: 15 | F101: 1455 | G101: 1455 | H101: 1455 | I101: 1987 | J101: 1987
B102: Finlarig | C102: Hydro | D102: FINL1Q | E102: 6 | F102: 16.5 | G102: 16.5 | H102: 16.5 | I102: 16.5 | J102: 16.5
B103: Firth of Forth Offshore Wind Farm 1A | C103: Wind Offshore | D103: TEAL20 | E103: 9 | F103: 0 | G103: 0 | H103: 0 | I103: 0 | J103: 545
B104: Firth of Forth Offshore Wind Farm 1B | C104: Wind Offshore | D104: TEAL20 | E104: 9 | F104: 0 | G104: 0 | H104: 0 | I104: 0 | J104: 530
B105: Foyers | C105: Pump Storage | D105: FOYE20 | E105: 1 | F105: 300 | G105: 300 | H105: 300 | I105: 300 | J105: 300
B106: Freasdail | C106: Wind Onshore | D106: CRSS10 | E106: 7 | F106: 22.2 | G106: 22.2 | H106: 22.2 | I106: 22.2 | J106: 22.2
B107: Galawhistle Wind Farm | C107: Wind Onshore | D107: GAWH10 | E107: 11 | F107: 55.2 | G107: 55.2 | H107: 55.2 | I107: 55.2 | J107: 55.2
B108: Galloper Wind Farm | C108: Wind Offshore | D108: LEIS10 | E108: 18 | F108: 340 | G108: 340 | H108: 340 | I108: 340 | J108: 340
B109: Gateway Energy Centre Power Station | C109: CCGT | D109: COSO40 | E109: 24 | F109: 0 | G109: 0 | H109: 0 | I109: 1096 | J109: 1096
B110: Gilston Hill Wind Farm | C110: Wind Onshore | D110: DUNE10 | E110: 11 | F110: 0 | G110: 0 | H110: 0 | I110: 21 | J110: 21
B111: Glen App Windfarm | C111: Wind Onshore | D111: AREC10 | E111: 10 | F111: 32.2 | G111: 32.2 | H111: 32.2 | I111: 32.2 | J111: 32.2
B112: Glen Kyllachy Wind Farm | C112: Wind Onshore | D112: GLKY10 | E112: 1 | F112: 0 | G112: 0 | H112: 48.5 | I112: 48.5 | J112: 48.5
B113: Glen Ullinish Wind Farm | C113: Wind Onshore | D113: GLNU10 | E113: 0 | F113: 0 | G113: 0 | H113: 0 | I113: 0 | J113: 42
B114: Glendoe | C114: Hydro | D114: GLDO1G | E114: 3 | F114: 99.9 | G114: 99.9 | H114: 99.9 | I114: 99.9 | J114: 99.9
B115: Glenmorie Windfarm | C115: Wind Onshore | D115: GLEM10 | E115: 3 | F115: 0 | G115: 0 | H115: 0 | I115: 114 | J115: 114
B116: Glenmoriston | C116: Hydro | D116: GLEN1Q | E116: 3 | F116: 37 | G116: 37 | H116: 37 | I116: 37 | J116: 37
B117: Glenmuckloch Wind Farm | C117: Wind Onshore | D117: GLGL1Q | E117: 10 | F117: 0 | G117: 0 | H117: 0 | I117: 25.6 | J117: 25.6
B118: Glenouther Wind Farm (Harelaw) | C118: Wind Onshore | D118: NEIL10 | E118: 11 | F118: 0 | G118: 0 | H118: 0 | I118: 24 | J118: 24
B119: Gordonbush Wind | C119: Wind Onshore | D119: GORW20 | E119: 1 | F119: 70 | G119: 70 | H119: 70 | I119: 108 | J119: 108
B120: Grain | C120: CCGT | D120: GRAI40 | E120: 24 | F120: 1517 | G120: 1517 | H120: 1517 | I120: 1517 | J120: 1517
B121: Great Yarmouth | C121: CCGT | D121: NORM40 | E121: 18 | F121: 405 | G121: 405 | H121: 405 | I121: 405 | J121: 405
B122: Greater Gabbard Offshore Wind Farm | C122: Wind Offshore | D122: LEIS10 | E122: 18 | F122: 500 | G122: 500 | H122: 500 | I122: 500 | J122: 500
B123: Greenwire Wind Farm - Pentir | C123: Wind Offshore | D123: PENT40 | E123: 19 | F123: 0 | G123: 0 | H123: 0 | I123: 1000 | J123: 1000
B124: Griffin Wind Farm | C124: Wind Onshore | D124: GRIF1S | E124: 5 | F124: 188.6 | G124: 188.6 | H124: 188.6 | I124: 188.6 | J124: 188.6
B125: Gunfleet Sands II Offshore Wind Farm | C125: Wind Offshore | D125: BRFO40 | E125: 18 | F125: 64 | G125: 64 | H125: 64 | I125: 64 | J125: 64
B126: Gunfleet Sands Offshore Wind Farm | C126: Wind Offshore | D126: BRFO40 | E126: 18 | F126: 99.9 | G126: 99.9 | H126: 99.9 | I126: 99.9 | J126: 99.9
B127: Gwynt Y Mor Offshore Wind Farm | C127: Wind Offshore | D127: BODE40 | E127: 16 | F127: 574 | G127: 574 | H127: 574 | I127: 574 | J127: 574
B128: Hadyard Hill | C128: Wind Onshore | D128: HADH10 | E128: 10 | F128: 99.9 | G128: 99.9 | H128: 99.9 | I128: 99.9 | J128: 99.9
B129: Halsary Wind Farm | C129: Wind Onshore | D129: MYBS11 | E129: 1 | F129: 0 | G129: 0 | H129: 0 | I129: 28.5 | J129: 28.5
B130: Harestanes | C130: Wind Onshore | D130: HARE10 | E130: 12 | F130: 125 | G130: 125 | H130: 125 | I130: 125 | J130: 125
B131: Harry Burn Wind Farm | C131: Wind Onshore | D131: ELVA2Q | E131: 11 | F131: 0 | G131: 0 | H131: 0 | I131: 110 | J131: 110
B132: Harting Rig Wind Farm | C132: Wind Onshore | D132: KYPE10 | E132: 11 | F132: 0 | G132: 0 | H132: 0 | I132: 61.2 | J132: 61.2
B133: Hartlepool | C133: Nuclear | D133: HATL20 | E133: 13 | F133: 1207 | G133: 1207 | H133: 1207 | I133: 1207 | J133: 1207
B134: Hatfield Power Station | C134: CCGT | D134: THOM41 | E134: 16 | F134: 0 | G134: 0 | H134: 800 | I134: 800 | J134: 800
B135: Heysham Power Station | C135: Nuclear | D135: HEYS40 | E135: 14 | F135: 2433 | G135: 2433 | H135: 2433 | I135: 2433 | J135: 2433
B136: Hinkley Point B | C136: Nuclear | D136: HINP40 | E136: 26 | F136: 1061 | G136: 1061 | H136: 1061 | I136: 1061 | J136: 1061
B137: Hirwaun Power Station | C137: CCGT | D137: RHIG40 | E137: 21 | F137: 0 | G137: 0 | H137: 0 | I137: 299 | J137: 299
B138: Holyhead | C138: Biomass | D138: WYLF40 | E138: 19 | F138: 0 | G138: 0 | H138: 210 | I138: 210 | J138: 210
B139: Hopsrig Wind Farm | C139: Wind Onshore | D139: EWEH1Q | E139: 12 | F139: 0 | G139: 0 | H139: 0 | I139: 0 | J139: 73.6
B140: Hornsea Power Station 1A | C140: Wind Offshore | D140: KILL40 | E140: 15 | F140: 0 | G140: 0 | H140: 400 | I140: 400 | J140: 400
B141: Hornsea Power Station 1B | C141: Wind Offshore | D141: KILL40 | E141: 15 | F141: 0 | G141: 400 | H141: 400 | I141: 400 | J141: 400
B142: Hornsea Power Station 1C | C142: Wind Offshore | D142: KILL40 | E142: 15 | F142: 0 | G142: 0 | H142: 400 | I142: 400 | J142: 400
B143: Hornsea Power Station 2A | C143: Wind Offshore | D143: KILL40 | E143: 15 | F143: 0 | G143: 0 | H143: 500 | I143: 500 | J143: 500
B144: Hornsea Power Station 2B | C144: Wind Offshore | D144: KILL40 | E144: 15 | F144: 0 | G144: 0 | H144: 0 | I144: 500 | J144: 500
B145: Humber Gateway Offshore Wind Farm | C145: Wind Offshore | D145: HEDO20 | E145: 15 | F145: 220 | G145: 220 | H145: 220 | I145: 220 | J145: 220
B146: Hunterston | C146: Nuclear | D146: HUER40 | E146: 10 | F146: 1074 | G146: 1074 | H146: 1074 | I146: 1074 | J146: 1074
B147: Immingham | C147: CHP | D147: HUMR40 | E147: 15 | F147: 1218 | G147: 1218 | H147: 1218 | I147: 1218 | J147: 1218
B148: Inch Cape Offshore Wind Farm Platform 1 | C148: Wind Offshore | D148: COCK20 | E148: 11 | F148: 0 | G148: 0 | H148: 0 | I148: 330 | J148: 330
B149: Inch Cape Offshore Wind Farm Platform 2 | C149: Wind Offshore | D149: COCK20 | E149: 11 | F149: 0 | G149: 0 | H149: 0 | I149: 270 | J149: 270
B150: Indian Queens | C150: OCGT | D150: INDQ40 | E150: 27 | F150: 140 | G150: 140 | H150: 140 | I150: 140 | J150: 140
B151: Invergarry | C151: Hydro | D151: INGA1Q | E151: 3 | F151: 20 | G151: 20 | H151: 20 | I151: 20 | J151: 20
B152: J G Pears | C152: CHP | D152: HIGM20 | E152: 16 | F152: 0 | G152: 13 | H152: 30 | I152: 30 | J152: 30
B153: Keadby | C153: CCGT | D153: KEAD40 | E153: 16 | F153: 755 | G153: 755 | H153: 755 | I153: 755 | J153: 755
B154: Keadby II | C154: CCGT | D154: KEAD40 | E154: 16 | F154: 0 | G154: 0 | H154: 820 | I154: 820 | J154: 820
B155: Keith Hill Wind Farm | C155: Wind Onshore | D155: DUNE10 | E155: 11 | F155: 4.5 | G155: 4.5 | H155: 4.5 | I155: 4.5 | J155: 4.5
B156: Kilbraur Wind Farm | C156: Wind Onshore | D156: STRB20 | E156: 1 | F156: 67 | G156: 67 | H156: 67 | I156: 67 | J156: 67
B157: Kilgallioch | C157: Wind Onshore | D157: KILG20 | E157: 10 | F157: 274 | G157: 228 | H157: 228 | I157: 228 | J157: 228
B158: Killingholme | C158: CCGT | D158: KILL40 | E158: 15 | F158: 0 | G158: 600 | H158: 600 | I158: 600 | J158: 600
B159: Kilmorack | C159: Hydro | D159: KIOR1Q | E159: 1 | F159: 20 | G159: 20 | H159: 20 | I159: 20 | J159: 20
B160: Kings Lynn A | C160: CCGT | D160: WALP40_EME | E160: 17 | F160: 0 | G160: 281 | H160: 281 | I160: 281 | J160: 281
B161: Kings Lynn B | C161: CCGT | D161: KLYN40 | E161: 17 | F161: 0 | G161: 0 | H161: 0 | I161: 981 | J161: 981
B162: Knottingley Power Station | C162: CCGT | D162: KNOT40 | E162: 15 | F162: 0 | G162: 0 | H162: 1652 | I162: 1652 | J162: 1652
B163: Kype Muir | C163: Wind Onshore | D163: KYPE10 | E163: 11 | F163: 0 | G163: 88.4 | H163: 88.4 | I163: 88.4 | J163: 88.4
B164: Langage | C164: CCGT | D164: LAGA40 | E164: 27 | F164: 905 | G164: 905 | H164: 905 | I164: 905 | J164: 905
B165: Lethans Wind Farm | C165: Wind Onshore | D165: GLGL1Q | E165: 10 | F165: 0 | G165: 0 | H165: 0 | I165: 88.4 | J165: 88.4
B166: Limekilns | C166: Wind Onshore | D166: DOUN10 | E166: 1 | F166: 0 | G166: 0 | H166: 0 | I166: 90 | J166: 90
B167: Lincs Offshore Wind Farm | C167: Wind Offshore | D167: WALP40_EME | E167: 17 | F167: 256 | G167: 256 | H167: 256 | I167: 256 | J167: 256
B168: Little Barford | C168: CCGT | D168: EASO40 | E168: 18 | F168: 740 | G168: 740 | H168: 740 | I168: 740 | J168: 740
B169: Loch Hill Wind Farm | C169: Wind Onshore | D169: GLLE10 | E169: 10 | F169: 0 | G169: 0 | H169: 0 | I169: 27.5 | J169: 27.5
B170: Lochay | C170: Hydro | D170: LOCH10 | E170: 6 | F170: 47 | G170: 47 | H170: 47 | I170: 47 | J170: 47
B171: Lochluichart | C171: Wind Onshore | D171: CORI10 | E171: 1 | F171: 69 | G171: 69 | H171: 69 | I171: 69 | J171: 69
B172: London Array Offshore Wind Farm | C172: Wind Offshore | D172: CLEH40 | E172: 24 | F172: 630 | G172: 630 | H172: 630 | I172: 630 | J172: 630
B173: Luichart | C173: Hydro | D173: LUIC1Q | E173: 1 | F173: 34 | G173: 34 | H173: 34 | I173: 34 | J173: 34
B174: Lynemouth Power Station | C174: Coal | D174: BLYT20 | E174: 13 | F174: 376 | G174: 376 | H174: 376 | I174: 376 | J174: 376
B175: Marchwood | C175: CCGT | D175: MAWO40 | E175: 26 | F175: 920 | G175: 920 | H175: 920 | I175: 920 | J175: 920
B176: Marex | C176: Pump Storage | D176: CONQ40 | E176: 16 | F176: 0 | G176: 1500 | H176: 1500 | I176: 1500 | J176: 1500
B177: Margree | C177: Wind Onshore | D177: MARG10 | E177: 10 | F177: 42.5 | G177: 42.5 | H177: 42.5 | I177: 42.5 | J177: 42.5
B178: Mark Hill Wind Farm | C178: Wind Onshore | D178: MAHI20 | E178: 10 | F178: 53 | G178: 53 | H178: 53 | I178: 53 | J178: 53
B179: Medway Power Station | C179: CCGT | D179: GRAI40 | E179: 24 | F179: 735 | G179: 735 | H179: 735 | I179: 735 | J179: 735
B180: MeyGen Tidal | C180: Tidal | D180: GILB10 | E180: 1 | F180: 0 | G180: 15 | H180: 71 | I180: 154 | J180: 237
B181: Middle Muir Wind Farm | C181: Wind Onshore | D181: MIDM10 | E181: 11 | F181: 0 | G181: 51 | H181: 51 | I181: 51 | J181: 51
B182: Millennium South | C182: Wind Onshore | D182: MILS1Q | E182: 3 | F182: 0 | G182: 25 | H182: 25 | I182: 25 | J182: 25
B183: Millennium Wind (Stage 3), Ceannacroc | C183: Wind Onshore | D183: MILW1Q | E183: 3 | F183: 65 | G183: 65 | H183: 65 | I183: 65 | J183: 65
B184: Minnygap | C184: Wind Onshore | D184: MOFF10 | E184: 11 | F184: 25 | G184: 25 | H184: 25 | I184: 25 | J184: 25
B185: Moray Firth Offshore Wind Farm | C185: Wind Offshore | D185: NEDE20 | E185: 2 | F185: 0 | G185: 0 | H185: 20 | I185: 504 | J185: 1000
B186: Mossford | C186: Hydro | D186: MOSS1S | E186: 1 | F186: 18.66 | G186: 18.66 | H186: 18.66 | I186: 18.66 | J186: 18.66
B187: Muaitheabhal Wind Farm | C187: Wind Onshore | D187: STWN20 | E187: 4 | F187: 0 | G187: 0 | H187: 0 | I187: 150 | J187: 150
B188: Nant | C188: Hydro | D188: NANT1Q | E188: 7 | F188: 15 | G188: 15 | H188: 15 | I188: 15 | J188: 15
B189: Neart Na Gaoithe Offshore Wind Farm | C189: Wind Offshore | D189: CRYR40 | E189: 11 | F189: 0 | G189: 450 | H189: 450 | I189: 450 | J189: 450
B190: Ormonde Offshore Wind Farm | C190: Wind Offshore | D190: HEYS40 | E190: 14 | F190: 150 | G190: 150 | H190: 150 | I190: 150 | J190: 150
B191: Orrin | C191: Hydro | D191: ORRI10 | E191: 1 | F191: 18 | G191: 18 | H191: 18 | I191: 18 | J191: 18
B192: Pembroke Power Station | C192: CCGT | D192: PEMB40 | E192: 20 | F192: 2199 | G192: 2199 | H192: 2199 | I192: 2199 | J192: 2199
B193: Pen Y Cymoedd Wind Farm | C193: Wind Onshore | D193: RHIG40 | E193: 21 | F193: 228 | G193: 228 | H193: 228 | I193: 228 | J193: 228
B194: Pencloe Windfarm | C194: Wind Onshore | D194: BLAC10 | E194: 10 | F194: 63 | G194: 63 | H194: 63 | I194: 63 | J194: 63
B195: Peterborough | C195: CCGT | D195: WALP40_EME | E195: 17 | F195: 245 | G195: 245 | H195: 245 | I195: 245 | J195: 245
B196: Peterhead | C196: CCGT | D196: PEHE20 | E196: 2 | F196: 400 | G196: 400 | H196: 400 | I196: 1180 | J196: 1180
B197: Pogbie Wind Farm | C197: Wind Onshore | D197: DUNE10 | E197: 11 | F197: 11.8 | G197: 11.8 | H197: 11.8 | I197: 11.8 | J197: 11.8
B198: Progress Power Station | C198: CCGT | D198: BRFO40 | E198: 18 | F198: 0 | G198: 0 | H198: 0 | I198: 299 | J198: 299
B199: Race Bank Wind Farm | C199: Wind Offshore | D199: WALP40_EME | E199: 17 | F199: 565 | G199: 565 | H199: 565 | I199: 565 | J199: 565
B200: Rampion Offshore Wind Farm | C200: Wind Offshore | D200: BOLN40 | E200: 25 | F200: 400 | G200: 400 | H200: 400 | I200: 400 | J200: 400
B201: Ratcliffe on Soar | C201: Coal | D201: RATS40 | E201: 18 | F201: 2021 | G201: 2021 | H201: 2021 | I201: 2021 | J201: 2021
B202: Robin Rigg East Offshore Wind Farm | C202: Wind Offshore | D202: HARK40 | E202: 12 | F202: 92 | G202: 92 | H202: 92 | I202: 92 | J202: 92
... 57 more rows

Sheet T45
B2: Table 45 - Contracted TEC at Peak by Zone
B4: Zone | C4: 2017/18 (MW) | D4: 2018/19 (MW) | E4: 2019/20 (MW) | F4: 2020/21 (MW) | G4: 2021/22 (MW)
B5: 1 | C5: =SUMIF('T44'!$E:$E,$B5,'T44'!F:F) -> 1176.51 | D5: =SUMIF('T44'!$E:$E,$B5,'T44'!G:G) -> 1641.91 | E5: =SUMIF('T44'!$E:$E,$B5,'T44'!H:H) -> 2148.21 | F5: =SUMIF('T44'!$E:$E,$B5,'T44'!I:I) -> 3253.41 | G5: =SUMIF('T44'!$E:$E,$B5,'T44'!J:J) -> 3642.01
B6: 2 | C6: =SUMIF('T44'!$E:$E,$B6,'T44'!F:F) -> 400 | D6: =SUMIF('T44'!$E:$E,$B6,'T44'!G:G) -> 400 | E6: =SUMIF('T44'!$E:$E,$B6,'T44'!H:H) -> 420 | F6: =SUMIF('T44'!$E:$E,$B6,'T44'!I:I) -> 1684 | G6: =SUMIF('T44'!$E:$E,$B6,'T44'!J:J) -> 3580
B7: 3 | C7: =SUMIF('T44'!$E:$E,$B7,'T44'!F:F) -> 712.7 | D7: =SUMIF('T44'!$E:$E,$B7,'T44'!G:G) -> 737.7 | E7: =SUMIF('T44'!$E:$E,$B7,'T44'!H:H) -> 737.7 | F7: =SUMIF('T44'!$E:$E,$B7,'T44'!I:I) -> 851.7 | G7: =SUMIF('T44'!$E:$E,$B7,'T44'!J:J) -> 851.7
B8: 4 | C8: =SUMIF('T44'!$E:$E,$B8,'T44'!F:F) -> 41.4 | D8: =SUMIF('T44'!$E:$E,$B8,'T44'!G:G) -> 41.4 | E8: =SUMIF('T44'!$E:$E,$B8,'T44'!H:H) -> 41.4 | F8: =SUMIF('T44'!$E:$E,$B8,'T44'!I:I) -> 191.4 | G8: =SUMIF('T44'!$E:$E,$B8,'T44'!J:J) -> 191.4
B9: 5 | C9: =SUMIF('T44'!$E:$E,$B9,'T44'!F:F) -> 324.8 | D9: =SUMIF('T44'!$E:$E,$B9,'T44'!G:G) -> 324.8 | E9: =SUMIF('T44'!$E:$E,$B9,'T44'!H:H) -> 324.8 | F9: =SUMIF('T44'!$E:$E,$B9,'T44'!I:I) -> 371 | G9: =SUMIF('T44'!$E:$E,$B9,'T44'!J:J) -> 470
B10: 6 | C10: =SUMIF('T44'!$E:$E,$B10,'T44'!F:F) -> 63.5 | D10: =SUMIF('T44'!$E:$E,$B10,'T44'!G:G) -> 63.5 | E10: =SUMIF('T44'!$E:$E,$B10,'T44'!H:H) -> 63.5 | F10: =SUMIF('T44'!$E:$E,$B10,'T44'!I:I) -> 63.5 | G10: =SUMIF('T44'!$E:$E,$B10,'T44'!J:J) -> 63.5
B11: 7 | C11: =SUMIF('T44'!$E:$E,$B11,'T44'!F:F) -> 166 | D11: =SUMIF('T44'!$E:$E,$B11,'T44'!G:G) -> 166 | E11: =SUMIF('T44'!$E:$E,$B11,'T44'!H:H) -> 166 | F11: =SUMIF('T44'!$E:$E,$B11,'T44'!I:I) -> 216 | G11: =SUMIF('T44'!$E:$E,$B11,'T44'!J:J) -> 216
B12: 8 | C12: =SUMIF('T44'!$E:$E,$B12,'T44'!F:F) -> 520 | D12: =SUMIF('T44'!$E:$E,$B12,'T44'!G:G) -> 520 | E12: =SUMIF('T44'!$E:$E,$B12,'T44'!H:H) -> 520 | F12: =SUMIF('T44'!$E:$E,$B12,'T44'!I:I) -> 520 | G12: =SUMIF('T44'!$E:$E,$B12,'T44'!J:J) -> 520
B13: 9 | C13: =SUMIF('T44'!$E:$E,$B13,'T44'!F:F) -> 120 | D13: =SUMIF('T44'!$E:$E,$B13,'T44'!G:G) -> 120 | E13: =SUMIF('T44'!$E:$E,$B13,'T44'!H:H) -> 120 | F13: =SUMIF('T44'!$E:$E,$B13,'T44'!I:I) -> 120 | G13: =SUMIF('T44'!$E:$E,$B13,'T44'!J:J) -> 1195
B14: 10 | C14: =SUMIF('T44'!$E:$E,$B14,'T44'!F:F) -> 2652.1 | D14: =SUMIF('T44'!$E:$E,$B14,'T44'!G:G) -> 2725.1 | E14: =SUMIF('T44'!$E:$E,$B14,'T44'!H:H) -> 2725.1 | F14: =SUMIF('T44'!$E:$E,$B14,'T44'!I:I) -> 3166.6 | G14: =SUMIF('T44'!$E:$E,$B14,'T44'!J:J) -> 3166.6
B15: 11 | C15: =SUMIF('T44'!$E:$E,$B15,'T44'!F:F) -> 2552.55 | D15: =SUMIF('T44'!$E:$E,$B15,'T44'!G:G) -> 3093.75 | E15: =SUMIF('T44'!$E:$E,$B15,'T44'!H:H) -> 3194.15 | F15: =SUMIF('T44'!$E:$E,$B15,'T44'!I:I) -> 4058.55 | G15: =SUMIF('T44'!$E:$E,$B15,'T44'!J:J) -> 4103.55
B16: 12 | C16: =SUMIF('T44'!$E:$E,$B16,'T44'!F:F) -> 348 | D16: =SUMIF('T44'!$E:$E,$B16,'T44'!G:G) -> 394 | E16: =SUMIF('T44'!$E:$E,$B16,'T44'!H:H) -> 394 | F16: =SUMIF('T44'!$E:$E,$B16,'T44'!I:I) -> 394 | G16: =SUMIF('T44'!$E:$E,$B16,'T44'!J:J) -> 467.6
B17: 13 | C17: =SUMIF('T44'!$E:$E,$B17,'T44'!F:F) -> 1724 | D17: =SUMIF('T44'!$E:$E,$B17,'T44'!G:G) -> 2009 | E17: =SUMIF('T44'!$E:$E,$B17,'T44'!H:H) -> 2009 | F17: =SUMIF('T44'!$E:$E,$B17,'T44'!I:I) -> 3409 | G17: =SUMIF('T44'!$E:$E,$B17,'T44'!J:J) -> 3409
B18: 14 | C18: =SUMIF('T44'!$E:$E,$B18,'T44'!F:F) -> 4234 | D18: =SUMIF('T44'!$E:$E,$B18,'T44'!G:G) -> 4234 | E18: =SUMIF('T44'!$E:$E,$B18,'T44'!H:H) -> 4234 | F18: =SUMIF('T44'!$E:$E,$B18,'T44'!I:I) -> 4234 | G18: =SUMIF('T44'!$E:$E,$B18,'T44'!J:J) -> 4234
B19: 15 | C19: =SUMIF('T44'!$E:$E,$B19,'T44'!F:F) -> 9469 | D19: =SUMIF('T44'!$E:$E,$B19,'T44'!G:G) -> 10469 | E19: =SUMIF('T44'!$E:$E,$B19,'T44'!H:H) -> 13911 | F19: =SUMIF('T44'!$E:$E,$B19,'T44'!I:I) -> 15443 | G19: =SUMIF('T44'!$E:$E,$B19,'T44'!J:J) -> 16943
B20: 16 | C20: =SUMIF('T44'!$E:$E,$B20,'T44'!F:F) -> 12978 | D20: =SUMIF('T44'!$E:$E,$B20,'T44'!G:G) -> 16435 | E20: =SUMIF('T44'!$E:$E,$B20,'T44'!H:H) -> 18072 | F20: =SUMIF('T44'!$E:$E,$B20,'T44'!I:I) -> 19672 | G20: =SUMIF('T44'!$E:$E,$B20,'T44'!J:J) -> 19672
B21: 17 | C21: =SUMIF('T44'!$E:$E,$B21,'T44'!F:F) -> 3165 | D21: =SUMIF('T44'!$E:$E,$B21,'T44'!G:G) -> 3446 | E21: =SUMIF('T44'!$E:$E,$B21,'T44'!H:H) -> 3806 | F21: =SUMIF('T44'!$E:$E,$B21,'T44'!I:I) -> 6247 | G21: =SUMIF('T44'!$E:$E,$B21,'T44'!J:J) -> 6247
B22: 18 | C22: =SUMIF('T44'!$E:$E,$B22,'T44'!F:F) -> 6101.9 | D22: =SUMIF('T44'!$E:$E,$B22,'T44'!G:G) -> 6230.9 | E22: =SUMIF('T44'!$E:$E,$B22,'T44'!H:H) -> 8601.9 | F22: =SUMIF('T44'!$E:$E,$B22,'T44'!I:I) -> 10950.9 | G22: =SUMIF('T44'!$E:$E,$B22,'T44'!J:J) -> 13820.9
B23: 19 | C23: =SUMIF('T44'!$E:$E,$B23,'T44'!F:F) -> 1644 | D23: =SUMIF('T44'!$E:$E,$B23,'T44'!G:G) -> 1644 | E23: =SUMIF('T44'!$E:$E,$B23,'T44'!H:H) -> 1854 | F23: =SUMIF('T44'!$E:$E,$B23,'T44'!I:I) -> 2854 | G23: =SUMIF('T44'!$E:$E,$B23,'T44'!J:J) -> 3854
B24: 20 | C24: =SUMIF('T44'!$E:$E,$B24,'T44'!F:F) -> 2199 | D24: =SUMIF('T44'!$E:$E,$B24,'T44'!G:G) -> 2199 | E24: =SUMIF('T44'!$E:$E,$B24,'T44'!H:H) -> 2199 | F24: =SUMIF('T44'!$E:$E,$B24,'T44'!I:I) -> 2199 | G24: =SUMIF('T44'!$E:$E,$B24,'T44'!J:J) -> 2199
B25: 21 | C25: =SUMIF('T44'!$E:$E,$B25,'T44'!F:F) -> 3612 | D25: =SUMIF('T44'!$E:$E,$B25,'T44'!G:G) -> 3612 | E25: =SUMIF('T44'!$E:$E,$B25,'T44'!H:H) -> 3612 | F25: =SUMIF('T44'!$E:$E,$B25,'T44'!I:I) -> 4231 | G25: =SUMIF('T44'!$E:$E,$B25,'T44'!J:J) -> 4231
B26: 22 | C26: =SUMIF('T44'!$E:$E,$B26,'T44'!F:F) -> 1234 | D26: =SUMIF('T44'!$E:$E,$B26,'T44'!G:G) -> 1234 | E26: =SUMIF('T44'!$E:$E,$B26,'T44'!H:H) -> 1234 | F26: =SUMIF('T44'!$E:$E,$B26,'T44'!I:I) -> 1234 | G26: =SUMIF('T44'!$E:$E,$B26,'T44'!J:J) -> 1234
B27: 23 | C27: =SUMIF('T44'!$E:$E,$B27,'T44'!F:F) -> 0 | D27: =SUMIF('T44'!$E:$E,$B27,'T44'!G:G) -> 144 | E27: =SUMIF('T44'!$E:$E,$B27,'T44'!H:H) -> 144 | F27: =SUMIF('T44'!$E:$E,$B27,'T44'!I:I) -> 144 | G27: =SUMIF('T44'!$E:$E,$B27,'T44'!J:J) -> 144
B28: 24 | C28: =SUMIF('T44'!$E:$E,$B28,'T44'!F:F) -> 11201 | D28: =SUMIF('T44'!$E:$E,$B28,'T44'!G:G) -> 12105 | E28: =SUMIF('T44'!$E:$E,$B28,'T44'!H:H) -> 13905 | F28: =SUMIF('T44'!$E:$E,$B28,'T44'!I:I) -> 15001 | G28: =SUMIF('T44'!$E:$E,$B28,'T44'!J:J) -> 16671
B29: 25 | C29: =SUMIF('T44'!$E:$E,$B29,'T44'!F:F) -> 2370 | D29: =SUMIF('T44'!$E:$E,$B29,'T44'!G:G) -> 2370 | E29: =SUMIF('T44'!$E:$E,$B29,'T44'!H:H) -> 2370 | F29: =SUMIF('T44'!$E:$E,$B29,'T44'!I:I) -> 2370 | G29: =SUMIF('T44'!$E:$E,$B29,'T44'!J:J) -> 2370
B30: 26 | C30: =SUMIF('T44'!$E:$E,$B30,'T44'!F:F) -> 2139 | D30: =SUMIF('T44'!$E:$E,$B30,'T44'!G:G) -> 2139 | E30: =SUMIF('T44'!$E:$E,$B30,'T44'!H:H) -> 3239 | F30: =SUMIF('T44'!$E:$E,$B30,'T44'!I:I) -> 4639 | G30: =SUMIF('T44'!$E:$E,$B30,'T44'!J:J) -> 6639
B31: 27 | C31: =SUMIF('T44'!$E:$E,$B31,'T44'!F:F) -> 1045 | D31: =SUMIF('T44'!$E:$E,$B31,'T44'!G:G) -> 1045 | E31: =SUMIF('T44'!$E:$E,$B31,'T44'!H:H) -> 1045 | F31: =SUMIF('T44'!$E:$E,$B31,'T44'!I:I) -> 1045 | G31: =SUMIF('T44'!$E:$E,$B31,'T44'!J:J) -> 1045
B32: Total | C32: =SUM(C5:C31) -> 72193.46 | D32: =SUM(D5:D31) -> 79544.06 | E32: 91090.76 | F32: 108563.06 | G32: 121180.26

Sheet T46
B2: Table 46 - Zonal Summary of Modelled Demand
B4: Demand Zone | C4: 2017/18 | D4: 2018/19 | E4: 2019/20 | F4: 2020/21 | G4: 2021/22
C5: MW | D5: MW | E5: MW | F5: MW | G5: MW
B6: 1 | C6: 683.4116347 | D6: 227 | E6: 226 | F6: 228 | G6: 231
B7: 2 | C7: 3069.927611 | D7: 2820.350123 | E7: 2820.350123 | F7: 2820.350123 | G7: 2815.350123
B8: 3 | C8: 2608.619443 | D8: 2508 | E8: 2519 | F8: 2531 | G8: 2542
B9: 4 | C9: 3504.435597 | D9: 3234 | E9: 3232 | F9: 3240 | G9: 3261
B10: 5 | C10: 4650.761784 | D10: 4347 | E10: 4364 | F10: 4375 | G10: 4392
B11: 6 | C11: 2687.625741 | D11: 2831 | E11: 2894 | F11: 2946 | G11: 3007
B12: 7 | C12: 5137.05 | D12: 5333 | E12: 5400 | F12: 5474 | G12: 5557
B13: 8 | C13: 4497.62 | D13: 4594 | E13: 4609 | F13: 4628 | G13: 4675
B14: 9 | C14: 5849.55008 | D14: 5843 | E14: 5914 | F14: 5982 | G14: 6066
B15: 10 | C15: 1968.449129 | D15: 1969 | E15: 1976 | F15: 1990 | G15: 1997
B16: 11 | C16: 3626.196857 | D16: 3355 | E16: 3367 | F16: 3383 | G16: 3417
B17: 12 | C17: 5317.111433 | D17: 5271 | E17: 5441 | F17: 5565 | G17: 5638
B18: 13 | C18: 5935.998505 | D18: 5668 | E18: 5719 | F18: 5820 | G18: 5868
B19: 14 | C19: 2604.242169 | D19: 2609 | E19: 2629 | F19: 2658 | G19: 2699
B20: Total | C20: =SUM(C6:C19) -> 52140.99999 | D20: =SUM(D6:D19) -> 50609.35012 | E20: =SUM(E6:E19) -> 51110.35012 | F20: =SUM(F6:F19) -> 51640.35012 | G20: =SUM(G6:G19) -> 52165.35012

Sheet T47
B2: Table 47 - Zonal Summary of Chargeable System Demand
B4: Demand Zone | C4: 2017/18 | D4: 2018/19 | E4: 2019/20 | F4: 2020/21 | G4: 2021/22
C5: MW | D5: MW | E5: MW | F5: MW | G5: MW
B6: 1 | C6: 923.3929052 | D6: 899.1027829 | E6: 879.738088 | F6: 874.3159734 | G6: 870.8303284
B7: 2 | C7: 3109.180756 | D7: 3027.392841 | E7: 2962.189463 | F7: 2943.932517 | G7: 2932.195909
B8: 3 | C8: 2266.994054 | D8: 2207.360108 | E8: 2159.81843 | F8: 2146.50676 | G8: 2137.949258
B9: 4 | C9: 3853.956624 | D9: 3752.57716 | E9: 3671.754908 | F9: 3649.124678 | G9: 3634.576672
B10: 5 | C10: 3565.778817 | D10: 3471.979955 | E10: 3397.20115 | F10: 3376.263084 | G10: 3362.802899
B11: 6 | C11: 2349.890402 | D11: 2288.075842 | E11: 2238.795725 | F11: 2224.997292 | G11: 2216.126871
B12: 7 | C12: 4360.130043 | D12: 4245.435538 | E12: 4153.998202 | F12: 4128.395747 | G12: 4111.937027
B13: 8 | C13: 4124.578095 | D13: 4016.079854 | E13: 3929.582334 | F13: 3905.363028 | G13: 3889.793475
B14: 9 | C14: 6035.898867 | D14: 5877.12277 | E14: 5750.542482 | F14: 5715.100001 | G14: 5692.315549
B15: 10 | C15: 1656.540993 | D15: 1612.965194 | E15: 1578.225474 | F15: 1568.498352 | G15: 1562.245203
B16: 11 | C16: 3711.196543 | D16: 3613.572425 | E16: 3535.744029 | F16: 3513.952078 | G16: 3499.942967
B17: 12 | C17: 4111.695437 | D17: 4003.536078 | E17: 3917.308723 | F17: 3893.165064 | G17: 3877.64414
B18: 13 | C18: 5179.455417 | D18: 5043.208317 | E18: 4934.588711 | F18: 4904.175221 | G18: 4884.623692
B19: 14 | C19: 2435.661939 | D19: 2371.591135 | E19: 2320.512282 | F19: 2306.210203 | G19: 2297.01601
B20: Total | C20: =SUM(C6:C19) -> 47684.35089 | D20: =SUM(D6:D19) -> 46430 | E20: =SUM(E6:E19) -> 45430 | F20: =SUM(F6:F19) -> 45150 | G20: =SUM(G6:G19) -> 44970

Sheet T48
B2: Table 48 - Zonal Summary of Chargeable HH Demand
C4: 2017/18 | D4: 2018/19 | E4: 2019/20 | F4: 2020/21 | G4: 2021/22
C5: MW | D5: MW | E5: MW | F5: MW | G5: MW
B6: 1 | C6: -668.0251875 | D6: -719.688471 | E6: -773.2231923 | F6: -834.3335818 | G6: -895.4439712
B7: 2 | C7: 641.7262473 | D7: 691.3556409 | E7: 742.7827973 | F7: 801.4873816 | G7: 860.1919658
B8: 3 | C8: 314.288794 | D8: 338.5950498 | E8: 363.7817692 | F8: 392.5326472 | G8: 421.2835251
B9: 4 | C9: 1174.62173 | D9: 1265.463836 | E9: 1359.596585 | F9: 1467.050005 | G9: 1574.503426
B10: 5 | C10: 1106.637762 | D10: 1192.22217 | E10: 1280.906766 | F10: 1382.14107 | G10: 1483.375374
B11: 6 | C11: 519.7238669 | D11: 559.9179223 | E11: 601.5679572 | F11: 649.111865 | G11: 696.6557728
B12: 7 | C12: 1456.31316 | D12: 1568.94053 | E12: 1685.647685 | F12: 1818.870003 | G12: 1952.092322
B13: 8 | C13: 1400.271418 | D13: 1508.564669 | E13: 1620.780707 | F13: 1748.876374 | G13: 1876.97204
B14: 9 | C14: 1472.860995 | D14: 1586.768129 | E14: 1704.801408 | F14: 1839.537508 | G14: 1974.273609
B15: 10 | C15: 554.1990768 | D15: 597.0593529 | E15: 641.472189 | F15: 692.1698604 | G15: 742.8675318
B16: 11 | C16: 870.4042799 | D16: 937.7190217 | E16: 1007.472156 | F16: 1087.096017 | G16: 1166.719878
B17: 12 | C17: 2194.260421 | D17: 2363.95866 | E17: 2539.804006 | F17: 2740.533128 | G17: 2941.262249
B18: 13 | C18: 1649.597844 | D18: 1777.173335 | E18: 1909.370088 | F18: 2060.273929 | G18: 2211.17777
B19: 14 | C19: 540.1745019 | D19: 581.9501548 | E19: 625.2390786 | F19: 674.6537936 | G19: 724.0685085
B20: Total | C20: =SUM(C6:C19) -> 13227.05491 | D20: =SUM(D6:D19) -> 14250 | E20: 15310 | F20: 16520 | G20: 17730

Sheet T49
B2: Table 49 - Zonal Summary of Chargeable NHH Demand
C4: 2017/18 | D4: 2018/19 | E4: 2019/20 | F4: 2020/21 | G4: 2021/22
C5: TWh | D5: TWh | E5: TWh | F5: TWh | G5: TWh
B6: 1 | C6: 0.7522529764 | D6: 0.7043121062 | E6: 0.6612212811 | F6: 0.6202107028 | G6: 0.5818747274
B7: 2 | C7: 1.763498746 | D7: 1.651111468 | E7: 1.550094099 | F7: 1.453953432 | G7: 1.364082808
B8: 3 | C8: 1.286790125 | D8: 1.204783353 | E8: 1.131072979 | F8: 1.060921037 | G8: 0.9953442218
B9: 4 | C9: 2.063560268 | D9: 1.932050153 | E9: 1.813844553 | F9: 1.70134543 | G9: 1.596183207
B10: 5 | C10: 1.850095632 | D10: 1.732189559 | E10: 1.626211717 | F10: 1.525350046 | G10: 1.431066311
B11: 6 | C11: 1.295522647 | D11: 1.212959354 | E11: 1.13874876 | F11: 1.068120747 | G11: 1.002098909
B12: 7 | C12: 2.226530399 | D12: 2.084634244 | E12: 1.95709333 | F12: 1.835709564 | G12: 1.72224213
B13: 8 | C13: 2.097776086 | D13: 1.964085407 | E13: 1.843919844 | F13: 1.729555377 | G13: 1.622649463
B14: 9 | C14: 3.189257961 | D14: 2.98600745 | E14: 2.80331923 | F14: 2.629450442 | G14: 2.466920923
B15: 10 | C15: 0.8702331133 | D15: 0.8147734022 | E15: 0.7649243966 | F15: 0.7174818947 | G15: 0.673133469
B16: 11 | C16: 1.995656848 | D16: 1.8684742 | E16: 1.754158268 | F16: 1.645361036 | G16: 1.543659276
B17: 12 | C17: 1.927899041 | D17: 1.805034578 | E17: 1.694599973 | F17: 1.589496694 | G17: 1.491247976
B18: 13 | C18: 2.675602664 | D18: 2.50508726 | E18: 2.351822428 | F18: 2.205956587 | G18: 2.069603736
B19: 14 | C19: 1.318526809 | D19: 1.234497467 | E19: 1.158969141 | F19: 1.08708701 | G19: 1.019892844
B20: Total | C20: =SUM(C6:C19) -> 25.31320332 | D20: =SUM(D6:D19) -> 23.7 | E20: =SUM(E6:E19) -> 22.25 | F20: =SUM(F6:F19) -> 20.87 | G20: =SUM(G6:G19) -> 19.58

Sheet T50
B2: Table 50 - Breakdown of HH Demand Tariffs, and CMP264/265 Calculator | I2: CMP264/265 WACM4 Indicative Embedded Export Tariff*
B5: Zone | C5: Zone Name | D5: 18/19 Demand Peak Security HH (£/kW) | E5: 18/19 Demand Year Round HH (£/kW) | F5: 18/19 Demand Residual HH (£/kW) | G5: 18/19 Demand Total HH (£/kW) | I5: Zone | J5: Zone Name | K5: 18/19 Demand Peak Security HH (£/kW) | L5: 18/19 Demand Year Round HH (£/kW) | M5: 18/19 *Demand Residual Phasing (£/kW) | N5: **Indicative Avoided GSP Infrastructure Credit (£/kW) | O5: 18/19 Indicative Embedded Export Tariff (£/kW)
B7: 1 | C7: Northern Scotland | D7: 2.093147466 | E7: -7.137758585 | F7: 52.24268712 | G7: 47.198076 | I7: 1 | J7: Northern Scotland | K7: =D7 -> 2.093147466 | L7: =E7 -> -7.137758585 | M7: =F7*2/3 -> 34.82845808 | N7: 1.62 | O7: =IF(SUM(K7:N7)<0,0,SUM(K7:N7)) -> 31.40384696
B8: 2 | C8: Southern Scotland | D8: -1.595303322 | E8: -18.58004058 | F8: 52.24268712 | G8: 32.06734321 | I8: 2 | J8: Southern Scotland | K8: =D8 -> -1.595303322 | L8: -18.58004058 | M8: =F8*2/3 -> 34.82845808 | N8: 1.62 | O8: =IF(SUM(K8:N8)<0,0,SUM(K8:N8)) -> 16.27311417
B9: 3 | C9: Northern | D9: -3.218554748 | E9: -5.965183297 | F9: 52.24268712 | G9: 43.05894907 | I9: 3 | J9: Northern | K9: -3.218554748 | L9: -5.965183297 | M9: 34.82845808 | N9: 1.62 | O9: 27.26472003
B10: 4 | C10: North West | D10: -0.8645861571 | E10: -1.416251007 | F10: 52.24268712 | G10: 49.96184995 | I10: 4 | J10: North West | K10: -0.8645861571 | L10: -1.416251007 | M10: 34.82845808 | N10: 1.62 | O10: 34.16762091
B11: 5 | C11: Yorkshire | D11: -2.58753861 | E11: 0.1897709292 | F11: 52.24268712 | G11: 49.84491944 | I11: 5 | J11: Yorkshire | K11: -2.58753861 | L11: 0.1897709292 | M11: 34.82845808 | N11: 1.62 | O11: 34.0506904
B12: 6 | C12: N Wales & Mersey | D12: -2.185398455 | E12: 1.23526982 | F12: 52.24268712 | G12: 51.29255848 | I12: 6 | J12: N Wales & Mersey | K12: -2.185398455 | L12: 1.23526982 | M12: 34.82845808 | N12: 1.62 | O12: 35.49832944
B13: 7 | C13: East Midlands | D13: -1.702679644 | E13: 2.638352264 | F13: 52.24268712 | G13: 53.17835974 | I13: 7 | J13: East Midlands | K13: -1.702679644 | L13: 2.638352264 | M13: 34.82845808 | N13: 1.62 | O13: 37.3841307
B14: 8 | C14: Midlands | D14: -1.45240767 | E14: 3.701543824 | F14: 52.24268712 | G14: 54.49182327 | I14: 8 | J14: Midlands | K14: -1.45240767 | L14: 3.701543824 | M14: 34.82845808 | N14: 1.62 | O14: 38.69759423
B15: 9 | C15: Eastern | D15: 1.674783766 | E15: 1.030236417 | F15: 52.24268712 | G15: 54.9477073 | I15: 9 | J15: Eastern | K15: 1.674783766 | L15: 1.030236417 | M15: 34.82845808 | N15: 1.62 | O15: 39.15347826
B16: 10 | C16: South Wales | D16: -6.171994643 | E16: 4.538981001 | F16: 52.24268712 | G16: 50.60967347 | I16: 10 | J16: South Wales | K16: -6.171994643 | L16: 4.538981001 | M16: 34.82845808 | N16: 1.62 | O16: 34.81544443
B17: 11 | C17: South East | D17: 3.805905182 | E17: 1.256413375 | F17: 52.24268712 | G17: 57.30500567 | I17: 11 | J17: South East | K17: 3.805905182 | L17: 1.256413375 | M17: 34.82845808 | N17: 1.62 | O17: 41.51077663
B18: 12 | C18: London | D18: 5.549224057 | E18: 2.364348275 | F18: 52.24268712 | G18: 60.15625945 | I18: 12 | J18: London | K18: 5.549224057 | L18: 2.364348275 | M18: 34.82845808 | N18: 1.62 | O18: 44.36203041
B19: 13 | C19: Southern | D19: 1.886237358 | E19: 4.313784279 | F19: 52.24268712 | G19: 58.44270875 | I19: 13 | J19: Southern | K19: 1.886237358 | L19: 4.313784279 | M19: 34.82845808 | N19: 1.62 | O19: 42.64847971
B20: 14 | C20: South Western | D20: -0.8674006128 | E20: 5.511651023 | F20: 52.24268712 | G20: 56.88693753 | I20: 14 | J20: South Western | K20: -0.8674006128 | L20: 5.511651023 | M20: 34.82845808 | N20: 1.62 | O20: 41.09270849
B24: Zone | C24: Zone Name | D24: 19/20 Demand Peak Security HH (£/kW) | E24: 19/20 Demand Year Round HH (£/kW) | F24: 19/20 Demand Residual HH (£/kW) | G24: 19/20 Demand Total HH (£/kW) | I24: Zone | J24: Zone Name | K24: 19/20 Demand Peak Security HH (£/kW) | L24: 19/20 Demand Year Round HH (£/kW) | M24: 19/20 *Demand Residual Phasing (£/kW) | N24: **Indicative Avoided GSP Infrastructure Credit (£/kW) | O24: 19/20 Indicative Embedded Export Tariff (£/kW)
B26: 1 | C26: Northern Scotland | D26: 2.232949414 | E26: -6.510157481 | F26: 58.23515539 | G26: 53.95794732 | I26: 1 | J26: Northern Scotland | K26: =D26 -> 2.232949414 | L26: =E26 -> -6.510157481 | M26: =F26/3 -> 19.41171846 | N26: 1.62 | O26: =IF(SUM(K26:N26)<0,0,SUM(K26:N26)) -> 16.7545104
B27: 2 | C27: Southern Scotland | D27: -2.366687425 | E27: -18.6715792 | F27: 58.23515539 | G27: 37.19688877 | I27: 2 | J27: Southern Scotland | K27: =D27 -> -2.366687425 | L27: =E27 -> -18.6715792 | M27: =F27/3 -> 19.41171846 | N27: 1.62 | O27: =IF(SUM(K27:N27)<0,0,SUM(K27:N27)) -> 0
B28: 3 | C28: Northern | D28: -3.628895661 | E28: -5.907853111 | F28: 58.23515539 | G28: 48.69840662 | I28: 3 | J28: Northern | K28: =D28 -> -3.628895661 | L28: =E28 -> -5.907853111 | M28: =F28/3 -> 19.41171846 | N28: 1.62 | O28: 11.49496969
B29: 4 | C29: North West | D29: -1.481024155 | E29: -0.9114440742 | F29: 58.23515539 | G29: 55.84268716 | I29: 4 | J29: North West | K29: -1.481024155 | L29: -0.9114440742 | M29: 19.41171846 | N29: 1.62 | O29: 18.63925023
B30: 5 | C30: Yorkshire | D30: -2.915739737 | E30: 0.3806427445 | F30: 58.23515539 | G30: 55.7000584 | I30: 5 | J30: Yorkshire | K30: -2.915739737 | L30: 0.3806427445 | M30: 19.41171846 | N30: 1.62 | O30: 18.49662147
B31: 6 | C31: N Wales & Mersey | D31: -2.932035849 | E31: 1.872554474 | F31: 58.23515539 | G31: 57.17567402 | I31: 6 | J31: N Wales & Mersey | K31: -2.932035849 | L31: 1.872554474 | M31: 19.41171846 | N31: 1.62 | O31: 19.97223709
B32: 7 | C32: East Midlands | D32: -1.681951659 | E32: 2.650137647 | F32: 58.23515539 | G32: 59.20334138 | I32: 7 | J32: East Midlands | K32: -1.681951659 | L32: 2.650137647 | M32: 19.41171846 | N32: 1.62 | O32: 21.99990445
B33: 8 | C33: Midlands | D33: -1.894242247 | E33: 4.145324304 | F33: 58.23515539 | G33: 60.48623745 | I33: 8 | J33: Midlands | K33: -1.894242247 | L33: 4.145324304 | M33: 19.41171846 | N33: 1.62 | O33: 23.28280052
B34: 9 | C34: Eastern | D34: 1.940719946 | E34: 0.486926604 | F34: 58.23515539 | G34: 60.66280194 | I34: 9 | J34: Eastern | K34: 1.940719946 | L34: 0.486926604 | M34: 19.41171846 | N34: 1.62 | O34: 23.45936501
B35: 10 | C35: South Wales | D35: -6.048621817 | E35: 4.175507449 | F35: 58.23515539 | G35: 56.36204102 | I35: 10 | J35: South Wales | K35: -6.048621817 | L35: 4.175507449 | M35: 19.41171846 | N35: 1.62 | O35: 19.1586041
B36: 11 | C36: South East | D36: 4.271843867 | E36: 0.6444328683 | F36: 58.23515539 | G36: 63.15143213 | I36: 11 | J36: South East | K36: 4.271843867 | L36: 0.6444328683 | M36: 19.41171846 | N36: 1.62 | O36: 25.9479952
B37: 12 | C37: London | D37: 6.000778998 | E37: 1.782279041 | F37: 58.23515539 | G37: 66.01821343 | I37: 12 | J37: London | K37: 6.000778998 | L37: 1.782279041 | M37: 19.41171846 | N37: 1.62 | O37: 28.8147765
B38: 13 | C38: Southern | D38: 2.163452885 | E38: 3.454368739 | F38: 58.23515539 | G38: 63.85297701 | I38: 13 | J38: Southern | K38: 2.163452885 | L38: 3.454368739 | M38: 19.41171846 | N38: 1.62 | O38: 26.64954009
B39: 14 | C39: South Western | D39: 0.07194193416 | E39: 5.199387452 | F39: 58.23515539 | G39: 63.50648478 | I39: 14 | J39: South Western | K39: 0.07194193416 | L39: 5.199387452 | M39: 19.41171846 | N39: 1.62 | O39: 26.30304785
B43: Zone | C43: Zone Name | D43: 20/21 Demand Peak Security HH (£/kW) | E43: 20/21 Demand Year Round HH (£/kW) | F43: 20/21 Demand Residual HH (£/kW) | G43: 20/21 Demand Total HH (£/kW) | I43: Zone | J43: Zone Name | K43: 20/21 Demand Peak Security HH (£/kW) | L43: 20/21 Demand Year Round HH (£/kW) | M43: 20/21 *Demand Residual Phasing (£/kW) | N43: **Indicative Avoided GSP Infrastructure Credit (£/kW) | O43: 20/21 Indicative Embedded Export Tariff (£/kW)
B45: 1 | C45: Northern Scotland | D45: 3.518884675 | E45: -8.290677422 | F45: 64.6042189 | G45: 59.83242616 | I45: 1 | J45: Northern Scotland | K45: =D45 -> 3.518884675 | L45: =E45 -> -8.290677422 | M45: 0 | N45: 1.62 | O45: =IF(SUM(K45:N45)<0,0,SUM(K45:N45)) -> 0
B46: 2 | C46: Southern Scotland | D46: -1.193868654 | E46: -19.90669418 | F46: 64.6042189 | G46: 43.50365607 | I46: 2 | J46: Southern Scotland | K46: =D46 -> -1.193868654 | L46: =E46 -> -19.90669418 | M46: 0 | N46: 1.62 | O46: =IF(SUM(K46:N46)<0,0,SUM(K46:N46)) -> 0
B47: 3 | C47: Northern | D47: -3.474264509 | E47: -7.516627469 | F47: 64.6042189 | G47: 53.61332693 | I47: 3 | J47: Northern | K47: =D47 -> -3.474264509 | L47: =E47 -> -7.516627469 | M47: 0 | N47: 1.62 | O47: 0
B48: 4 | C48: North West | D48: -0.9902747953 | E48: -1.976689625 | F48: 64.6042189 | G48: 61.63725448 | I48: 4 | J48: North West | K48: -0.9902747953 | L48: -1.976689625 | M48: 0 | N48: 1.62 | O48: 0
B49: 5 | C49: Yorkshire | D49: -2.814309949 | E49: -0.6155782872 | F49: 64.6042189 | G49: 61.17433067 | I49: 5 | J49: Yorkshire | K49: -2.814309949 | L49: -0.6155782872 | M49: 0 | N49: 1.62 | O49: 0
B50: 6 | C50: N Wales & Mersey | D50: -2.166190685 | E50: 0.7991199543 | F50: 64.6042189 | G50: 63.23714817 | I50: 6 | J50: N Wales & Mersey | K50: -2.166190685 | L50: 0.7991199543 | M50: 0 | N50: 1.62 | O50: 0.2529292694
B51: 7 | C51: East Midlands | D51: -2.220643647 | E51: 2.589182745 | F51: 64.6042189 | G51: 64.972758 | I51: 7 | J51: East Midlands | K51: -2.220643647 | L51: 2.589182745 | M51: 0 | N51: 1.62 | O51: 1.988539098
B52: 8 | C52: Midlands | D52: -1.649726995 | E52: 3.480148677 | F52: 64.6042189 | G52: 66.43464059 | I52: 8 | J52: Midlands | K52: -1.649726995 | L52: 3.480148677 | M52: 0 | N52: 1.62 | O52: 3.450421683
B53: 9 | C53: Eastern | D53: 1.5132588 | E53: 0.3743479147 | F53: 64.6042189 | G53: 66.49182562 | I53: 9 | J53: Eastern | K53: 1.5132588 | L53: 0.3743479147 | M53: 0 | N53: 1.62 | O53: 3.507606715
B54: 10 | C54: South Wales | D54: -5.907857973 | E54: 3.879065189 | F54: 64.6042189 | G54: 62.57542612 | I54: 10 | J54: South Wales | K54: -5.907857973 | L54: 3.879065189 | M54: 0 | N54: 1.62 | O54: 0
B55: 11 | C55: South East | D55: 4.091589184 | E55: 0.4428226095 | F55: 64.6042189 | G55: 69.1386307 | I55: 11 | J55: South East | K55: 4.091589184 | L55: 0.4428226095 | M55: 0 | N55: 1.62 | O55: 6.154411793
B56: 12 | C56: London | D56: 5.792577666 | E56: 1.69304681 | F56: 64.6042189 | G56: 72.08984338 | I56: 12 | J56: London | K56: 5.792577666 | L56: 1.69304681 | M56: 0 | N56: 1.62 | O56: 9.105624476
B57: 13 | C57: Southern | D57: 2.109192904 | E57: 3.283994286 | F57: 64.6042189 | G57: 69.99740609 | I57: 13 | J57: Southern | K57: 2.109192904 | L57: 3.283994286 | M57: 0 | N57: 1.62 | O57: 7.01318719
B58: 14 | C58: South Western | D58: -0.9770884301 | E58: 3.817018882 | F58: 64.6042189 | G58: 67.44414935 | I58: 14 | J58: South Western | K58: -0.9770884301 | L58: 3.817018882 | M58: 0 | N58: 1.62 | O58: 4.459930452
B62: Zone | C62: Zone Name | D62: 21/22 Demand Peak Security HH (£/kW) | E62: 21/22 Demand Year Round HH (£/kW) | F62: 21/22 Demand Residual HH (£/kW) | G62: 21/22 Demand Total HH (£/kW) | I62: Zone | J62: Zone Name | K62: 21/22 Demand Peak Security HH (£/kW) | L62: 21/22 Demand Year Round HH (£/kW) | M62: 20/21 *Demand Residual Phasing (£/kW) | N62: **Indicative Avoided GSP Infrastructure Credit (£/kW) | O62: 20/21 Indicative Embedded Export Tariff (£/kW)
B64: 1 | C64: Northern Scotland | D64: 4.330774211 | E64: -9.09213936 | F64: 69.53690504 | G64: 64.77553989 | I64: 1 | J64: Northern Scotland | K64: =D64 -> 4.330774211 | L64: =E64 -> -9.09213936 | M64: 0 | N64: 1.62 | O64: =IF(SUM(K64:N64)<0,0,SUM(K64:N64)) -> 0
B65: 2 | C65: Southern Scotland | D65: -1.646672169 | E65: -20.88602662 | F65: 69.53690504 | G65: 47.00420625 | I65: 2 | J65: Southern Scotland | K65: =D65 -> -1.646672169 | L65: =E65 -> -20.88602662 | M65: 0 | N65: 1.62 | O65: =IF(SUM(K65:N65)<0,0,SUM(K65:N65)) -> 0
B66: 3 | C66: Northern | D66: -3.561145559 | E66: -7.376369663 | F66: 69.53690504 | G66: 58.59938982 | I66: 3 | J66: Northern | K66: -3.561145559 | L66: -7.376369663 | M66: 0 | N66: 1.62 | O66: 0
B67: 4 | C67: North West | D67: -0.9787860269 | E67: -1.622912365 | F67: 69.53690504 | G67: 66.93520665 | I67: 4 | J67: North West | K67: -0.9787860269 | L67: -1.622912365 | M67: 0 | N67: 1.62 | O67: 0
B68: 5 | C68: Yorkshire | D68: -2.967065549 | E68: -0.1422022747 | F68: 69.53690504 | G68: 66.42763722 | I68: 5 | J68: Yorkshire | K68: -2.967065549 | L68: -0.1422022747 | M68: 0 | N68: 1.62 | O68: 0
B69: 6 | C69: N Wales & Mersey | D69: -1.189452808 | E69: 0.7369952156 | F69: 69.53690504 | G69: 69.08444745 | I69: 6 | J69: N Wales & Mersey | K69: -1.189452808 | L69: 0.7369952156 | M69: 0 | N69: 1.62 | O69: 1.167542408
B70: 7 | C70: East Midlands | D70: -2.265264654 | E70: 3.231032564 | F70: 69.53690504 | G70: 70.50267295 | I70: 7 | J70: East Midlands | K70: -2.265264654 | L70: 3.231032564 | M70: 0 | N70: 1.62 | O70: 2.58576791
B71: 8 | C71: Midlands | D71: -1.071853082 | E71: 3.942755586 | F71: 69.53690504 | G71: 72.40780754 | I71: 8 | J71: Midlands | K71: -1.071853082 | L71: 3.942755586 | M71: 0 | N71: 1.62 | O71: 4.490902504
B72: 9 | C72: Eastern | D72: 1.102622091 | E72: 1.686065349 | F72: 69.53690504 | G72: 72.32559248 | I72: 9 | J72: Eastern | K72: 1.102622091 | L72: 1.686065349 | M72: 0 | N72: 1.62 | O72: 4.40868744
B73: 10 | C73: South Wales | D73: -4.689387376 | E73: 7.120518765 | F73: 69.53690504 | G73: 71.96803643 | I73: 10 | J73: South Wales | K73: -4.689387376 | L73: 7.120518765 | M73: 0 | N73: 1.62 | O73: 4.051131389
B74: 11 | C74: South East | D74: 3.634308125 | E74: 2.038998669 | F74: 69.53690504 | G74: 75.21021183 | I74: 11 | J74: South East | K74: 3.634308125 | L74: 2.038998669 | M74: 0 | N74: 1.62 | O74: 7.293306794
B75: 12 | C75: London | D75: 5.433169998 | E75: 3.137307615 | F75: 69.53690504 | G75: 78.10738265 | I75: 12 | J75: London | K75: 5.433169998 | L75: 3.137307615 | M75: 0 | N75: 1.62 | O75: 10.19047761
B76: 13 | C76: Southern | D76: 1.922596318 | E76: 4.919083076 | F76: 69.53690504 | G76: 76.37858443 | I76: 13 | J76: Southern | K76: 1.922596318 | L76: 4.919083076 | M76: 0 | N76: 1.62 | O76: 8.461679394
B77: 14 | C77: South Western | D77: -0.5814779906 | E77: 5.822290018 | F77: 69.53690504 | G77: 74.77771707 | I77: 14 | J77: South Western | K77: -0.5814779906 | L77: 5.822290018 | M77: 0 | N77: 1.62 | O77: 6.860812028
I80: *Indicative Avoided GSP Infrastructure Cost – £1.62/kW is based on National Grid’s estimate of this value in 2013 and is expressed in 2013/14 prices.
I81: *Demand Residual – The demand residual is expected to be affected by the implementation of WACM 4, however for the purpose of providing an initial view of the embedded export tariff, it has been assumed to be the same as current forecasts.
